Workbook

Sheet Metadata
A1: Population Pyramids of Scotland, 1981-2043
A3: General details
A5: Dataset title: | B5: Population Pyramids of Scotland, 1981-2043
A6: Time period of dataset: | B6: 1981-2043
A7: Geographic coverage: | B7: Scotland
A8: Supplier: | B8: National Records of Scotland (NRS)
A9: Department: | B9: Demography Division, Population and Migration Statistics Branch
A11: These charts show the age and sex structure of the population of Scotland, and how it has changed, and is projected to change over time. Using the scroll bar to the right of the chart you can move through the years and see the changes.
A14: The estimated data, for the period 1981-2018, is taken from the National Records of Scotland (NRS) Mid-Year Population Estimates. This data can be accessed from the Mid-Year Population Estimates section of the NRS website.
A17: The projected data, for the period 2019-2043, is from the Projected Population of Scotland (2018-based). This data can be accessed from the Population Projections Scotland section of the NRS website.
A20: Information on the methodology of the estimates and projections is available on the website within the relevant sections and can be accessed from the above links.
A23: © Crown Copyright 2019

Sheet Chart data
A1: Code | B1: 0 | C1: Population pyramids of Scotland | G1: Chart sequence speed | I1: =IF(L1=1,1200,IF(L1=2,400,80)) -> 80 | K1: Slow | L1: 3
C2: Year | D2: =OFFSET($A$4,B1,0) -> 1981 | I2: Finished | K2: Medium
D3: Male | E3: Female | K3: Fast
A4: 1981 | B4: 1 | C4: 0 | D4: =-VLOOKUP($D$2,Males!$A$3:$CN$68,'Chart data'!B4+1,FALSE) -> -35263 | E4: =VLOOKUP($D$2,Females!$A$3:$CN$68,'Chart data'!B4+1,FALSE) -> 33266
A5: 1982 | B5: 2 | C5: 1 | D5: =-VLOOKUP($D$2,Males!$A$3:$CN$68,'Chart data'!B5+1,FALSE) -> -34142 | E5: =VLOOKUP($D$2,Females!$A$3:$CN$68,'Chart data'!B5+1,FALSE) -> 32581
A6: 1983 | B6: 3 | C6: 2 | D6: =-VLOOKUP($D$2,Males!$A$3:$CN$68,'Chart data'!B6+1,FALSE) -> -33070 | E6: =VLOOKUP($D$2,Females!$A$3:$CN$68,'Chart data'!B6+1,FALSE) -> 30995
A7: 1984 | B7: 4 | C7: 3 | D7: =-VLOOKUP($D$2,Males!$A$3:$CN$68,'Chart data'!B7+1,FALSE) -> -30363 | E7: =VLOOKUP($D$2,Females!$A$3:$CN$68,'Chart data'!B7+1,FALSE) -> 29205
A8: 1985 | B8: 5 | C8: 4 | D8: =-VLOOKUP($D$2,Males!$A$3:$CN$68,'Chart data'!B8+1,FALSE) -> -30380 | E8: =VLOOKUP($D$2,Females!$A$3:$CN$68,'Chart data'!B8+1,FALSE) -> 28643
A9: 1986 | B9: 6 | C9: 5 | D9: =-VLOOKUP($D$2,Males!$A$3:$CN$68,'Chart data'!B9+1,FALSE) -> -33216 | E9: =VLOOKUP($D$2,Females!$A$3:$CN$68,'Chart data'!B9+1,FALSE) -> 31299
A10: 1987 | B10: 7 | C10: 6 | D10: =-VLOOKUP($D$2,Males!$A$3:$CN$68,'Chart data'!B10+1,FALSE) -> -33496 | E10: =VLOOKUP($D$2,Females!$A$3:$CN$68,'Chart data'!B10+1,FALSE) -> 32077
A11: 1988 | B11: 8 | C11: 7 | D11: =-VLOOKUP($D$2,Males!$A$3:$CN$68,'Chart data'!B11+1,FALSE) -> -34533 | E11: =VLOOKUP($D$2,Females!$A$3:$CN$68,'Chart data'!B11+1,FALSE) -> 32738
A12: 1989 | B12: 9 | C12: 8 | D12: =-VLOOKUP($D$2,Males!$A$3:$CN$68,'Chart data'!B12+1,FALSE) -> -37219 | E12: =VLOOKUP($D$2,Females!$A$3:$CN$68,'Chart data'!B12+1,FALSE) -> 35159
A13: 1990 | B13: 10 | C13: 9 | D13: =-VLOOKUP($D$2,Males!$A$3:$CN$68,'Chart data'!B13+1,FALSE) -> -39689 | E13: =VLOOKUP($D$2,Females!$A$3:$CN$68,'Chart data'!B13+1,FALSE) -> 38287
A14: 1991 | B14: 11 | C14: 10 | D14: =-VLOOKUP($D$2,Males!$A$3:$CN$68,'Chart data'!B14+1,FALSE) -> -42488 | E14: =VLOOKUP($D$2,Females!$A$3:$CN$68,'Chart data'!B14+1,FALSE) -> 40381
A15: 1992 | B15: 12 | C15: 11 | D15: =-VLOOKUP($D$2,Males!$A$3:$CN$68,'Chart data'!B15+1,FALSE) -> -42650 | E15: =VLOOKUP($D$2,Females!$A$3:$CN$68,'Chart data'!B15+1,FALSE) -> 40762
A16: 1993 | B16: 13 | C16: 12 | D16: =-VLOOKUP($D$2,Males!$A$3:$CN$68,'Chart data'!B16+1,FALSE) -> -44582 | E16: =VLOOKUP($D$2,Females!$A$3:$CN$68,'Chart data'!B16+1,FALSE) -> 42130
A17: 1994 | B17: 14 | C17: 13 | D17: =-VLOOKUP($D$2,Males!$A$3:$CN$68,'Chart data'!B17+1,FALSE) -> -45545 | E17: =VLOOKUP($D$2,Females!$A$3:$CN$68,'Chart data'!B17+1,FALSE) -> 43476
A18: 1995 | B18: 15 | C18: 14 | D18: =-VLOOKUP($D$2,Males!$A$3:$CN$68,'Chart data'!B18+1,FALSE) -> -46819 | E18: =VLOOKUP($D$2,Females!$A$3:$CN$68,'Chart data'!B18+1,FALSE) -> 43879
A19: 1996 | B19: 16 | C19: 15 | D19: =-VLOOKUP($D$2,Males!$A$3:$CN$68,'Chart data'!B19+1,FALSE) -> -46229 | E19: =VLOOKUP($D$2,Females!$A$3:$CN$68,'Chart data'!B19+1,FALSE) -> 43894
A20: 1997 | B20: 17 | C20: 16 | D20: =-VLOOKUP($D$2,Males!$A$3:$CN$68,'Chart data'!B20+1,FALSE) -> -48685 | E20: =VLOOKUP($D$2,Females!$A$3:$CN$68,'Chart data'!B20+1,FALSE) -> 46361
A21: 1998 | B21: 18 | C21: 17 | D21: =-VLOOKUP($D$2,Males!$A$3:$CN$68,'Chart data'!B21+1,FALSE) -> -47385 | E21: =VLOOKUP($D$2,Females!$A$3:$CN$68,'Chart data'!B21+1,FALSE) -> 45919
A22: 1999 | B22: 19 | C22: 18 | D22: =-VLOOKUP($D$2,Males!$A$3:$CN$68,'Chart data'!B22+1,FALSE) -> -46227 | E22: =VLOOKUP($D$2,Females!$A$3:$CN$68,'Chart data'!B22+1,FALSE) -> 44822
A23: 2000 | B23: 20 | C23: 19 | D23: =-VLOOKUP($D$2,Males!$A$3:$CN$68,'Chart data'!B23+1,FALSE) -> -45619 | E23: =VLOOKUP($D$2,Females!$A$3:$CN$68,'Chart data'!B23+1,FALSE) -> 44173
A24: 2001 | B24: 21 | C24: 20 | D24: =-VLOOKUP($D$2,Males!$A$3:$CN$68,'Chart data'!B24+1,FALSE) -> -44538 | E24: =VLOOKUP($D$2,Females!$A$3:$CN$68,'Chart data'!B24+1,FALSE) -> 43551
A25: 2002 | B25: 22 | C25: 21 | D25: =-VLOOKUP($D$2,Males!$A$3:$CN$68,'Chart data'!B25+1,FALSE) -> -43882 | E25: =VLOOKUP($D$2,Females!$A$3:$CN$68,'Chart data'!B25+1,FALSE) -> 42042
A26: 2003 | B26: 23 | C26: 22 | D26: =-VLOOKUP($D$2,Males!$A$3:$CN$68,'Chart data'!B26+1,FALSE) -> -42370 | E26: =VLOOKUP($D$2,Females!$A$3:$CN$68,'Chart data'!B26+1,FALSE) -> 41338
A27: 2004 | B27: 24 | C27: 23 | D27: =-VLOOKUP($D$2,Males!$A$3:$CN$68,'Chart data'!B27+1,FALSE) -> -40591 | E27: =VLOOKUP($D$2,Females!$A$3:$CN$68,'Chart data'!B27+1,FALSE) -> 39828
A28: 2005 | B28: 25 | C28: 24 | D28: =-VLOOKUP($D$2,Males!$A$3:$CN$68,'Chart data'!B28+1,FALSE) -> -39140 | E28: =VLOOKUP($D$2,Females!$A$3:$CN$68,'Chart data'!B28+1,FALSE) -> 38152
A29: 2006 | B29: 26 | C29: 25 | D29: =-VLOOKUP($D$2,Males!$A$3:$CN$68,'Chart data'!B29+1,FALSE) -> -38160 | E29: =VLOOKUP($D$2,Females!$A$3:$CN$68,'Chart data'!B29+1,FALSE) -> 36938
A30: 2007 | B30: 27 | C30: 26 | D30: =-VLOOKUP($D$2,Males!$A$3:$CN$68,'Chart data'!B30+1,FALSE) -> -36135 | E30: =VLOOKUP($D$2,Females!$A$3:$CN$68,'Chart data'!B30+1,FALSE) -> 35674
A31: 2008 | B31: 28 | C31: 27 | D31: =-VLOOKUP($D$2,Males!$A$3:$CN$68,'Chart data'!B31+1,FALSE) -> -35827 | E31: =VLOOKUP($D$2,Females!$A$3:$CN$68,'Chart data'!B31+1,FALSE) -> 35386
A32: 2009 | B32: 29 | C32: 28 | D32: =-VLOOKUP($D$2,Males!$A$3:$CN$68,'Chart data'!B32+1,FALSE) -> -35202 | E32: =VLOOKUP($D$2,Females!$A$3:$CN$68,'Chart data'!B32+1,FALSE) -> 34628
A33: 2010 | B33: 30 | C33: 29 | D33: =-VLOOKUP($D$2,Males!$A$3:$CN$68,'Chart data'!B33+1,FALSE) -> -33821 | E33: =VLOOKUP($D$2,Females!$A$3:$CN$68,'Chart data'!B33+1,FALSE) -> 33546
A34: 2011 | B34: 31 | C34: 30 | D34: =-VLOOKUP($D$2,Males!$A$3:$CN$68,'Chart data'!B34+1,FALSE) -> -34815 | E34: =VLOOKUP($D$2,Females!$A$3:$CN$68,'Chart data'!B34+1,FALSE) -> 34373
A35: 2012 | B35: 32 | C35: 31 | D35: =-VLOOKUP($D$2,Males!$A$3:$CN$68,'Chart data'!B35+1,FALSE) -> -35130 | E35: =VLOOKUP($D$2,Females!$A$3:$CN$68,'Chart data'!B35+1,FALSE) -> 34566
A36: 2013 | B36: 33 | C36: 32 | D36: =-VLOOKUP($D$2,Males!$A$3:$CN$68,'Chart data'!B36+1,FALSE) -> -36297 | E36: =VLOOKUP($D$2,Females!$A$3:$CN$68,'Chart data'!B36+1,FALSE) -> 35848
A37: 2014 | B37: 34 | C37: 33 | D37: =-VLOOKUP($D$2,Males!$A$3:$CN$68,'Chart data'!B37+1,FALSE) -> -37814 | E37: =VLOOKUP($D$2,Females!$A$3:$CN$68,'Chart data'!B37+1,FALSE) -> 37513
A38: 2015 | B38: 35 | C38: 34 | D38: =-VLOOKUP($D$2,Males!$A$3:$CN$68,'Chart data'!B38+1,FALSE) -> -41185 | E38: =VLOOKUP($D$2,Females!$A$3:$CN$68,'Chart data'!B38+1,FALSE) -> 40860
A39: 2016 | B39: 36 | C39: 35 | D39: =-VLOOKUP($D$2,Males!$A$3:$CN$68,'Chart data'!B39+1,FALSE) -> -31863 | E39: =VLOOKUP($D$2,Females!$A$3:$CN$68,'Chart data'!B39+1,FALSE) -> 31690
A40: 2017 | B40: 37 | C40: 36 | D40: =-VLOOKUP($D$2,Males!$A$3:$CN$68,'Chart data'!B40+1,FALSE) -> -30567 | E40: =VLOOKUP($D$2,Females!$A$3:$CN$68,'Chart data'!B40+1,FALSE) -> 30464
A41: 2018 | B41: 38 | C41: 37 | D41: =-VLOOKUP($D$2,Males!$A$3:$CN$68,'Chart data'!B41+1,FALSE) -> -31809 | E41: =VLOOKUP($D$2,Females!$A$3:$CN$68,'Chart data'!B41+1,FALSE) -> 31699
A42: 2019 | B42: 39 | C42: 38 | D42: =-VLOOKUP($D$2,Males!$A$3:$CN$68,'Chart data'!B42+1,FALSE) -> -31090 | E42: =VLOOKUP($D$2,Females!$A$3:$CN$68,'Chart data'!B42+1,FALSE) -> 31623
A43: 2020 | B43: 40 | C43: 39 | D43: =-VLOOKUP($D$2,Males!$A$3:$CN$68,'Chart data'!B43+1,FALSE) -> -29290 | E43: =VLOOKUP($D$2,Females!$A$3:$CN$68,'Chart data'!B43+1,FALSE) -> 30073
A44: 2021 | B44: 41 | C44: 40 | D44: =-VLOOKUP($D$2,Males!$A$3:$CN$68,'Chart data'!B44+1,FALSE) -> -27789 | E44: =VLOOKUP($D$2,Females!$A$3:$CN$68,'Chart data'!B44+1,FALSE) -> 28733
A45: 2022 | B45: 42 | C45: 41 | D45: =-VLOOKUP($D$2,Males!$A$3:$CN$68,'Chart data'!B45+1,FALSE) -> -28926 | E45: =VLOOKUP($D$2,Females!$A$3:$CN$68,'Chart data'!B45+1,FALSE) -> 30091
A46: 2023 | B46: 43 | C46: 42 | D46: =-VLOOKUP($D$2,Males!$A$3:$CN$68,'Chart data'!B46+1,FALSE) -> -29120 | E46: =VLOOKUP($D$2,Females!$A$3:$CN$68,'Chart data'!B46+1,FALSE) -> 30063
A47: 2024 | B47: 44 | C47: 43 | D47: =-VLOOKUP($D$2,Males!$A$3:$CN$68,'Chart data'!B47+1,FALSE) -> -29259 | E47: =VLOOKUP($D$2,Females!$A$3:$CN$68,'Chart data'!B47+1,FALSE) -> 30039
A48: 2025 | B48: 45 | C48: 44 | D48: =-VLOOKUP($D$2,Males!$A$3:$CN$68,'Chart data'!B48+1,FALSE) -> -28523 | E48: =VLOOKUP($D$2,Females!$A$3:$CN$68,'Chart data'!B48+1,FALSE) -> 30199
A49: 2026 | B49: 46 | C49: 45 | D49: =-VLOOKUP($D$2,Males!$A$3:$CN$68,'Chart data'!B49+1,FALSE) -> -28503 | E49: =VLOOKUP($D$2,Females!$A$3:$CN$68,'Chart data'!B49+1,FALSE) -> 29952
A50: 2027 | B50: 47 | C50: 46 | D50: =-VLOOKUP($D$2,Males!$A$3:$CN$68,'Chart data'!B50+1,FALSE) -> -28312 | E50: =VLOOKUP($D$2,Females!$A$3:$CN$68,'Chart data'!B50+1,FALSE) -> 29638
A51: 2028 | B51: 48 | C51: 47 | D51: =-VLOOKUP($D$2,Males!$A$3:$CN$68,'Chart data'!B51+1,FALSE) -> -28173 | E51: =VLOOKUP($D$2,Females!$A$3:$CN$68,'Chart data'!B51+1,FALSE) -> 29182
A52: 2029 | B52: 49 | C52: 48 | D52: =-VLOOKUP($D$2,Males!$A$3:$CN$68,'Chart data'!B52+1,FALSE) -> -27904 | E52: =VLOOKUP($D$2,Females!$A$3:$CN$68,'Chart data'!B52+1,FALSE) -> 29375
A53: 2030 | B53: 50 | C53: 49 | D53: =-VLOOKUP($D$2,Males!$A$3:$CN$68,'Chart data'!B53+1,FALSE) -> -28817 | E53: =VLOOKUP($D$2,Females!$A$3:$CN$68,'Chart data'!B53+1,FALSE) -> 30708
A54: 2031 | B54: 51 | C54: 50 | D54: =-VLOOKUP($D$2,Males!$A$3:$CN$68,'Chart data'!B54+1,FALSE) -> -28804 | E54: =VLOOKUP($D$2,Females!$A$3:$CN$68,'Chart data'!B54+1,FALSE) -> 30663
A55: 2032 | B55: 52 | C55: 51 | D55: =-VLOOKUP($D$2,Males!$A$3:$CN$68,'Chart data'!B55+1,FALSE) -> -28552 | E55: =VLOOKUP($D$2,Females!$A$3:$CN$68,'Chart data'!B55+1,FALSE) -> 30963
A56: 2033 | B56: 53 | C56: 52 | D56: =-VLOOKUP($D$2,Males!$A$3:$CN$68,'Chart data'!B56+1,FALSE) -> -28386 | E56: =VLOOKUP($D$2,Females!$A$3:$CN$68,'Chart data'!B56+1,FALSE) -> 30613
A57: 2034 | B57: 54 | C57: 53 | D57: =-VLOOKUP($D$2,Males!$A$3:$CN$68,'Chart data'!B57+1,FALSE) -> -28082 | E57: =VLOOKUP($D$2,Females!$A$3:$CN$68,'Chart data'!B57+1,FALSE) -> 30046
A58: 2035 | B58: 55 | C58: 54 | D58: =-VLOOKUP($D$2,Males!$A$3:$CN$68,'Chart data'!B58+1,FALSE) -> -28114 | E58: =VLOOKUP($D$2,Females!$A$3:$CN$68,'Chart data'!B58+1,FALSE) -> 30446
A59: 2036 | B59: 56 | C59: 55 | D59: =-VLOOKUP($D$2,Males!$A$3:$CN$68,'Chart data'!B59+1,FALSE) -> -28780 | E59: =VLOOKUP($D$2,Females!$A$3:$CN$68,'Chart data'!B59+1,FALSE) -> 31183
A60: 2037 | B60: 57 | C60: 56 | D60: =-VLOOKUP($D$2,Males!$A$3:$CN$68,'Chart data'!B60+1,FALSE) -> -27977 | E60: =VLOOKUP($D$2,Females!$A$3:$CN$68,'Chart data'!B60+1,FALSE) -> 30244
A61: 2038 | B61: 58 | C61: 57 | D61: =-VLOOKUP($D$2,Males!$A$3:$CN$68,'Chart data'!B61+1,FALSE) -> -28060 | E61: =VLOOKUP($D$2,Females!$A$3:$CN$68,'Chart data'!B61+1,FALSE) -> 30754
A62: 2039 | B62: 59 | C62: 58 | D62: =-VLOOKUP($D$2,Males!$A$3:$CN$68,'Chart data'!B62+1,FALSE) -> -27169 | E62: =VLOOKUP($D$2,Females!$A$3:$CN$68,'Chart data'!B62+1,FALSE) -> 30260
A63: 2040 | B63: 60 | C63: 59 | D63: =-VLOOKUP($D$2,Males!$A$3:$CN$68,'Chart data'!B63+1,FALSE) -> -28581 | E63: =VLOOKUP($D$2,Females!$A$3:$CN$68,'Chart data'!B63+1,FALSE) -> 31972
A64: 2041 | B64: 61 | C64: 60 | D64: =-VLOOKUP($D$2,Males!$A$3:$CN$68,'Chart data'!B64+1,FALSE) -> -28293 | E64: =VLOOKUP($D$2,Females!$A$3:$CN$68,'Chart data'!B64+1,FALSE) -> 33018
A65: 2042 | B65: 62 | C65: 61 | D65: =-VLOOKUP($D$2,Males!$A$3:$CN$68,'Chart data'!B65+1,FALSE) -> -29191 | E65: =VLOOKUP($D$2,Females!$A$3:$CN$68,'Chart data'!B65+1,FALSE) -> 34812
A66: 2043 | B66: 63 | C66: 62 | D66: =-VLOOKUP($D$2,Males!$A$3:$CN$68,'Chart data'!B66+1,FALSE) -> -20397 | E66: =VLOOKUP($D$2,Females!$A$3:$CN$68,'Chart data'!B66+1,FALSE) -> 25021
B67: 64 | C67: 63 | D67: =-VLOOKUP($D$2,Males!$A$3:$CN$68,'Chart data'!B67+1,FALSE) -> -19464 | E67: =VLOOKUP($D$2,Females!$A$3:$CN$68,'Chart data'!B67+1,FALSE) -> 23992
B68: 65 | C68: 64 | D68: =-VLOOKUP($D$2,Males!$A$3:$CN$68,'Chart data'!B68+1,FALSE) -> -20772 | E68: =VLOOKUP($D$2,Females!$A$3:$CN$68,'Chart data'!B68+1,FALSE) -> 25461
B69: 66 | C69: 65 | D69: =-VLOOKUP($D$2,Males!$A$3:$CN$68,'Chart data'!B69+1,FALSE) -> -21449 | E69: =VLOOKUP($D$2,Females!$A$3:$CN$68,'Chart data'!B69+1,FALSE) -> 27038
B70: 67 | C70: 66 | D70: =-VLOOKUP($D$2,Males!$A$3:$CN$68,'Chart data'!B70+1,FALSE) -> -22613 | E70: =VLOOKUP($D$2,Females!$A$3:$CN$68,'Chart data'!B70+1,FALSE) -> 29028
B71: 68 | C71: 67 | D71: =-VLOOKUP($D$2,Males!$A$3:$CN$68,'Chart data'!B71+1,FALSE) -> -22174 | E71: =VLOOKUP($D$2,Females!$A$3:$CN$68,'Chart data'!B71+1,FALSE) -> 28901
B72: 69 | C72: 68 | D72: =-VLOOKUP($D$2,Males!$A$3:$CN$68,'Chart data'!B72+1,FALSE) -> -21551 | E72: =VLOOKUP($D$2,Females!$A$3:$CN$68,'Chart data'!B72+1,FALSE) -> 27871
B73: 70 | C73: 69 | D73: =-VLOOKUP($D$2,Males!$A$3:$CN$68,'Chart data'!B73+1,FALSE) -> -20436 | E73: =VLOOKUP($D$2,Females!$A$3:$CN$68,'Chart data'!B73+1,FALSE) -> 27091
B74: 71 | C74: 70 | D74: =-VLOOKUP($D$2,Males!$A$3:$CN$68,'Chart data'!B74+1,FALSE) -> -19297 | E74: =VLOOKUP($D$2,Females!$A$3:$CN$68,'Chart data'!B74+1,FALSE) -> 26582
B75: 72 | C75: 71 | D75: =-VLOOKUP($D$2,Males!$A$3:$CN$68,'Chart data'!B75+1,FALSE) -> -18446 | E75: =VLOOKUP($D$2,Females!$A$3:$CN$68,'Chart data'!B75+1,FALSE) -> 26267
B76: 73 | C76: 72 | D76: =-VLOOKUP($D$2,Males!$A$3:$CN$68,'Chart data'!B76+1,FALSE) -> -17453 | E76: =VLOOKUP($D$2,Females!$A$3:$CN$68,'Chart data'!B76+1,FALSE) -> 25504
B77: 74 | C77: 73 | D77: =-VLOOKUP($D$2,Males!$A$3:$CN$68,'Chart data'!B77+1,FALSE) -> -16190 | E77: =VLOOKUP($D$2,Females!$A$3:$CN$68,'Chart data'!B77+1,FALSE) -> 24442
B78: 75 | C78: 74 | D78: =-VLOOKUP($D$2,Males!$A$3:$CN$68,'Chart data'!B78+1,FALSE) -> -14575 | E78: =VLOOKUP($D$2,Females!$A$3:$CN$68,'Chart data'!B78+1,FALSE) -> 22638
B79: 76 | C79: 75 | D79: =-VLOOKUP($D$2,Males!$A$3:$CN$68,'Chart data'!B79+1,FALSE) -> -13257 | E79: =VLOOKUP($D$2,Females!$A$3:$CN$68,'Chart data'!B79+1,FALSE) -> 22099
B80: 77 | C80: 76 | D80: =-VLOOKUP($D$2,Males!$A$3:$CN$68,'Chart data'!B80+1,FALSE) -> -11868 | E80: =VLOOKUP($D$2,Females!$A$3:$CN$68,'Chart data'!B80+1,FALSE) -> 20717
B81: 78 | C81: 77 | D81: =-VLOOKUP($D$2,Males!$A$3:$CN$68,'Chart data'!B81+1,FALSE) -> -10509 | E81: =VLOOKUP($D$2,Females!$A$3:$CN$68,'Chart data'!B81+1,FALSE) -> 19414
B82: 79 | C82: 78 | D82: =-VLOOKUP($D$2,Males!$A$3:$CN$68,'Chart data'!B82+1,FALSE) -> -9246 | E82: =VLOOKUP($D$2,Females!$A$3:$CN$68,'Chart data'!B82+1,FALSE) -> 17730
B83: 80 | C83: 79 | D83: =-VLOOKUP($D$2,Males!$A$3:$CN$68,'Chart data'!B83+1,FALSE) -> -7975 | E83: =VLOOKUP($D$2,Females!$A$3:$CN$68,'Chart data'!B83+1,FALSE) -> 16297
B84: 81 | C84: 80 | D84: =-VLOOKUP($D$2,Males!$A$3:$CN$68,'Chart data'!B84+1,FALSE) -> -6783 | E84: =VLOOKUP($D$2,Females!$A$3:$CN$68,'Chart data'!B84+1,FALSE) -> 15094
B85: 82 | C85: 81 | D85: =-VLOOKUP($D$2,Males!$A$3:$CN$68,'Chart data'!B85+1,FALSE) -> -5731 | E85: =VLOOKUP($D$2,Females!$A$3:$CN$68,'Chart data'!B85+1,FALSE) -> 13650
B86: 83 | C86: 82 | D86: =-VLOOKUP($D$2,Males!$A$3:$CN$68,'Chart data'!B86+1,FALSE) -> -4499 | E86: =VLOOKUP($D$2,Females!$A$3:$CN$68,'Chart data'!B86+1,FALSE) -> 11349
B87: 84 | C87: 83 | D87: =-VLOOKUP($D$2,Males!$A$3:$CN$68,'Chart data'!B87+1,FALSE) -> -3633 | E87: =VLOOKUP($D$2,Females!$A$3:$CN$68,'Chart data'!B87+1,FALSE) -> 10014
B88: 85 | C88: 84 | D88: =-VLOOKUP($D$2,Males!$A$3:$CN$68,'Chart data'!B88+1,FALSE) -> -3019 | E88: =VLOOKUP($D$2,Females!$A$3:$CN$68,'Chart data'!B88+1,FALSE) -> 8759
B89: 86 | C89: 85 | D89: =-VLOOKUP($D$2,Males!$A$3:$CN$68,'Chart data'!B89+1,FALSE) -> -2471 | E89: =VLOOKUP($D$2,Females!$A$3:$CN$68,'Chart data'!B89+1,FALSE) -> 7686
B90: 87 | C90: 86 | D90: =-VLOOKUP($D$2,Males!$A$3:$CN$68,'Chart data'!B90+1,FALSE) -> -2042 | E90: =VLOOKUP($D$2,Females!$A$3:$CN$68,'Chart data'!B90+1,FALSE) -> 6187
B91: 88 | C91: 87 | D91: =-VLOOKUP($D$2,Males!$A$3:$CN$68,'Chart data'!B91+1,FALSE) -> -1639 | E91: =VLOOKUP($D$2,Females!$A$3:$CN$68,'Chart data'!B91+1,FALSE) -> 5156
B92: 89 | C92: 88 | D92: =-VLOOKUP($D$2,Males!$A$3:$CN$68,'Chart data'!B92+1,FALSE) -> -1250 | E92: =VLOOKUP($D$2,Females!$A$3:$CN$68,'Chart data'!B92+1,FALSE) -> 4329
B93: 90 | C93: 89 | D93: =-VLOOKUP($D$2,Males!$A$3:$CN$68,'Chart data'!B93+1,FALSE) -> -968 | E93: =VLOOKUP($D$2,Females!$A$3:$CN$68,'Chart data'!B93+1,FALSE) -> 3371
B94: 91 | C94: 90+ | D94: =-VLOOKUP($D$2,Males!$A$3:$CN$68,'Chart data'!B94+1,FALSE) -> -2712 | E94: =VLOOKUP($D$2,Females!$A$3:$CN$68,'Chart data'!B94+1,FALSE) -> 10859
A96: © Crown Copyright 2019

Sheet Males
A1: Scotland | CP1: Scotland
A3: Males | B3: 0 | C3: 1 | D3: 2 | E3: 3 | F3: 4 | G3: 5 | H3: 6 | I3: 7 | J3: 8 | K3: 9 | L3: 10 | M3: 11 | N3: 12 | O3: 13 | P3: 14 | Q3: 15 | R3: 16 | S3: 17 | T3: 18 | U3: 19 | V3: 20 | W3: 21 | X3: 22 | Y3: 23 | Z3: 24 | AA3: 25 | AB3: 26 | AC3: 27 | AD3: 28 | AE3: 29 | AF3: 30 | AG3: 31 | AH3: 32 | AI3: 33 | AJ3: 34 | AK3: 35 | AL3: 36 | AM3: 37 | AN3: 38 | AO3: 39 | AP3: 40 | AQ3: 41 | AR3: 42 | AS3: 43 | AT3: 44 | AU3: 45 | AV3: 46 | AW3: 47 | AX3: 48 | AY3: 49 | AZ3: 50 | BA3: 51 | BB3: 52 | BC3: 53 | BD3: 54 | BE3: 55 | BF3: 56 | BG3: 57 | BH3: 58 | BI3: 59 | BJ3: 60 | BK3: 61 | BL3: 62 | BM3: 63 | BN3: 64 | BO3: 65 | BP3: 66 | BQ3: 67 | BR3: 68 | BS3: 69 | BT3: 70 | BU3: 71 | BV3: 72 | BW3: 73 | BX3: 74 | BY3: 75 | BZ3: 76 | CA3: 77 | CB3: 78 | CC3: 79 | CD3: 80 | CE3: 81 | CF3: 82 | CG3: 83 | CH3: 84 | CI3: 85 | CJ3: 86 | CK3: 87 | CL3: 88 | CM3: 89 | CN3: 90+ | CP3: Males
A4: 1981 | B4: 35263 | C4: 34142 | D4: 33070 | E4: 30363 | F4: 30380 | G4: 33216 | H4: 33496 | I4: 34533 | J4: 37219 | K4: 39689 | L4: 42488 | M4: 42650 | N4: 44582 | O4: 45545 | P4: 46819 | Q4: 46229 | R4: 48685 | S4: 47385 | T4: 46227 | U4: 45619 | V4: 44538 | W4: 43882 | X4: 42370 | Y4: 40591 | Z4: 39140 | AA4: 38160 | AB4: 36135 | AC4: 35827 | AD4: 35202 | AE4: 33821 | AF4: 34815 | AG4: 35130 | AH4: 36297 | AI4: 37814 | AJ4: 41185 | AK4: 31863 | AL4: 30567 | AM4: 31809 | AN4: 31090 | AO4: 29290 | AP4: 27789 | AQ4: 28926 | AR4: 29120 | AS4: 29259 | AT4: 28523 | AU4: 28503 | AV4: 28312 | AW4: 28173 | AX4: 27904 | AY4: 28817 | AZ4: 28804 | BA4: 28552 | BB4: 28386 | BC4: 28082 | BD4: 28114 | BE4: 28780 | BF4: 27977 | BG4: 28060 | BH4: 27169 | BI4: 28581 | BJ4: 28293 | BK4: 29191 | BL4: 20397 | BM4: 19464 | BN4: 20772 | BO4: 21449 | BP4: 22613 | BQ4: 22174 | BR4: 21551 | BS4: 20436 | BT4: 19297 | BU4: 18446 | BV4: 17453 | BW4: 16190 | BX4: 14575 | BY4: 13257 | BZ4: 11868 | CA4: 10509 | CB4: 9246 | CC4: 7975 | CD4: 6783 | CE4: 5731 | CF4: 4499 | CG4: 3633 | CH4: 3019 | CI4: 2471 | CJ4: 2042 | CK4: 1639 | CL4: 1250 | CM4: 968 | CN4: 2712 | CP4: 1981
A5: 1982 | B5: 34004 | C5: 35011 | D5: 33963 | E5: 32932 | F5: 30336 | G5: 30346 | H5: 33124 | I5: 33369 | J5: 34367 | K5: 37043 | L5: 39537 | M5: 42220 | N5: 42438 | O5: 44348 | P5: 45380 | Q5: 46606 | R5: 45715 | S5: 48201 | T5: 47000 | U5: 45953 | V5: 45553 | W5: 44261 | X5: 43419 | Y5: 41711 | Z5: 39956 | AA5: 38512 | AB5: 37744 | AC5: 35821 | AD5: 35555 | AE5: 34855 | AF5: 33562 | AG5: 34565 | AH5: 34951 | AI5: 36031 | AJ5: 37577 | AK5: 40943 | AL5: 31628 | AM5: 30396 | AN5: 31556 | AO5: 30938 | AP5: 29149 | AQ5: 27644 | AR5: 28755 | AS5: 28997 | AT5: 29127 | AU5: 28315 | AV5: 28319 | AW5: 28117 | AX5: 27934 | AY5: 27635 | AZ5: 28561 | BA5: 28569 | BB5: 28281 | BC5: 28069 | BD5: 27759 | BE5: 27759 | BF5: 28381 | BG5: 27485 | BH5: 27568 | BI5: 26629 | BJ5: 28013 | BK5: 27644 | BL5: 28494 | BM5: 19818 | BN5: 18881 | BO5: 20130 | BP5: 20697 | BQ5: 21749 | BR5: 21205 | BS5: 20504 | BT5: 19381 | BU5: 18215 | BV5: 17289 | BW5: 16254 | BX5: 15013 | BY5: 13388 | BZ5: 12061 | CA5: 10741 | CB5: 9445 | CC5: 8225 | CD5: 7007 | CE5: 5885 | CF5: 4915 | CG5: 3786 | CH5: 3029 | CI5: 2486 | CJ5: 1985 | CK5: 1642 | CL5: 1291 | CM5: 950 | CN5: 2732 | CP5: 1982
A6: 1983 | B6: 33411 | C6: 33690 | D6: 34821 | E6: 33747 | F6: 32788 | G6: 30258 | H6: 30262 | I6: 33050 | J6: 33233 | K6: 34266 | L6: 36989 | M6: 39422 | N6: 42012 | O6: 42233 | P6: 44151 | Q6: 45118 | R6: 46159 | S6: 45109 | T6: 47550 | U6: 46525 | V6: 45782 | W6: 45271 | X6: 43890 | Y6: 42783 | Z6: 41043 | AA6: 39450 | AB6: 37940 | AC6: 37513 | AD6: 35416 | AE6: 35188 | AF6: 34596 | AG6: 33354 | AH6: 34224 | AI6: 34678 | AJ6: 35763 | AK6: 37279 | AL6: 40738 | AM6: 31423 | AN6: 30229 | AO6: 31297 | AP6: 30804 | AQ6: 28961 | AR6: 27510 | AS6: 28596 | AT6: 28895 | AU6: 28934 | AV6: 28239 | AW6: 28126 | AX6: 27908 | AY6: 27769 | AZ6: 27388 | BA6: 28304 | BB6: 28315 | BC6: 27954 | BD6: 27754 | BE6: 27367 | BF6: 27362 | BG6: 27888 | BH6: 27005 | BI6: 27000 | BJ6: 26018 | BK6: 27420 | BL6: 26937 | BM6: 27760 | BN6: 19191 | BO6: 18245 | BP6: 19414 | BQ6: 19899 | BR6: 20856 | BS6: 20241 | BT6: 19484 | BU6: 18294 | BV6: 17117 | BW6: 16154 | BX6: 15088 | BY6: 13822 | BZ6: 12259 | CA6: 10931 | CB6: 9659 | CC6: 8461 | CD6: 7242 | CE6: 6128 | CF6: 5100 | CG6: 4194 | CH6: 3157 | CI6: 2532 | CJ6: 2049 | CK6: 1609 | CL6: 1318 | CM6: 1002 | CN6: 2764 | CP6: 1983
A7: 1984 | B7: 32620 | C7: 33177 | D7: 33516 | E7: 34695 | F7: 33680 | G7: 32746 | H7: 30185 | I7: 30209 | J7: 32935 | K7: 33216 | L7: 34196 | M7: 36878 | N7: 39307 | O7: 41866 | P7: 42053 | Q7: 43982 | R7: 44744 | S7: 45717 | T7: 44629 | U7: 47210 | V7: 46472 | W7: 45559 | X7: 44882 | Y7: 43311 | Z7: 42279 | AA7: 40631 | AB7: 39001 | AC7: 37794 | AD7: 37217 | AE7: 35229 | AF7: 34927 | AG7: 34450 | AH7: 33075 | AI7: 34082 | AJ7: 34521 | AK7: 35644 | AL7: 37104 | AM7: 40570 | AN7: 31296 | AO7: 30144 | AP7: 31251 | AQ7: 30681 | AR7: 28870 | AS7: 27395 | AT7: 28511 | AU7: 28723 | AV7: 28874 | AW7: 28108 | AX7: 27947 | AY7: 27714 | AZ7: 27593 | BA7: 27196 | BB7: 28088 | BC7: 28068 | BD7: 27662 | BE7: 27474 | BF7: 26984 | BG7: 26964 | BH7: 27427 | BI7: 26578 | BJ7: 26512 | BK7: 25476 | BL7: 26813 | BM7: 26223 | BN7: 27038 | BO7: 18626 | BP7: 17633 | BQ7: 18656 | BR7: 19098 | BS7: 19904 | BT7: 19249 | BU7: 18476 | BV7: 17224 | BW7: 16042 | BX7: 15042 | BY7: 13918 | BZ7: 12635 | CA7: 11108 | CB7: 9857 | CC7: 8638 | CD7: 7474 | CE7: 6347 | CF7: 5340 | CG7: 4376 | CH7: 3553 | CI7: 2627 | CJ7: 2071 | CK7: 1658 | CL7: 1266 | CM7: 1036 | CN7: 2850 | CP7: 1984
A8: 1985 | B8: 33374 | C8: 32323 | D8: 32887 | E8: 33291 | F8: 34533 | G8: 33537 | H8: 32727 | I8: 30144 | J8: 30122 | K8: 32822 | L8: 33125 | M8: 34089 | N8: 36778 | O8: 39147 | P8: 41703 | Q8: 41858 | R8: 43620 | S8: 44329 | T8: 45183 | U8: 44188 | V8: 46975 | W8: 46033 | X8: 44950 | Y8: 44090 | Z8: 42667 | AA8: 41661 | AB8: 40096 | AC8: 38708 | AD8: 37498 | AE8: 36916 | AF8: 35033 | AG8: 34725 | AH8: 34347 | AI8: 32875 | AJ8: 33930 | AK8: 34412 | AL8: 35502 | AM8: 36952 | AN8: 40436 | AO8: 31231 | AP8: 30116 | AQ8: 31197 | AR8: 30610 | AS8: 28796 | AT8: 27279 | AU8: 28344 | AV8: 28610 | AW8: 28751 | AX8: 27972 | AY8: 27817 | AZ8: 27530 | BA8: 27433 | BB8: 27005 | BC8: 27849 | BD8: 27837 | BE8: 27370 | BF8: 27166 | BG8: 26555 | BH8: 26575 | BI8: 27019 | BJ8: 26066 | BK8: 25949 | BL8: 24918 | BM8: 26177 | BN8: 25507 | BO8: 26257 | BP8: 17967 | BQ8: 16950 | BR8: 17941 | BS8: 18298 | BT8: 18917 | BU8: 18214 | BV8: 17368 | BW8: 16085 | BX8: 14914 | BY8: 13918 | BZ8: 12779 | CA8: 11524 | CB8: 10037 | CC8: 8831 | CD8: 7679 | CE8: 6583 | CF8: 5533 | CG8: 4632 | CH8: 3734 | CI8: 2984 | CJ8: 2144 | CK8: 1670 | CL8: 1323 | CM8: 977 | CN8: 2990 | CP8: 1985
A9: 1986 | B9: 34047 | C9: 33140 | D9: 32140 | E9: 32757 | F9: 33223 | G9: 34388 | H9: 33443 | I9: 32608 | J9: 30131 | K9: 30083 | L9: 32700 | M9: 33010 | N9: 33949 | O9: 36681 | P9: 39011 | Q9: 41506 | R9: 41584 | S9: 43239 | T9: 43777 | U9: 44893 | V9: 44078 | W9: 46513 | X9: 45300 | Y9: 44130 | Z9: 43414 | AA9: 42145 | AB9: 41040 | AC9: 39771 | AD9: 38357 | AE9: 37085 | AF9: 36555 | AG9: 34781 | AH9: 34488 | AI9: 34092 | AJ9: 32568 | AK9: 33786 | AL9: 34151 | AM9: 35299 | AN9: 36721 | AO9: 40191 | AP9: 31082 | AQ9: 29960 | AR9: 31073 | AS9: 30527 | AT9: 28688 | AU9: 27086 | AV9: 28209 | AW9: 28429 | AX9: 28520 | AY9: 27823 | AZ9: 27606 | BA9: 27320 | BB9: 27174 | BC9: 26737 | BD9: 27533 | BE9: 27516 | BF9: 27043 | BG9: 26707 | BH9: 26104 | BI9: 26097 | BJ9: 26518 | BK9: 25570 | BL9: 25350 | BM9: 24248 | BN9: 25468 | BO9: 24704 | BP9: 25423 | BQ9: 17238 | BR9: 16239 | BS9: 17132 | BT9: 17396 | BU9: 17906 | BV9: 17136 | BW9: 16284 | BX9: 14972 | BY9: 13749 | BZ9: 12761 | CA9: 11593 | CB9: 10343 | CC9: 8913 | CD9: 7820 | CE9: 6716 | CF9: 5709 | CG9: 4754 | CH9: 3897 | CI9: 3086 | CJ9: 2424 | CK9: 1701 | CL9: 1303 | CM9: 1009 | CN9: 2940 | CP9: 1986
A10: 1987 | B10: 33500 | C10: 33806 | D10: 32888 | E10: 31927 | F10: 32568 | G10: 33070 | H10: 34275 | I10: 33282 | J10: 32559 | K10: 30045 | L10: 30062 | M10: 32601 | N10: 32862 | O10: 33858 | P10: 36534 | Q10: 38901 | R10: 41333 | S10: 41193 | T10: 42736 | U10: 43421 | V10: 44738 | W10: 43682 | X10: 45842 | Y10: 44364 | Z10: 43265 | AA10: 42581 | AB10: 41630 | AC10: 40611 | AD10: 39288 | AE10: 37800 | AF10: 36622 | AG10: 36242 | AH10: 34475 | AI10: 34254 | AJ10: 33706 | AK10: 32310 | AL10: 33557 | AM10: 33985 | AN10: 35089 | AO10: 36566 | AP10: 39961 | AQ10: 30955 | AR10: 29811 | AS10: 30940 | AT10: 30379 | AU10: 28471 | AV10: 26997 | AW10: 28056 | AX10: 28275 | AY10: 28328 | AZ10: 27642 | BA10: 27420 | BB10: 27128 | BC10: 26907 | BD10: 26467 | BE10: 27225 | BF10: 27154 | BG10: 26661 | BH10: 26360 | BI10: 25686 | BJ10: 25687 | BK10: 26062 | BL10: 25039 | BM10: 24746 | BN10: 23596 | BO10: 24747 | BP10: 23891 | BQ10: 24597 | BR10: 16561 | BS10: 15581 | BT10: 16394 | BU10: 16518 | BV10: 16949 | BW10: 16094 | BX10: 15189 | BY10: 13914 | BZ10: 12679 | CA10: 11664 | CB10: 10483 | CC10: 9266 | CD10: 7934 | CE10: 6911 | CF10: 5870 | CG10: 4979 | CH10: 4068 | CI10: 3283 | CJ10: 2540 | CK10: 1961 | CL10: 1342 | CM10: 1022 | CN10: 2985 | CP10: 1987
A11: 1988 | B11: 34131 | C11: 33098 | D11: 33522 | E11: 32581 | F11: 31678 | G11: 32337 | H11: 32915 | I11: 34136 | J11: 33118 | K11: 32537 | L11: 29946 | M11: 30016 | N11: 32422 | O11: 32715 | P11: 33738 | Q11: 36370 | R11: 38654 | S11: 40827 | T11: 40604 | U11: 42313 | V11: 43125 | W11: 44118 | X11: 42694 | Y11: 44397 | Z11: 43085 | AA11: 42068 | AB11: 41493 | AC11: 40845 | AD11: 39942 | AE11: 38624 | AF11: 37191 | AG11: 36137 | AH11: 35900 | AI11: 34094 | AJ11: 33869 | AK11: 33395 | AL11: 31995 | AM11: 33280 | AN11: 33770 | AO11: 34836 | AP11: 36350 | AQ11: 39757 | AR11: 30841 | AS11: 29633 | AT11: 30847 | AU11: 30110 | AV11: 28281 | AW11: 26797 | AX11: 27872 | AY11: 28086 | AZ11: 28110 | BA11: 27454 | BB11: 27233 | BC11: 26883 | BD11: 26633 | BE11: 26210 | BF11: 26934 | BG11: 26819 | BH11: 26333 | BI11: 25993 | BJ11: 25256 | BK11: 25235 | BL11: 25590 | BM11: 24551 | BN11: 24136 | BO11: 22960 | BP11: 23980 | BQ11: 23071 | BR11: 23656 | BS11: 15853 | BT11: 14877 | BU11: 15612 | BV11: 15596 | BW11: 15955 | BX11: 15053 | BY11: 14119 | BZ11: 12858 | CA11: 11641 | CB11: 10638 | CC11: 9457 | CD11: 8268 | CE11: 7031 | CF11: 6035 | CG11: 5065 | CH11: 4258 | CI11: 3448 | CJ11: 2734 | CK11: 2069 | CL11: 1526 | CM11: 1040 | CN11: 3059 | CP11: 1988
A12: 1989 | B12: 32885 | C12: 34156 | D12: 33129 | E12: 33597 | F12: 32617 | G12: 31753 | H12: 32376 | I12: 32964 | J12: 34200 | K12: 33191 | L12: 32602 | M12: 30054 | N12: 30083 | O12: 32417 | P12: 32719 | Q12: 33696 | R12: 36212 | S12: 38222 | T12: 40295 | U12: 40217 | V12: 42004 | W12: 42623 | X12: 43389 | Y12: 41610 | Z12: 43254 | AA12: 42131 | AB12: 41211 | AC12: 41025 | AD12: 40347 | AE12: 39655 | AF12: 38285 | AG12: 36894 | AH12: 35909 | AI12: 35709 | AJ12: 33928 | AK12: 33819 | AL12: 33311 | AM12: 31882 | AN12: 33224 | AO12: 33650 | AP12: 34754 | AQ12: 36330 | AR12: 39748 | AS12: 30840 | AT12: 29623 | AU12: 30723 | AV12: 30021 | AW12: 28219 | AX12: 26703 | AY12: 27808 | AZ12: 27956 | BA12: 27962 | BB12: 27314 | BC12: 27111 | BD12: 26743 | BE12: 26430 | BF12: 25983 | BG12: 26661 | BH12: 26571 | BI12: 26047 | BJ12: 25659 | BK12: 24929 | BL12: 24797 | BM12: 25128 | BN12: 24028 | BO12: 23550 | BP12: 22382 | BQ12: 23238 | BR12: 22330 | BS12: 22759 | BT12: 15179 | BU12: 14201 | BV12: 14836 | BW12: 14737 | BX12: 14969 | BY12: 14025 | BZ12: 13102 | CA12: 11824 | CB12: 10641 | CC12: 9694 | CD12: 8540 | CE12: 7368 | CF12: 6158 | CG12: 5204 | CH12: 4359 | CI12: 3594 | CJ12: 2888 | CK12: 2250 | CL12: 1664 | CM12: 1186 | CN12: 3154 | CP12: 1989
A13: 1990 | B13: 32541 | C13: 32794 | D13: 34184 | E13: 33208 | F13: 33647 | G13: 32657 | H13: 31822 | I13: 32460 | J13: 33045 | K13: 34281 | L13: 33296 | M13: 32674 | N13: 30169 | O13: 30150 | P13: 32373 | Q13: 32735 | R13: 33515 | S13: 35965 | T13: 37910 | U13: 40285 | V13: 40299 | W13: 41800 | X13: 42132 | Y13: 42574 | Z13: 40901 | AA13: 42443 | AB13: 41565 | AC13: 40834 | AD13: 40731 | AE13: 40188 | AF13: 39530 | AG13: 38251 | AH13: 36828 | AI13: 35747 | AJ13: 35653 | AK13: 33946 | AL13: 33815 | AM13: 33297 | AN13: 31866 | AO13: 33202 | AP13: 33596 | AQ13: 34779 | AR13: 36338 | AS13: 39688 | AT13: 30835 | AU13: 29527 | AV13: 30681 | AW13: 29883 | AX13: 28083 | AY13: 26571 | AZ13: 27713 | BA13: 27840 | BB13: 27839 | BC13: 27160 | BD13: 26960 | BE13: 26561 | BF13: 26213 | BG13: 25697 | BH13: 26397 | BI13: 26236 | BJ13: 25651 | BK13: 25310 | BL13: 24452 | BM13: 24288 | BN13: 24595 | BO13: 23383 | BP13: 22863 | BQ13: 21640 | BR13: 22406 | BS13: 21454 | BT13: 21710 | BU13: 14453 | BV13: 13434 | BW13: 13953 | BX13: 13785 | BY13: 13899 | BZ13: 12907 | CA13: 11984 | CB13: 10711 | CC13: 9574 | CD13: 8660 | CE13: 7541 | CF13: 6409 | CG13: 5253 | CH13: 4425 | CI13: 3603 | CJ13: 2979 | CK13: 2263 | CL13: 1821 | CM13: 1278 | CN13: 3271 | CP13: 1990
A14: 1991 | B14: 33658 | C14: 32227 | D14: 32676 | E14: 34103 | F14: 33143 | G14: 33613 | H14: 32643 | I14: 31830 | J14: 32459 | K14: 33041 | L14: 34304 | M14: 33322 | N14: 32668 | O14: 30202 | P14: 30173 | Q14: 32327 | R14: 32486 | S14: 33200 | T14: 35570 | U14: 37894 | V14: 40461 | W14: 40199 | X14: 41367 | Y14: 41563 | Z14: 41959 | AA14: 40329 | AB14: 41802 | AC14: 41163 | AD14: 40471 | AE14: 40331 | AF14: 39901 | AG14: 39365 | AH14: 38077 | AI14: 36596 | AJ14: 35652 | AK14: 35592 | AL14: 33801 | AM14: 33778 | AN14: 33201 | AO14: 31753 | AP14: 33156 | AQ14: 33549 | AR14: 34710 | AS14: 36291 | AT14: 39652 | AU14: 30680 | AV14: 29464 | AW14: 30572 | AX14: 29755 | AY14: 27949 | AZ14: 26423 | BA14: 27567 | BB14: 27694 | BC14: 27648 | BD14: 26976 | BE14: 26787 | BF14: 26308 | BG14: 25900 | BH14: 25450 | BI14: 26068 | BJ14: 25890 | BK14: 25270 | BL14: 24900 | BM14: 23920 | BN14: 23761 | BO14: 23998 | BP14: 22727 | BQ14: 22094 | BR14: 20907 | BS14: 21492 | BT14: 20567 | BU14: 20673 | BV14: 13693 | BW14: 12701 | BX14: 13068 | BY14: 12853 | BZ14: 12944 | CA14: 11874 | CB14: 11002 | CC14: 9724 | CD14: 8590 | CE14: 7696 | CF14: 6601 | CG14: 5592 | CH14: 4496 | CI14: 3776 | CJ14: 3046 | CK14: 2489 | CL14: 1853 | CM14: 1490 | CN14: 3329 | CP14: 1991
A15: 1992 | B15: 33922 | C15: 33472 | D15: 32198 | E15: 32637 | F15: 34030 | G15: 33121 | H15: 33544 | I15: 32646 | J15: 31824 | K15: 32306 | L15: 32900 | M15: 34217 | N15: 33237 | O15: 32502 | P15: 29960 | Q15: 29897 | R15: 31944 | S15: 32164 | T15: 32837 | U15: 36129 | V15: 38134 | W15: 40289 | X15: 39703 | Y15: 40597 | Z15: 40788 | AA15: 41448 | AB15: 39856 | AC15: 41495 | AD15: 40917 | AE15: 40120 | AF15: 40049 | AG15: 39672 | AH15: 39076 | AI15: 37902 | AJ15: 36470 | AK15: 35635 | AL15: 35516 | AM15: 33756 | AN15: 33774 | AO15: 33204 | AP15: 31819 | AQ15: 33128 | AR15: 33543 | AS15: 34740 | AT15: 36280 | AU15: 39522 | AV15: 30645 | AW15: 29401 | AX15: 30440 | AY15: 29679 | AZ15: 27825 | BA15: 26350 | BB15: 27444 | BC15: 27549 | BD15: 27517 | BE15: 26789 | BF15: 26579 | BG15: 26064 | BH15: 25654 | BI15: 25129 | BJ15: 25721 | BK15: 25459 | BL15: 24803 | BM15: 24383 | BN15: 23366 | BO15: 23129 | BP15: 23302 | BQ15: 21959 | BR15: 21287 | BS15: 20044 | BT15: 20520 | BU15: 19601 | BV15: 19606 | BW15: 12913 | BX15: 11955 | BY15: 12099 | BZ15: 11929 | CA15: 11955 | CB15: 10870 | CC15: 9981 | CD15: 8729 | CE15: 7667 | CF15: 6785 | CG15: 5687 | CH15: 4801 | CI15: 3808 | CJ15: 3166 | CK15: 2518 | CL15: 2026 | CM15: 1514 | CN15: 3704 | CP15: 1992
A16: 1993 | B16: 32624 | C16: 33843 | D16: 33430 | E16: 32291 | F16: 32654 | G16: 34040 | H16: 33170 | I16: 33582 | J16: 32747 | K16: 31830 | L16: 32190 | M16: 32809 | N16: 34152 | O16: 33181 | P16: 32352 | Q16: 29746 | R16: 29604 | S16: 31600 | T16: 31772 | U16: 33546 | V16: 36328 | W16: 38106 | X16: 39963 | Y16: 39220 | Z16: 40034 | AA16: 40357 | AB16: 41145 | AC16: 39641 | AD16: 41283 | AE16: 40678 | AF16: 40002 | AG16: 40024 | AH16: 39590 | AI16: 38984 | AJ16: 37871 | AK16: 36509 | AL16: 35689 | AM16: 35481 | AN16: 33791 | AO16: 33846 | AP16: 33275 | AQ16: 31867 | AR16: 33143 | AS16: 33599 | AT16: 34743 | AU16: 36238 | AV16: 39509 | AW16: 30630 | AX16: 29328 | AY16: 30419 | AZ16: 29593 | BA16: 27734 | BB16: 26264 | BC16: 27334 | BD16: 27413 | BE16: 27372 | BF16: 26609 | BG16: 26363 | BH16: 25776 | BI16: 25348 | BJ16: 24780 | BK16: 25318 | BL16: 24998 | BM16: 24264 | BN16: 23800 | BO16: 22777 | BP16: 22463 | BQ16: 22520 | BR16: 21152 | BS16: 20445 | BT16: 19142 | BU16: 19559 | BV16: 18653 | BW16: 18495 | BX16: 12096 | BY16: 11061 | BZ16: 11157 | CA16: 10969 | CB16: 10890 | CC16: 9848 | CD16: 8984 | CE16: 7755 | CF16: 6746 | CG16: 5934 | CH16: 4920 | CI16: 4070 | CJ16: 3186 | CK16: 2603 | CL16: 2028 | CM16: 1608 | CN16: 3936 | CP16: 1993
A17: 1994 | B17: 32108 | C17: 32605 | D17: 33837 | E17: 33474 | F17: 32402 | G17: 32700 | H17: 34107 | I17: 33263 | J17: 33670 | K17: 32920 | L17: 31850 | M17: 32168 | N17: 32675 | O17: 34132 | P17: 33176 | Q17: 32250 | R17: 29555 | S17: 29331 | T17: 31405 | U17: 32578 | V17: 33973 | W17: 36332 | X17: 37911 | Y17: 39375 | Z17: 38769 | AA17: 39633 | AB17: 39979 | AC17: 41016 | AD17: 39506 | AE17: 41123 | AF17: 40524 | AG17: 40025 | AH17: 39974 | AI17: 39509 | AJ17: 38911 | AK17: 37883 | AL17: 36597 | AM17: 35821 | AN17: 35498 | AO17: 33837 | AP17: 33964 | AQ17: 33284 | AR17: 31994 | AS17: 33171 | AT17: 33685 | AU17: 34759 | AV17: 36251 | AW17: 39452 | AX17: 30627 | AY17: 29270 | AZ17: 30352 | BA17: 29538 | BB17: 27654 | BC17: 26134 | BD17: 27208 | BE17: 27236 | BF17: 27155 | BG17: 26356 | BH17: 26114 | BI17: 25498 | BJ17: 25010 | BK17: 24432 | BL17: 24861 | BM17: 24477 | BN17: 23682 | BO17: 23204 | BP17: 22055 | BQ17: 21708 | BR17: 21682 | BS17: 20282 | BT17: 19598 | BU17: 18247 | BV17: 18549 | BW17: 17669 | BX17: 17391 | BY17: 11250 | BZ17: 10278 | CA17: 10300 | CB17: 10038 | CC17: 9870 | CD17: 8836 | CE17: 8043 | CF17: 6799 | CG17: 5863 | CH17: 5045 | CI17: 4204 | CJ17: 3420 | CK17: 2612 | CL17: 2098 | CM17: 1613 | CN17: 4122 | CP17: 1994
A18: 1995 | B18: 30808 | C18: 31935 | D18: 32482 | E18: 33794 | F18: 33494 | G18: 32398 | H18: 32626 | I18: 34064 | J18: 33302 | K18: 33691 | L18: 32981 | M18: 31850 | N18: 32061 | O18: 32493 | P18: 33998 | Q18: 33110 | R18: 32058 | S18: 29270 | T18: 29096 | U18: 32311 | V18: 32835 | W18: 33878 | X18: 35850 | Y18: 37189 | Z18: 38549 | AA18: 38128 | AB18: 39128 | AC18: 39682 | AD18: 40715 | AE18: 39201 | AF18: 40851 | AG18: 40309 | AH18: 39784 | AI18: 39852 | AJ18: 39214 | AK18: 38707 | AL18: 37790 | AM18: 36577 | AN18: 35816 | AO18: 35455 | AP18: 33922 | AQ18: 33912 | AR18: 33248 | AS18: 32034 | AT18: 33171 | AU18: 33606 | AV18: 34767 | AW18: 36182 | AX18: 39354 | AY18: 30548 | AZ18: 29207 | BA18: 30257 | BB18: 29431 | BC18: 27497 | BD18: 25969 | BE18: 27055 | BF18: 26989 | BG18: 26900 | BH18: 26095 | BI18: 25847 | BJ18: 25221 | BK18: 24623 | BL18: 24041 | BM18: 24368 | BN18: 23928 | BO18: 23117 | BP18: 22612 | BQ18: 21327 | BR18: 20967 | BS18: 20932 | BT18: 19437 | BU18: 18768 | BV18: 17343 | BW18: 17522 | BX18: 16687 | BY18: 16355 | BZ18: 10532 | CA18: 9452 | CB18: 9464 | CC18: 9197 | CD18: 8910 | CE18: 7957 | CF18: 7176 | CG18: 5961 | CH18: 5106 | CI18: 4306 | CJ18: 3565 | CK18: 2880 | CL18: 2146 | CM18: 1706 | CN18: 4424 | CP18: 1995
A19: 1996 | B19: 30016 | C19: 30705 | D19: 31747 | E19: 32413 | F19: 33630 | G19: 33455 | H19: 32381 | I19: 32600 | J19: 33979 | K19: 33259 | L19: 33602 | M19: 32967 | N19: 31757 | O19: 31869 | P19: 32312 | Q19: 33876 | R19: 32901 | S19: 31740 | T19: 28930 | U19: 29860 | V19: 32449 | W19: 32627 | X19: 33257 | Y19: 34890 | Z19: 36237 | AA19: 37792 | AB19: 37415 | AC19: 38638 | AD19: 39185 | AE19: 40246 | AF19: 38835 | AG19: 40512 | AH19: 39971 | AI19: 39624 | AJ19: 39572 | AK19: 39019 | AL19: 38427 | AM19: 37594 | AN19: 36447 | AO19: 35652 | AP19: 35318 | AQ19: 33843 | AR19: 33818 | AS19: 33183 | AT19: 32000 | AU19: 33056 | AV19: 33522 | AW19: 34661 | AX19: 36049 | AY19: 39178 | AZ19: 30411 | BA19: 29104 | BB19: 30096 | BC19: 29228 | BD19: 27352 | BE19: 25788 | BF19: 26788 | BG19: 26691 | BH19: 26638 | BI19: 25767 | BJ19: 25518 | BK19: 24886 | BL19: 24186 | BM19: 23553 | BN19: 23845 | BO19: 23337 | BP19: 22465 | BQ19: 21918 | BR19: 20614 | BS19: 20118 | BT19: 20036 | BU19: 18540 | BV19: 17821 | BW19: 16414 | BX19: 16515 | BY19: 15684 | BZ19: 15264 | CA19: 9742 | CB19: 8674 | CC19: 8595 | CD19: 8281 | CE19: 7978 | CF19: 7056 | CG19: 6254 | CH19: 5172 | CI19: 4374 | CJ19: 3666 | CK19: 2947 | CL19: 2381 | CM19: 1682 | CN19: 4625 | CP19: 1996
A20: 1997 | B20: 30648 | C20: 29887 | D20: 30576 | E20: 31552 | F20: 32235 | G20: 33523 | H20: 33454 | I20: 32455 | J20: 32576 | K20: 33899 | L20: 33268 | M20: 33562 | N20: 33029 | O20: 31721 | P20: 31698 | Q20: 32101 | R20: 33644 | S20: 32577 | T20: 31400 | U20: 29713 | V20: 29963 | W20: 32152 | X20: 31926 | Y20: 32166 | Z20: 33917 | AA20: 35387 | AB20: 37073 | AC20: 36751 | AD20: 38170 | AE20: 38749 | AF20: 39853 | AG20: 38508 | AH20: 40227 | AI20: 39687 | AJ20: 39435 | AK20: 39408 | AL20: 38815 | AM20: 38177 | AN20: 37418 | AO20: 36380 | AP20: 35605 | AQ20: 35254 | AR20: 33775 | AS20: 33768 | AT20: 33163 | AU20: 31969 | AV20: 32941 | AW20: 33390 | AX20: 34585 | AY20: 35909 | AZ20: 39050 | BA20: 30328 | BB20: 28954 | BC20: 29916 | BD20: 29046 | BE20: 27174 | BF20: 25557 | BG20: 26523 | BH20: 26416 | BI20: 26393 | BJ20: 25441 | BK20: 25198 | BL20: 24531 | BM20: 23785 | BN20: 23038 | BO20: 23239 | BP20: 22726 | BQ20: 21827 | BR20: 21224 | BS20: 19924 | BT20: 19298 | BU20: 19192 | BV20: 17673 | BW20: 16844 | BX20: 15463 | BY20: 15531 | BZ20: 14636 | CA20: 14167 | CB20: 9032 | CC20: 7869 | CD20: 7800 | CE20: 7403 | CF20: 7075 | CG20: 6193 | CH20: 5437 | CI20: 4424 | CJ20: 3681 | CK20: 3081 | CL20: 2455 | CM20: 1902 | CN20: 4837 | CP20: 1997
A21: 1998 | B21: 29525 | C21: 30540 | D21: 29868 | E21: 30533 | F21: 31452 | G21: 32147 | H21: 33414 | I21: 33414 | J21: 32510 | K21: 32519 | L21: 33869 | M21: 33256 | N21: 33479 | O21: 33065 | P21: 31676 | Q21: 31551 | R21: 31753 | S21: 33307 | T21: 32304 | U21: 32327 | V21: 29928 | W21: 29677 | X21: 31531 | Y21: 31012 | Z21: 31233 | AA21: 33097 | AB21: 34547 | AC21: 36491 | AD21: 36264 | AE21: 37687 | AF21: 38327 | AG21: 39562 | AH21: 38273 | AI21: 39971 | AJ21: 39421 | AK21: 39307 | AL21: 39317 | AM21: 38580 | AN21: 37937 | AO21: 37300 | AP21: 36375 | AQ21: 35613 | AR21: 35199 | AS21: 33708 | AT21: 33708 | AU21: 33095 | AV21: 31953 | AW21: 32872 | AX21: 33371 | AY21: 34519 | AZ21: 35806 | BA21: 38899 | BB21: 30220 | BC21: 28836 | BD21: 29786 | BE21: 28919 | BF21: 26921 | BG21: 25370 | BH21: 26321 | BI21: 26174 | BJ21: 26161 | BK21: 25105 | BL21: 24868 | BM21: 24111 | BN21: 23363 | BO21: 22595 | BP21: 22686 | BQ21: 22133 | BR21: 21190 | BS21: 20510 | BT21: 19187 | BU21: 18517 | BV21: 18298 | BW21: 16839 | BX21: 15936 | BY21: 14511 | BZ21: 14495 | CA21: 13590 | CB21: 13096 | CC21: 8311 | CD21: 7179 | CE21: 7004 | CF21: 6584 | CG21: 6261 | CH21: 5458 | CI21: 4703 | CJ21: 3815 | CK21: 3102 | CL21: 2549 | CM21: 1997 | CN21: 5201 | CP21: 1998
A22: 1999 | B22: 28762 | C22: 29327 | D22: 30458 | E22: 29866 | F22: 30493 | G22: 31355 | H22: 32100 | I22: 33337 | J22: 33403 | K22: 32560 | L22: 32550 | M22: 33849 | N22: 33245 | O22: 33443 | P22: 33165 | Q22: 31623 | R22: 31223 | S22: 31359 | T22: 33084 | U22: 33340 | V22: 32620 | W22: 29861 | X22: 29219 | Y22: 30713 | Z22: 30113 | AA22: 30516 | AB22: 32434 | AC22: 34058 | AD22: 36085 | AE22: 35866 | AF22: 37366 | AG22: 38068 | AH22: 39363 | AI22: 38090 | AJ22: 39774 | AK22: 39369 | AL22: 39222 | AM22: 39253 | AN22: 38471 | AO22: 37785 | AP22: 37209 | AQ22: 36386 | AR22: 35579 | AS22: 35177 | AT22: 33728 | AU22: 33633 | AV22: 33032 | AW22: 31972 | AX22: 32814 | AY22: 33341 | AZ22: 34452 | BA22: 35629 | BB22: 38724 | BC22: 30051 | BD22: 28706 | BE22: 29679 | BF22: 28655 | BG22: 26702 | BH22: 25148 | BI22: 26095 | BJ22: 25911 | BK22: 25851 | BL22: 24731 | BM22: 24473 | BN22: 23724 | BO22: 22881 | BP22: 22048 | BQ22: 22059 | BR22: 21432 | BS22: 20522 | BT22: 19765 | BU22: 18391 | BV22: 17665 | BW22: 17380 | BX22: 15939 | BY22: 15018 | BZ22: 13526 | CA22: 13510 | CB22: 12603 | CC22: 12046 | CD22: 7590 | CE22: 6457 | CF22: 6306 | CG22: 5771 | CH22: 5433 | CI22: 4670 | CJ22: 3951 | CK22: 3178 | CL22: 2568 | CM22: 2112 | CN22: 5524 | CP22: 1999
A23: 2000 | B23: 27576 | C23: 28602 | D23: 29160 | E23: 30358 | F23: 29760 | G23: 30367 | H23: 31205 | I23: 31978 | J23: 33235 | K23: 33398 | L23: 32576 | M23: 32568 | N23: 33850 | O23: 33269 | P23: 33413 | Q23: 33199 | R23: 31446 | S23: 31020 | T23: 31210 | U23: 33888 | V23: 33788 | W23: 32554 | X23: 29510 | Y23: 28394 | Z23: 29734 | AA23: 29327 | AB23: 29822 | AC23: 31970 | AD23: 33555 | AE23: 35650 | AF23: 35482 | AG23: 37070 | AH23: 37713 | AI23: 38992 | AJ23: 37886 | AK23: 39611 | AL23: 39184 | AM23: 39098 | AN23: 39138 | AO23: 38296 | AP23: 37638 | AQ23: 37030 | AR23: 36315 | AS23: 35528 | AT23: 35164 | AU23: 33701 | AV23: 33553 | AW23: 33004 | AX23: 31896 | AY23: 32735 | AZ23: 33267 | BA23: 34357 | BB23: 35518 | BC23: 38512 | BD23: 29925 | BE23: 28594 | BF23: 29392 | BG23: 28445 | BH23: 26426 | BI23: 24915 | BJ23: 25812 | BK23: 25581 | BL23: 25534 | BM23: 24342 | BN23: 24061 | BO23: 23323 | BP23: 22360 | BQ23: 21538 | BR23: 21432 | BS23: 20755 | BT23: 19787 | BU23: 19029 | BV23: 17598 | BW23: 16814 | BX23: 16428 | BY23: 15033 | BZ23: 14126 | CA23: 12594 | CB23: 12428 | CC23: 11650 | CD23: 11046 | CE23: 6870 | CF23: 5769 | CG23: 5588 | CH23: 5021 | CI23: 4726 | CJ23: 4000 | CK23: 3316 | CL23: 2568 | CM23: 2086 | CN23: 5944 | CP23: 2000
A24: 2001 | B24: 26345 | C24: 27442 | D24: 28604 | E24: 29070 | F24: 30311 | G24: 29752 | H24: 30334 | I24: 31134 | J24: 31970 | K24: 33165 | L24: 33401 | M24: 32667 | N24: 32548 | O24: 33829 | P24: 33294 | Q24: 33417 | R24: 33268 | S24: 31514 | T24: 30950 | U24: 31984 | V24: 34395 | W24: 34058 | X24: 32430 | Y24: 29015 | Z24: 27811 | AA24: 29307 | AB24: 28969 | AC24: 29749 | AD24: 31758 | AE24: 33338 | AF24: 35438 | AG24: 35372 | AH24: 36882 | AI24: 37511 | AJ24: 38979 | AK24: 37826 | AL24: 39511 | AM24: 39122 | AN24: 39110 | AO24: 39121 | AP24: 38174 | AQ24: 37491 | AR24: 36990 | AS24: 36308 | AT24: 35595 | AU24: 35049 | AV24: 33712 | AW24: 33537 | AX24: 33003 | AY24: 31924 | AZ24: 32664 | BA24: 33168 | BB24: 34264 | BC24: 35413 | BD24: 38429 | BE24: 29821 | BF24: 28429 | BG24: 29258 | BH24: 28241 | BI24: 26230 | BJ24: 24634 | BK24: 25596 | BL24: 25280 | BM24: 25136 | BN24: 23976 | BO24: 23651 | BP24: 22881 | BQ24: 21881 | BR24: 21010 | BS24: 20832 | BT24: 20080 | BU24: 19104 | BV24: 18246 | BW24: 16801 | BX24: 16009 | BY24: 15621 | BZ24: 14176 | CA24: 13250 | CB24: 11694 | CC24: 11453 | CD24: 10662 | CE24: 10060 | CF24: 6242 | CG24: 5104 | CH24: 4905 | CI24: 4334 | CJ24: 4077 | CK24: 3381 | CL24: 2778 | CM24: 2111 | CN24: 6367 | CP24: 2001
A25: 2002 | B25: 26115 | C25: 26481 | D25: 27595 | E25: 28699 | F25: 29175 | G25: 30386 | H25: 29912 | I25: 30445 | J25: 31231 | K25: 31967 | L25: 33148 | M25: 33494 | N25: 32569 | O25: 32412 | P25: 33635 | Q25: 33041 | R25: 33199 | S25: 32866 | T25: 31088 | U25: 31519 | V25: 32387 | W25: 34406 | X25: 34002 | Y25: 32059 | Z25: 28733 | AA25: 27891 | AB25: 29247 | AC25: 29067 | AD25: 29781 | AE25: 31707 | AF25: 33327 | AG25: 35350 | AH25: 35301 | AI25: 36753 | AJ25: 37254 | AK25: 38765 | AL25: 37756 | AM25: 39425 | AN25: 38997 | AO25: 39037 | AP25: 39231 | AQ25: 38289 | AR25: 37533 | AS25: 37064 | AT25: 36280 | AU25: 35593 | AV25: 35010 | AW25: 33654 | AX25: 33538 | AY25: 32952 | AZ25: 31867 | BA25: 32616 | BB25: 33062 | BC25: 34175 | BD25: 35259 | BE25: 38258 | BF25: 29629 | BG25: 28252 | BH25: 29061 | BI25: 27954 | BJ25: 25977 | BK25: 24333 | BL25: 25225 | BM25: 24912 | BN25: 24696 | BO25: 23562 | BP25: 23137 | BQ25: 22340 | BR25: 21335 | BS25: 20433 | BT25: 20189 | BU25: 19385 | BV25: 18368 | BW25: 17444 | BX25: 15945 | BY25: 15152 | BZ25: 14726 | CA25: 13257 | CB25: 12361 | CC25: 10788 | CD25: 10496 | CE25: 9711 | CF25: 9138 | CG25: 5602 | CH25: 4515 | CI25: 4295 | CJ25: 3728 | CK25: 3477 | CL25: 2841 | CM25: 2264 | CN25: 6504 | CP25: 2002
A26: 2003 | B26: 26464 | C26: 26102 | D26: 26539 | E26: 27685 | F26: 28758 | G26: 29275 | H26: 30441 | I26: 30062 | J26: 30547 | K26: 31360 | L26: 31959 | M26: 33184 | N26: 33334 | O26: 32438 | P26: 32258 | Q26: 33415 | R26: 32734 | S26: 32890 | T26: 32448 | U26: 31632 | V26: 31980 | W26: 32710 | X26: 34407 | Y26: 33459 | Z26: 31656 | AA26: 28496 | AB26: 27601 | AC26: 29233 | AD26: 29009 | AE26: 29720 | AF26: 31725 | AG26: 33419 | AH26: 35322 | AI26: 35332 | AJ26: 36793 | AK26: 37378 | AL26: 38850 | AM26: 37892 | AN26: 39630 | AO26: 39142 | AP26: 39173 | AQ26: 39256 | AR26: 38233 | AS26: 37531 | AT26: 37055 | AU26: 36252 | AV26: 35539 | AW26: 34984 | AX26: 33537 | AY26: 33410 | AZ26: 32857 | BA26: 31742 | BB26: 32471 | BC26: 32922 | BD26: 34055 | BE26: 35115 | BF26: 38072 | BG26: 29493 | BH26: 28023 | BI26: 28868 | BJ26: 27664 | BK26: 25669 | BL26: 24017 | BM26: 24824 | BN26: 24522 | BO26: 24245 | BP26: 23086 | BQ26: 22604 | BR26: 21829 | BS26: 20714 | BT26: 19836 | BU26: 19549 | BV26: 18649 | BW26: 17594 | BX26: 16592 | BY26: 15066 | BZ26: 14307 | CA26: 13774 | CB26: 12378 | CC26: 11454 | CD26: 9843 | CE26: 9515 | CF26: 8775 | CG26: 8142 | CH26: 4931 | CI26: 3903 | CJ26: 3697 | CK26: 3145 | CL26: 2911 | CM26: 2321 | CN26: 6665 | CP26: 2003
A27: 2004 | B27: 27629 | C27: 26518 | D27: 26167 | E27: 26713 | F27: 27835 | G27: 28870 | H27: 29466 | I27: 30545 | J27: 30288 | K27: 30691 | L27: 31484 | M27: 31998 | N27: 33244 | O27: 33280 | P27: 32379 | Q27: 32212 | R27: 33267 | S27: 32434 | T27: 32611 | U27: 33103 | V27: 32073 | W27: 32332 | X27: 32698 | Y27: 34011 | Z27: 33183 | AA27: 31380 | AB27: 28276 | AC27: 27601 | AD27: 29155 | AE27: 29108 | AF27: 29848 | AG27: 31818 | AH27: 33668 | AI27: 35415 | AJ27: 35376 | AK27: 36960 | AL27: 37595 | AM27: 38983 | AN27: 38128 | AO27: 39793 | AP27: 39326 | AQ27: 39319 | AR27: 39346 | AS27: 38311 | AT27: 37544 | AU27: 37039 | AV27: 36192 | AW27: 35538 | AX27: 34986 | AY27: 33510 | AZ27: 33380 | BA27: 32815 | BB27: 31690 | BC27: 32420 | BD27: 32862 | BE27: 33901 | BF27: 35021 | BG27: 37938 | BH27: 29315 | BI27: 27832 | BJ27: 28662 | BK27: 27427 | BL27: 25413 | BM27: 23698 | BN27: 24477 | BO27: 24169 | BP27: 23810 | BQ27: 22644 | BR27: 22083 | BS27: 21288 | BT27: 20081 | BU27: 19204 | BV27: 18845 | BW27: 17962 | BX27: 16774 | BY27: 15784 | BZ27: 14261 | CA27: 13467 | CB27: 12842 | CC27: 11489 | CD27: 10556 | CE27: 8934 | CF27: 8566 | CG27: 7881 | CH27: 7217 | CI27: 4319 | CJ27: 3364 | CK27: 3114 | CL27: 2666 | CM27: 2416 | CN27: 6770 | CP27: 2004
A28: 2005 | B28: 28093 | C28: 27817 | D28: 26608 | E28: 26309 | F28: 26933 | G28: 28042 | H28: 29073 | I28: 29677 | J28: 30749 | K28: 30520 | L28: 30903 | M28: 31706 | N28: 32010 | O28: 33038 | P28: 33105 | Q28: 32129 | R28: 32160 | S28: 33173 | T28: 32475 | U28: 33818 | V28: 33985 | W28: 32769 | X28: 32726 | Y28: 32762 | Z28: 33949 | AA28: 33123 | AB28: 31344 | AC28: 28582 | AD28: 27779 | AE28: 29356 | AF28: 29406 | AG28: 30127 | AH28: 32112 | AI28: 33911 | AJ28: 35661 | AK28: 35528 | AL28: 37135 | AM28: 37809 | AN28: 39121 | AO28: 38441 | AP28: 40014 | AQ28: 39520 | AR28: 39511 | AS28: 39432 | AT28: 38478 | AU28: 37570 | AV28: 37049 | AW28: 36242 | AX28: 35564 | AY28: 35003 | AZ28: 33483 | BA28: 33342 | BB28: 32786 | BC28: 31638 | BD28: 32307 | BE28: 32786 | BF28: 33805 | BG28: 34910 | BH28: 37733 | BI28: 29118 | BJ28: 27601 | BK28: 28418 | BL28: 27098 | BM28: 25057 | BN28: 23340 | BO28: 24099 | BP28: 23756 | BQ28: 23297 | BR28: 22102 | BS28: 21546 | BT28: 20740 | BU28: 19448 | BV28: 18532 | BW28: 18155 | BX28: 17179 | BY28: 15951 | BZ28: 14994 | CA28: 13404 | CB28: 12619 | CC28: 11896 | CD28: 10571 | CE28: 9661 | CF28: 8075 | CG28: 7710 | CH28: 6987 | CI28: 6366 | CJ28: 3740 | CK28: 2884 | CL28: 2583 | CM28: 2187 | CN28: 7023 | CP28: 2005
A29: 2006 | B29: 28202 | C29: 28119 | D29: 27771 | E29: 26701 | F29: 26424 | G29: 27062 | H29: 28242 | I29: 29207 | J29: 29757 | K29: 30855 | L29: 30643 | M29: 30996 | N29: 31779 | O29: 31988 | P29: 32934 | Q29: 32962 | R29: 32196 | S29: 32349 | T29: 33489 | U29: 33922 | V29: 34632 | W29: 34489 | X29: 32638 | Y29: 32810 | Z29: 33019 | AA29: 33957 | AB29: 32944 | AC29: 31531 | AD29: 28688 | AE29: 27973 | AF29: 29597 | AG29: 29650 | AH29: 30436 | AI29: 32265 | AJ29: 34171 | AK29: 35899 | AL29: 35698 | AM29: 37326 | AN29: 38082 | AO29: 39364 | AP29: 38619 | AQ29: 40201 | AR29: 39633 | AS29: 39687 | AT29: 39534 | AU29: 38496 | AV29: 37498 | AW29: 37055 | AX29: 36237 | AY29: 35603 | AZ29: 34872 | BA29: 33402 | BB29: 33216 | BC29: 32691 | BD29: 31533 | BE29: 32182 | BF29: 32646 | BG29: 33624 | BH29: 34687 | BI29: 37501 | BJ29: 28920 | BK29: 27343 | BL29: 28126 | BM29: 26746 | BN29: 24656 | BO29: 22965 | BP29: 23641 | BQ29: 23310 | BR29: 22743 | BS29: 21557 | BT29: 20962 | BU29: 20109 | BV29: 18781 | BW29: 17856 | BX29: 17474 | BY29: 16387 | BZ29: 15156 | CA29: 14115 | CB29: 12524 | CC29: 11804 | CD29: 11005 | CE29: 9713 | CF29: 8777 | CG29: 7250 | CH29: 6873 | CI29: 6186 | CJ29: 5590 | CK29: 3197 | CL29: 2381 | CM29: 2139 | CN29: 7094 | CP29: 2006
A30: 2007 | B30: 29319 | C30: 28341 | D30: 28339 | E30: 27917 | F30: 26806 | G30: 26605 | H30: 27293 | I30: 28472 | J30: 29415 | K30: 29976 | L30: 31073 | M30: 30929 | N30: 31166 | O30: 31917 | P30: 32077 | Q30: 33012 | R30: 33045 | S30: 32882 | T30: 32921 | U30: 35123 | V30: 34633 | W30: 34284 | X30: 34154 | Y30: 33063 | Z30: 33072 | AA30: 33458 | AB30: 34106 | AC30: 33305 | AD30: 31848 | AE30: 29070 | AF30: 28510 | AG30: 30123 | AH30: 30105 | AI30: 30880 | AJ30: 32723 | AK30: 34549 | AL30: 36296 | AM30: 35928 | AN30: 37611 | AO30: 38428 | AP30: 39599 | AQ30: 38792 | AR30: 40447 | AS30: 39799 | AT30: 39803 | AU30: 39684 | AV30: 38536 | AW30: 37544 | AX30: 37150 | AY30: 36281 | AZ30: 35624 | BA30: 34874 | BB30: 33398 | BC30: 33161 | BD30: 32579 | BE30: 31431 | BF30: 32093 | BG30: 32496 | BH30: 33458 | BI30: 34484 | BJ30: 37279 | BK30: 28742 | BL30: 27009 | BM30: 27750 | BN30: 26446 | BO30: 24331 | BP30: 22553 | BQ30: 23206 | BR30: 22867 | BS30: 22259 | BT30: 21005 | BU30: 20329 | BV30: 19487 | BW30: 18143 | BX30: 17208 | BY30: 16729 | BZ30: 15627 | CA30: 14288 | CB30: 13301 | CC30: 11714 | CD30: 10938 | CE30: 10087 | CF30: 8877 | CG30: 7930 | CH30: 6509 | CI30: 6038 | CJ30: 5414 | CK30: 4772 | CL30: 2707 | CM30: 2003 | CN30: 7004 | CP30: 2007
A31: 2008 | B31: 30335 | C31: 29400 | D31: 28449 | E31: 28479 | F31: 28029 | G31: 26868 | H31: 26709 | I31: 27430 | J31: 28580 | K31: 29543 | L31: 30111 | M31: 31244 | N31: 31122 | O31: 31382 | P31: 32074 | Q31: 32178 | R31: 33012 | S31: 32934 | T31: 33433 | U31: 34780 | V31: 36167 | W31: 34119 | X31: 34646 | Y31: 34312 | Z31: 32999 | AA31: 33427 | AB31: 33589 | AC31: 34126 | AD31: 33266 | AE31: 32063 | AF31: 29401 | AG31: 28898 | AH31: 30470 | AI31: 30370 | AJ31: 31234 | AK31: 33099 | AL31: 34942 | AM31: 36503 | AN31: 36217 | AO31: 37885 | AP31: 38627 | AQ31: 39651 | AR31: 39039 | AS31: 40625 | AT31: 39918 | AU31: 39986 | AV31: 39682 | AW31: 38619 | AX31: 37583 | AY31: 37161 | AZ31: 36276 | BA31: 35598 | BB31: 34761 | BC31: 33308 | BD31: 33066 | BE31: 32467 | BF31: 31317 | BG31: 31923 | BH31: 32236 | BI31: 33225 | BJ31: 34223 | BK31: 37012 | BL31: 28481 | BM31: 26688 | BN31: 27380 | BO31: 26067 | BP31: 23918 | BQ31: 22124 | BR31: 22748 | BS31: 22349 | BT31: 21718 | BU31: 20385 | BV31: 19677 | BW31: 18792 | BX31: 17470 | BY31: 16454 | BZ31: 15944 | CA31: 14848 | CB31: 13422 | CC31: 12428 | CD31: 10943 | CE31: 10070 | CF31: 9206 | CG31: 7985 | CH31: 7114 | CI31: 5755 | CJ31: 5267 | CK31: 4712 | CL31: 4056 | CM31: 2270 | CN31: 6899 | CP31: 2008
A32: 2009 | B32: 30517 | C32: 30369 | D32: 29342 | E32: 28460 | F32: 28518 | G32: 28036 | H32: 26882 | I32: 26751 | J32: 27538 | K32: 28698 | L32: 29703 | M32: 30266 | N32: 31352 | O32: 31366 | P32: 31503 | Q32: 32241 | R32: 32426 | S32: 34380 | T32: 34940 | U32: 34193 | V32: 34297 | W32: 35305 | X32: 34538 | Y32: 34860 | Z32: 34236 | AA32: 33083 | AB32: 33391 | AC32: 33669 | AD32: 34134 | AE32: 33301 | AF32: 32295 | AG32: 29662 | AH32: 29056 | AI32: 30647 | AJ32: 30632 | AK32: 31539 | AL32: 33430 | AM32: 35195 | AN32: 36696 | AO32: 36458 | AP32: 38026 | AQ32: 38748 | AR32: 39703 | AS32: 39143 | AT32: 40710 | AU32: 39944 | AV32: 40045 | AW32: 39702 | AX32: 38606 | AY32: 37547 | AZ32: 37136 | BA32: 36251 | BB32: 35556 | BC32: 34681 | BD32: 33178 | BE32: 32955 | BF32: 32341 | BG32: 31177 | BH32: 31689 | BI32: 32068 | BJ32: 32965 | BK32: 33901 | BL32: 36660 | BM32: 28143 | BN32: 26298 | BO32: 27010 | BP32: 25597 | BQ32: 23492 | BR32: 21685 | BS32: 22167 | BT32: 21726 | BU32: 21170 | BV32: 19771 | BW32: 19039 | BX32: 18100 | BY32: 16747 | BZ32: 15714 | CA32: 15168 | CB32: 14044 | CC32: 12570 | CD32: 11590 | CE32: 10050 | CF32: 9273 | CG32: 8345 | CH32: 7185 | CI32: 6330 | CJ32: 5036 | CK32: 4594 | CL32: 4058 | CM32: 3390 | CN32: 7040 | CP32: 2009
A33: 2010 | B33: 30092 | C33: 30358 | D33: 30271 | E33: 29213 | F33: 28414 | G33: 28514 | H33: 28018 | I33: 26873 | J33: 26787 | K33: 27625 | L33: 28805 | M33: 29831 | N33: 30343 | O33: 31532 | P33: 31555 | Q33: 31679 | R33: 32430 | S33: 32607 | T33: 35067 | U33: 36421 | V33: 35285 | W33: 35091 | X33: 35876 | Y33: 34807 | Z33: 34840 | AA33: 34278 | AB33: 33076 | AC33: 33499 | AD33: 33662 | AE33: 33993 | AF33: 33317 | AG33: 32412 | AH33: 29708 | AI33: 29305 | AJ33: 30930 | AK33: 30814 | AL33: 31772 | AM33: 33690 | AN33: 35481 | AO33: 36849 | AP33: 36570 | AQ33: 38056 | AR33: 38787 | AS33: 39777 | AT33: 39212 | AU33: 40732 | AV33: 39949 | AW33: 40084 | AX33: 39720 | AY33: 38576 | AZ33: 37474 | BA33: 37091 | BB33: 36160 | BC33: 35456 | BD33: 34539 | BE33: 32951 | BF33: 32788 | BG33: 32184 | BH33: 31005 | BI33: 31485 | BJ33: 31856 | BK33: 32695 | BL33: 33610 | BM33: 36317 | BN33: 27794 | BO33: 25915 | BP33: 26588 | BQ33: 25156 | BR33: 23024 | BS33: 21194 | BT33: 21646 | BU33: 21160 | BV33: 20553 | BW33: 19100 | BX33: 18375 | BY33: 17399 | BZ33: 16054 | CA33: 14900 | CB33: 14350 | CC33: 13274 | CD33: 11684 | CE33: 10750 | CF33: 9237 | CG33: 8483 | CH33: 7501 | CI33: 6455 | CJ33: 5558 | CK33: 4383 | CL33: 3977 | CM33: 3439 | CN33: 8075 | CP33: 2010
A34: 2011 | B34: 30877 | C34: 29388 | D34: 30189 | E34: 30173 | F34: 29119 | G34: 28397 | H34: 28517 | I34: 28033 | J34: 26840 | K34: 26806 | L34: 27743 | M34: 28919 | N34: 29930 | O34: 30490 | P34: 31684 | Q34: 31767 | R34: 31917 | S34: 32818 | T34: 33467 | U34: 36402 | V34: 37785 | W34: 36354 | X34: 36117 | Y34: 36710 | Z34: 35129 | AA34: 35166 | AB34: 34410 | AC34: 33302 | AD34: 33649 | AE34: 33865 | AF34: 34091 | AG34: 33372 | AH34: 32617 | AI34: 29904 | AJ34: 29660 | AK34: 31290 | AL34: 31209 | AM34: 32165 | AN34: 34009 | AO34: 35796 | AP34: 37075 | AQ34: 36731 | AR34: 38207 | AS34: 38979 | AT34: 39881 | AU34: 39324 | AV34: 40854 | AW34: 40034 | AX34: 40211 | AY34: 39785 | AZ34: 38604 | BA34: 37508 | BB34: 37006 | BC34: 36150 | BD34: 35429 | BE34: 34422 | BF34: 32817 | BG34: 32635 | BH34: 32019 | BI34: 30867 | BJ34: 31303 | BK34: 31584 | BL34: 32416 | BM34: 33316 | BN34: 36009 | BO34: 27452 | BP34: 25535 | BQ34: 26152 | BR34: 24717 | BS34: 22559 | BT34: 20669 | BU34: 21051 | BV34: 20558 | BW34: 19950 | BX34: 18436 | BY34: 17632 | BZ34: 16697 | CA34: 15340 | CB34: 14169 | CC34: 13550 | CD34: 12446 | CE34: 10829 | CF34: 9906 | CG34: 8414 | CH34: 7587 | CI34: 6686 | CJ34: 5694 | CK34: 4839 | CL34: 3771 | CM34: 3367 | CN34: 9052 | CP34: 2011
A35: 2012 | B35: 30103 | C35: 30991 | D35: 29443 | E35: 30234 | F35: 30216 | G35: 29189 | H35: 28467 | I35: 28544 | J35: 28038 | K35: 26898 | L35: 26815 | M35: 27816 | N35: 28938 | O35: 29948 | P35: 30551 | Q35: 31679 | R35: 31797 | S35: 32017 | T35: 32994 | U35: 34575 | V35: 37245 | W35: 38030 | X35: 36577 | Y35: 36364 | Z35: 36530 | AA35: 34901 | AB35: 34986 | AC35: 34366 | AD35: 33142 | AE35: 33494 | AF35: 33803 | AG35: 33998 | AH35: 33238 | AI35: 32513 | AJ35: 29756 | AK35: 29606 | AL35: 31257 | AM35: 31202 | AN35: 32118 | AO35: 33964 | AP35: 35688 | AQ35: 36931 | AR35: 36619 | AS35: 38110 | AT35: 38848 | AU35: 39722 | AV35: 39084 | AW35: 40753 | AX35: 39901 | AY35: 40079 | AZ35: 39564 | BA35: 38537 | BB35: 37355 | BC35: 36861 | BD35: 35929 | BE35: 35194 | BF35: 34177 | BG35: 32639 | BH35: 32427 | BI35: 31772 | BJ35: 30633 | BK35: 30967 | BL35: 31267 | BM35: 31999 | BN35: 32921 | BO35: 35533 | BP35: 27036 | BQ35: 25057 | BR35: 25605 | BS35: 24119 | BT35: 21992 | BU35: 20137 | BV35: 20414 | BW35: 19861 | BX35: 19225 | BY35: 17677 | BZ35: 16894 | CA35: 15898 | CB35: 14556 | CC35: 13382 | CD35: 12704 | CE35: 11587 | CF35: 9980 | CG35: 9045 | CH35: 7598 | CI35: 6730 | CJ35: 5891 | CK35: 4939 | CL35: 4068 | CM35: 3198 | CN35: 9844 | CP35: 2012
A36: 2013 | B36: 29130 | C36: 30142 | D36: 31061 | E36: 29557 | F36: 30309 | G36: 30269 | H36: 29219 | I36: 28511 | J36: 28573 | K36: 28059 | L36: 26983 | M36: 26851 | N36: 27870 | O36: 28963 | P36: 29965 | Q36: 30589 | R36: 31729 | S36: 31885 | T36: 32249 | U36: 34226 | V36: 35337 | W36: 37629 | X36: 38353 | Y36: 36745 | Z36: 36372 | AA36: 36485 | AB36: 34909 | AC36: 34994 | AD36: 34409 | AE36: 33164 | AF36: 33506 | AG36: 33834 | AH36: 33993 | AI36: 33254 | AJ36: 32423 | AK36: 29739 | AL36: 29749 | AM36: 31303 | AN36: 31290 | AO36: 32161 | AP36: 34002 | AQ36: 35703 | AR36: 36932 | AS36: 36650 | AT36: 38057 | AU36: 38813 | AV36: 39642 | AW36: 39065 | AX36: 40697 | AY36: 39830 | AZ36: 39961 | BA36: 39487 | BB36: 38383 | BC36: 37310 | BD36: 36720 | BE36: 35735 | BF36: 35055 | BG36: 34006 | BH36: 32454 | BI36: 32115 | BJ36: 31503 | BK36: 30354 | BL36: 30664 | BM36: 30912 | BN36: 31574 | BO36: 32495 | BP36: 34939 | BQ36: 26516 | BR36: 24538 | BS36: 25112 | BT36: 23567 | BU36: 21384 | BV36: 19514 | BW36: 19729 | BX36: 19198 | BY36: 18461 | BZ36: 16900 | CA36: 16114 | CB36: 15043 | CC36: 13712 | CD36: 12504 | CE36: 11799 | CF36: 10676 | CG36: 9154 | CH36: 8123 | CI36: 6752 | CJ36: 5937 | CK36: 5109 | CL36: 4223 | CM36: 3452 | CN36: 10316 | CP36: 2013
A37: 2014 | B37: 28862 | C37: 29292 | D37: 30318 | E37: 31185 | F37: 29681 | G37: 30397 | H37: 30374 | I37: 29300 | J37: 28594 | K37: 28662 | L37: 28153 | M37: 27035 | N37: 26903 | O37: 27936 | P37: 29012 | Q37: 30042 | R37: 30679 | S37: 31736 | T37: 32115 | U37: 33488 | V37: 34996 | W37: 35616 | X37: 37808 | Y37: 38367 | Z37: 36690 | AA37: 36369 | AB37: 36406 | AC37: 34959 | AD37: 34888 | AE37: 34315 | AF37: 33218 | AG37: 33580 | AH37: 33826 | AI37: 33971 | AJ37: 33294 | AK37: 32458 | AL37: 29810 | AM37: 29823 | AN37: 31318 | AO37: 31364 | AP37: 32132 | AQ37: 33970 | AR37: 35727 | AS37: 36879 | AT37: 36572 | AU37: 38024 | AV37: 38746 | AW37: 39531 | AX37: 38954 | AY37: 40603 | AZ37: 39739 | BA37: 39886 | BB37: 39347 | BC37: 38250 | BD37: 37197 | BE37: 36582 | BF37: 35589 | BG37: 34900 | BH37: 33780 | BI37: 32194 | BJ37: 31891 | BK37: 31253 | BL37: 30085 | BM37: 30291 | BN37: 30593 | BO37: 31180 | BP37: 31997 | BQ37: 34401 | BR37: 26034 | BS37: 24026 | BT37: 24562 | BU37: 22965 | BV37: 20726 | BW37: 18881 | BX37: 19053 | BY37: 18502 | BZ37: 17749 | CA37: 16143 | CB37: 15329 | CC37: 14239 | CD37: 12867 | CE37: 11713 | CF37: 10949 | CG37: 9748 | CH37: 8345 | CI37: 7275 | CJ37: 6019 | CK37: 5217 | CL37: 4444 | CM37: 3624 | CN37: 10987 | CP37: 2014
A38: 2015 | B38: 28765 | C38: 29135 | D38: 29527 | E38: 30503 | F38: 31354 | G38: 29801 | H38: 30513 | I38: 30453 | J38: 29438 | K38: 28689 | L38: 28779 | M38: 28216 | N38: 27119 | O38: 26995 | P38: 28050 | Q38: 29133 | R38: 30163 | S38: 30796 | T38: 32041 | U38: 33634 | V38: 34514 | W38: 35638 | X38: 36142 | Y38: 38305 | Z38: 38562 | AA38: 37083 | AB38: 36676 | AC38: 36683 | AD38: 35205 | AE38: 35146 | AF38: 34548 | AG38: 33488 | AH38: 33813 | AI38: 34009 | AJ38: 34142 | AK38: 33487 | AL38: 32708 | AM38: 29894 | AN38: 29942 | AO38: 31434 | AP38: 31390 | AQ38: 32144 | AR38: 33994 | AS38: 35763 | AT38: 36869 | AU38: 36546 | AV38: 37963 | AW38: 38692 | AX38: 39457 | AY38: 38907 | AZ38: 40490 | BA38: 39635 | BB38: 39711 | BC38: 39209 | BD38: 38177 | BE38: 37015 | BF38: 36388 | BG38: 35448 | BH38: 34653 | BI38: 33567 | BJ38: 31963 | BK38: 31625 | BL38: 30952 | BM38: 29767 | BN38: 29940 | BO38: 30116 | BP38: 30668 | BQ38: 31496 | BR38: 33786 | BS38: 25421 | BT38: 23449 | BU38: 23965 | BV38: 22259 | BW38: 20048 | BX38: 18201 | BY38: 18333 | BZ38: 17682 | CA38: 16944 | CB38: 15270 | CC38: 14474 | CD38: 13378 | CE38: 11995 | CF38: 10877 | CG38: 10003 | CH38: 8767 | CI38: 7412 | CJ38: 6435 | CK38: 5175 | CL38: 4389 | CM38: 3715 | CN38: 11423 | CP38: 2015
A39: 2016 | B39: 28697 | C39: 29017 | D39: 29377 | E39: 29728 | F39: 30708 | G39: 31533 | H39: 29946 | I39: 30653 | J39: 30586 | K39: 29574 | L39: 28838 | M39: 28885 | N39: 28344 | O39: 27231 | P39: 27083 | Q39: 28196 | R39: 29300 | S39: 30279 | T39: 31162 | U39: 33677 | V39: 34653 | W39: 35175 | X39: 36261 | Y39: 36791 | Z39: 38808 | AA39: 39073 | AB39: 37445 | AC39: 37102 | AD39: 36957 | AE39: 35572 | AF39: 35467 | AG39: 34774 | AH39: 33786 | AI39: 34032 | AJ39: 34246 | AK39: 34347 | AL39: 33701 | AM39: 32926 | AN39: 30125 | AO39: 30169 | AP39: 31504 | AQ39: 31398 | AR39: 32214 | AS39: 34054 | AT39: 35759 | AU39: 36884 | AV39: 36481 | AW39: 37985 | AX39: 38668 | AY39: 39404 | AZ39: 38795 | BA39: 40421 | BB39: 39547 | BC39: 39588 | BD39: 39078 | BE39: 38031 | BF39: 36862 | BG39: 36217 | BH39: 35210 | BI39: 34417 | BJ39: 33311 | BK39: 31726 | BL39: 31363 | BM39: 30581 | BN39: 29425 | BO39: 29569 | BP39: 29668 | BQ39: 30193 | BR39: 30916 | BS39: 33121 | BT39: 24797 | BU39: 22863 | BV39: 23308 | BW39: 21528 | BX39: 19373 | BY39: 17496 | BZ39: 17603 | CA39: 16869 | CB39: 16115 | CC39: 14432 | CD39: 13546 | CE39: 12469 | CF39: 11120 | CG39: 9975 | CH39: 9091 | CI39: 7894 | CJ39: 6573 | CK39: 5635 | CL39: 4454 | CM39: 3731 | CN39: 12017 | CP39: 2016
A40: 2017 | B40: 27648 | C40: 28916 | D40: 29157 | E40: 29493 | F40: 29902 | G40: 30863 | H40: 31675 | I40: 30043 | J40: 30813 | K40: 30730 | L40: 29718 | M40: 28949 | N40: 29005 | O40: 28442 | P40: 27366 | Q40: 27172 | R40: 28297 | S40: 29416 | T40: 30691 | U40: 32698 | V40: 34758 | W40: 35231 | X40: 35570 | Y40: 36594 | Z40: 36984 | AA40: 39025 | AB40: 39299 | AC40: 37701 | AD40: 37307 | AE40: 37044 | AF40: 35749 | AG40: 35727 | AH40: 34926 | AI40: 33871 | AJ40: 34217 | AK40: 34416 | AL40: 34511 | AM40: 33876 | AN40: 33130 | AO40: 30293 | AP40: 30245 | AQ40: 31468 | AR40: 31408 | AS40: 32277 | AT40: 34075 | AU40: 35749 | AV40: 36792 | AW40: 36424 | AX40: 37924 | AY40: 38571 | AZ40: 39371 | BA40: 38735 | BB40: 40329 | BC40: 39441 | BD40: 39502 | BE40: 38909 | BF40: 37885 | BG40: 36734 | BH40: 36030 | BI40: 35049 | BJ40: 34178 | BK40: 33057 | BL40: 31417 | BM40: 31041 | BN40: 30245 | BO40: 29076 | BP40: 29098 | BQ40: 29224 | BR40: 29691 | BS40: 30284 | BT40: 32423 | BU40: 24213 | BV40: 22279 | BW40: 22640 | BX40: 20798 | BY40: 18661 | BZ40: 16759 | CA40: 16871 | CB40: 16072 | CC40: 15248 | CD40: 13590 | CE40: 12630 | CF40: 11576 | CG40: 10156 | CH40: 9082 | CI40: 8167 | CJ40: 6962 | CK40: 5727 | CL40: 4867 | CM40: 3739 | CN40: 12388 | CP40: 2017
A41: 2018 | B41: 26832 | C41: 27811 | D41: 29032 | E41: 29296 | F41: 29608 | G41: 30015 | H41: 31003 | I41: 31760 | J41: 30122 | K41: 30946 | L41: 30815 | M41: 29788 | N41: 29050 | O41: 29105 | P41: 28508 | Q41: 27445 | R41: 27290 | S41: 28431 | T41: 29913 | U41: 32326 | V41: 33736 | W41: 35241 | X41: 35695 | Y41: 35912 | Z41: 36703 | AA41: 36944 | AB41: 39075 | AC41: 39374 | AD41: 37825 | AE41: 37314 | AF41: 37276 | AG41: 35819 | AH41: 35819 | AI41: 35044 | AJ41: 33983 | AK41: 34304 | AL41: 34613 | AM41: 34557 | AN41: 34016 | AO41: 33259 | AP41: 30305 | AQ41: 30240 | AR41: 31456 | AS41: 31362 | AT41: 32212 | AU41: 34047 | AV41: 35633 | AW41: 36742 | AX41: 36320 | AY41: 37819 | AZ41: 38490 | BA41: 39277 | BB41: 38616 | BC41: 40178 | BD41: 39308 | BE41: 39354 | BF41: 38748 | BG41: 37685 | BH41: 36500 | BI41: 35765 | BJ41: 34827 | BK41: 33894 | BL41: 32738 | BM41: 31050 | BN41: 30734 | BO41: 29878 | BP41: 28670 | BQ41: 28628 | BR41: 28748 | BS41: 29090 | BT41: 29649 | BU41: 31649 | BV41: 23530 | BW41: 21656 | BX41: 21871 | BY41: 20050 | BZ41: 17826 | CA41: 15984 | CB41: 16027 | CC41: 15154 | CD41: 14285 | CE41: 12610 | CF41: 11644 | CG41: 10622 | CH41: 9163 | CI41: 8139 | CJ41: 7240 | CK41: 6118 | CL41: 4905 | CM41: 4090 | CN41: 12620 | CP41: 2018
A42: 2019 | B42: 25939 | C42: 26987 | D42: 27985 | E42: 29174 | F42: 29424 | G42: 29730 | H42: 30127 | I42: 31100 | J42: 31852 | K42: 30228 | L42: 31053 | M42: 30902 | N42: 29864 | O42: 29132 | P42: 29186 | Q42: 28591 | R42: 27532 | S42: 27393 | T42: 28650 | U42: 30691 | V42: 33358 | W42: 34405 | X42: 35715 | Y42: 36081 | Z42: 36154 | AA42: 36854 | AB42: 37073 | AC42: 39180 | AD42: 39483 | AE42: 37943 | AF42: 37434 | AG42: 37407 | AH42: 35968 | AI42: 35959 | AJ42: 35165 | AK42: 34093 | AL42: 34400 | AM42: 34691 | AN42: 34609 | AO42: 34055 | AP42: 33281 | AQ42: 30316 | AR42: 30245 | AS42: 31453 | AT42: 31344 | AU42: 32176 | AV42: 33998 | AW42: 35568 | AX42: 36665 | AY42: 36242 | AZ42: 37742 | BA42: 38407 | BB42: 39170 | BC42: 38491 | BD42: 40044 | BE42: 39168 | BF42: 39187 | BG42: 38565 | BH42: 37481 | BI42: 36271 | BJ42: 35522 | BK42: 34563 | BL42: 33600 | BM42: 32407 | BN42: 30707 | BO42: 30371 | BP42: 29477 | BQ42: 28235 | BR42: 28144 | BS42: 28196 | BT42: 28461 | BU42: 28948 | BV42: 30822 | BW42: 22847 | BX42: 20965 | BY42: 21104 | BZ42: 19273 | CA42: 17066 | CB42: 15234 | CC42: 15193 | CD42: 14280 | CE42: 13373 | CF42: 11717 | CG42: 10727 | CH42: 9691 | CI42: 8266 | CJ42: 7246 | CK42: 6355 | CL42: 5293 | CM42: 4177 | CN42: 13214 | CP42: 2019
A43: 2020 | B43: 26237 | C43: 26090 | D43: 27155 | E43: 28123 | F43: 29300 | G43: 29543 | H43: 29839 | I43: 30222 | J43: 31190 | K43: 31956 | L43: 30333 | M43: 31140 | N43: 30979 | O43: 29945 | P43: 29214 | Q43: 29268 | R43: 28678 | S43: 27633 | T43: 27607 | U43: 29407 | V43: 31700 | W43: 34018 | X43: 34871 | Y43: 36090 | Z43: 36312 | AA43: 36296 | AB43: 36973 | AC43: 37172 | AD43: 39281 | AE43: 39591 | AF43: 38056 | AG43: 37559 | AH43: 37550 | AI43: 36103 | AJ43: 36077 | AK43: 35270 | AL43: 34185 | AM43: 34473 | AN43: 34739 | AO43: 34644 | AP43: 34074 | AQ43: 33283 | AR43: 30317 | AS43: 30241 | AT43: 31430 | AU43: 31304 | AV43: 32125 | AW43: 33932 | AX43: 35490 | AY43: 36579 | AZ43: 36166 | BA43: 37658 | BB43: 38302 | BC43: 39038 | BD43: 38363 | BE43: 39899 | BF43: 39001 | BG43: 39002 | BH43: 38354 | BI43: 37246 | BJ43: 36024 | BK43: 35253 | BL43: 34264 | BM43: 33260 | BN43: 32046 | BO43: 30345 | BP43: 29964 | BQ43: 29028 | BR43: 27754 | BS43: 27599 | BT43: 27584 | BU43: 27783 | BV43: 28187 | BW43: 29926 | BX43: 22113 | BY43: 20224 | BZ43: 20281 | CA43: 18446 | CB43: 16261 | CC43: 14436 | CD43: 14310 | CE43: 13362 | CF43: 12418 | CG43: 10786 | CH43: 9780 | CI43: 8734 | CJ43: 7351 | CK43: 6353 | CL43: 5491 | CM43: 4500 | CN43: 13694 | CP43: 2020
A44: 2021 | B44: 26169 | C44: 26377 | D44: 26244 | E44: 27281 | F44: 28235 | G44: 29407 | H44: 29640 | I44: 29922 | J44: 30302 | K44: 31285 | L44: 32054 | M44: 30411 | N44: 31209 | O44: 31055 | P44: 30019 | Q44: 29291 | R44: 29350 | S44: 28774 | T44: 27841 | U44: 28343 | V44: 30391 | W44: 32348 | X44: 34480 | Y44: 35244 | Z44: 36319 | AA44: 36452 | AB44: 36414 | AC44: 37070 | AD44: 37272 | AE44: 39387 | AF44: 39698 | AG44: 38175 | AH44: 37698 | AI44: 37678 | AJ44: 36215 | AK44: 36178 | AL44: 35355 | AM44: 34252 | AN44: 34516 | AO44: 34769 | AP44: 34659 | AQ44: 34073 | AR44: 33274 | AS44: 30307 | AT44: 30216 | AU44: 31387 | AV44: 31249 | AW44: 32061 | AX44: 33857 | AY44: 35407 | AZ44: 36498 | BA44: 36085 | BB44: 37554 | BC44: 38175 | BD44: 38906 | BE44: 38228 | BF44: 39730 | BG44: 38819 | BH44: 38794 | BI44: 38118 | BJ44: 36996 | BK44: 35756 | BL44: 34953 | BM44: 33924 | BN44: 32896 | BO44: 31674 | BP44: 29945 | BQ44: 29513 | BR44: 28541 | BS44: 27223 | BT44: 27007 | BU44: 26936 | BV44: 27062 | BW44: 27378 | BX44: 28980 | BY44: 21343 | BZ44: 19446 | CA44: 19423 | CB44: 17585 | CC44: 15419 | CD44: 13606 | CE44: 13399 | CF44: 12417 | CG44: 11440 | CH44: 9843 | CI44: 8823 | CJ44: 7776 | CK44: 6453 | CL44: 5495 | CM44: 4673 | CN44: 14347 | CP44: 2021
A45: 2022 | B45: 26061 | C45: 26309 | D45: 26531 | E45: 26367 | F45: 27392 | G45: 28340 | H45: 29503 | I45: 29723 | J45: 30001 | K45: 30397 | L45: 31383 | M45: 32132 | N45: 30480 | O45: 31286 | P45: 31131 | Q45: 30097 | R45: 29373 | S45: 29446 | T45: 28983 | U45: 28569 | V45: 29309 | W45: 31028 | X45: 32807 | Y45: 34854 | Z45: 35476 | AA45: 36460 | AB45: 36571 | AC45: 36512 | AD45: 37170 | AE45: 37379 | AF45: 39495 | AG45: 39819 | AH45: 38315 | AI45: 37829 | AJ45: 37791 | AK45: 36318 | AL45: 36264 | AM45: 35422 | AN45: 34296 | AO45: 34547 | AP45: 34784 | AQ45: 34660 | AR45: 34066 | AS45: 33258 | AT45: 30282 | AU45: 30175 | AV45: 31331 | AW45: 31186 | AX45: 31990 | AY45: 33779 | AZ45: 35330 | BA45: 36416 | BB45: 35988 | BC45: 37431 | BD45: 38052 | BE45: 38770 | BF45: 38071 | BG45: 39549 | BH45: 38617 | BI45: 38560 | BJ45: 37869 | BK45: 36727 | BL45: 35458 | BM45: 34612 | BN45: 33560 | BO45: 32521 | BP45: 31263 | BQ45: 29502 | BR45: 29026 | BS45: 28003 | BT45: 26647 | BU45: 26379 | BV45: 26245 | BW45: 26293 | BX45: 26523 | BY45: 27985 | BZ45: 20533 | CA45: 18634 | CB45: 18528 | CC45: 16686 | CD45: 14543 | CE45: 12749 | CF45: 12460 | CG45: 11448 | CH45: 10448 | CI45: 8888 | CJ45: 7862 | CK45: 6833 | CL45: 5588 | CM45: 4683 | CN45: 15019 | CP45: 2022
A46: 2023 | B46: 26005 | C46: 26203 | D46: 26464 | E46: 26653 | F46: 26478 | G46: 27496 | H46: 28436 | I46: 29586 | J46: 29802 | K46: 30096 | L46: 30494 | M46: 31461 | N46: 32202 | O46: 30557 | P46: 31363 | Q46: 31209 | R46: 30180 | S46: 29471 | T46: 29658 | U46: 29715 | V46: 29531 | W46: 29939 | X46: 31481 | Y46: 33181 | Z46: 35088 | AA46: 35620 | AB46: 36580 | AC46: 36670 | AD46: 36614 | AE46: 37277 | AF46: 37489 | AG46: 39618 | AH46: 39960 | AI46: 38447 | AJ46: 37945 | AK46: 37895 | AL46: 36405 | AM46: 36333 | AN46: 35467 | AO46: 34327 | AP46: 34561 | AQ46: 34784 | AR46: 34652 | AS46: 34053 | AT46: 33226 | AU46: 30240 | AV46: 30123 | AW46: 31267 | AX46: 31116 | AY46: 31915 | AZ46: 33706 | BA46: 35253 | BB46: 36318 | BC46: 35874 | BD46: 37313 | BE46: 37923 | BF46: 38612 | BG46: 37902 | BH46: 39346 | BI46: 38389 | BJ46: 38313 | BK46: 37600 | BL46: 36428 | BM46: 35119 | BN46: 34248 | BO46: 33186 | BP46: 32107 | BQ46: 30809 | BR46: 29023 | BS46: 28488 | BT46: 27419 | BU46: 26036 | BV46: 25711 | BW46: 25509 | BX46: 25483 | BY46: 25624 | BZ46: 26939 | CA46: 19686 | CB46: 17785 | CC46: 17591 | CD46: 15749 | CE46: 13636 | CF46: 11865 | CG46: 11497 | CH46: 10464 | CI46: 9443 | CJ46: 7927 | CK46: 6917 | CL46: 5925 | CM46: 4769 | CN46: 15571 | CP46: 2023
A47: 2024 | B47: 26000 | C47: 26144 | D47: 26356 | E47: 26586 | F47: 26763 | G47: 26581 | H47: 27591 | I47: 28517 | J47: 29664 | K47: 29896 | L47: 30194 | M47: 30572 | N47: 31532 | O47: 32280 | P47: 30634 | Q47: 31442 | R47: 31292 | S47: 30278 | T47: 29684 | U47: 30403 | V47: 30689 | W47: 30160 | X47: 30389 | Y47: 31855 | Z47: 33419 | AA47: 35233 | AB47: 35742 | AC47: 36679 | AD47: 36773 | AE47: 36723 | AF47: 37388 | AG47: 37614 | AH47: 39762 | AI47: 40094 | AJ47: 38563 | AK47: 38051 | AL47: 37982 | AM47: 36475 | AN47: 36376 | AO47: 35497 | AP47: 34342 | AQ47: 34562 | AR47: 34777 | AS47: 34637 | AT47: 34022 | AU47: 33178 | AV47: 30187 | AW47: 30062 | AX47: 31197 | AY47: 31043 | AZ47: 31848 | BA47: 33634 | BB47: 35161 | BC47: 36204 | BD47: 35763 | BE47: 37189 | BF47: 37773 | BG47: 38444 | BH47: 37713 | BI47: 39118 | BJ47: 38149 | BK47: 38047 | BL47: 37299 | BM47: 36087 | BN47: 34757 | BO47: 33873 | BP47: 32773 | BQ47: 31649 | BR47: 30317 | BS47: 28494 | BT47: 27902 | BU47: 26800 | BV47: 25385 | BW47: 24998 | BX47: 24733 | BY47: 24630 | BZ47: 24676 | CA47: 25843 | CB47: 18800 | CC47: 16895 | CD47: 16614 | CE47: 14778 | CF47: 12701 | CG47: 10957 | CH47: 10518 | CI47: 9466 | CJ47: 8431 | CK47: 6981 | CL47: 6004 | CM47: 5062 | CN47: 16087 | CP47: 2024
A48: 2025 | B48: 25969 | C48: 26141 | D48: 26297 | E48: 26478 | F48: 26696 | G48: 26866 | H48: 26675 | I48: 27671 | J48: 28595 | K48: 29757 | L48: 29993 | M48: 30271 | N48: 30640 | O48: 31609 | P48: 32358 | Q48: 30712 | R48: 31527 | S48: 31390 | T48: 30493 | U48: 30437 | V48: 31394 | W48: 31324 | X48: 30610 | Y48: 30764 | Z48: 32098 | AA48: 33569 | AB48: 35356 | AC48: 35843 | AD48: 36783 | AE48: 36882 | AF48: 36833 | AG48: 37511 | AH48: 37758 | AI48: 39897 | AJ48: 40213 | AK48: 38670 | AL48: 38141 | AM48: 38051 | AN48: 36520 | AO48: 36406 | AP48: 35510 | AQ48: 34342 | AR48: 34555 | AS48: 34762 | AT48: 34605 | AU48: 33974 | AV48: 33118 | AW48: 30127 | AX48: 29996 | AY48: 31125 | AZ48: 30976 | BA48: 31781 | BB48: 33550 | BC48: 35052 | BD48: 36092 | BE48: 35648 | BF48: 37044 | BG48: 37612 | BH48: 38255 | BI48: 37501 | BJ48: 38877 | BK48: 37891 | BL48: 37750 | BM48: 36956 | BN48: 35721 | BO48: 34383 | BP48: 33458 | BQ48: 32314 | BR48: 31152 | BS48: 29774 | BT48: 27917 | BU48: 27282 | BV48: 26139 | BW48: 24690 | BX48: 24245 | BY48: 23914 | BZ48: 23730 | CA48: 23685 | CB48: 24695 | CC48: 17870 | CD48: 15967 | CE48: 15602 | CF48: 13775 | CG48: 11739 | CH48: 10033 | CI48: 9523 | CJ48: 8461 | CK48: 7433 | CL48: 6067 | CM48: 5136 | CN48: 16748 | CP48: 2025
A49: 2026 | B49: 25909 | C49: 26110 | D49: 26294 | E49: 26419 | F49: 26588 | G49: 26799 | H49: 26959 | I49: 26754 | J49: 27747 | K49: 28689 | L49: 29854 | M49: 30071 | N49: 30340 | O49: 30718 | P49: 31687 | Q49: 32437 | R49: 30797 | S49: 31625 | T49: 31606 | U49: 31248 | V49: 31432 | W49: 32037 | X49: 31776 | Y49: 30985 | Z49: 31010 | AA49: 32251 | AB49: 33694 | AC49: 35458 | AD49: 35948 | AE49: 36893 | AF49: 36995 | AG49: 36958 | AH49: 37654 | AI49: 37894 | AJ49: 40017 | AK49: 40320 | AL49: 38761 | AM49: 38214 | AN49: 38095 | AO49: 36551 | AP49: 36421 | AQ49: 35510 | AR49: 34337 | AS49: 34542 | AT49: 34732 | AU49: 34558 | AV49: 33915 | AW49: 33048 | AX49: 30060 | AY49: 29927 | AZ49: 31058 | BA49: 30910 | BB49: 31701 | BC49: 33448 | BD49: 34947 | BE49: 35976 | BF49: 35512 | BG49: 36889 | BH49: 37432 | BI49: 38042 | BJ49: 37278 | BK49: 38618 | BL49: 37601 | BM49: 37408 | BN49: 36589 | BO49: 35344 | BP49: 33969 | BQ49: 32998 | BR49: 31817 | BS49: 30603 | BT49: 29181 | BU49: 27304 | BV49: 26618 | BW49: 25433 | BX49: 23956 | BY49: 23452 | BZ49: 23051 | CA49: 22788 | CB49: 22645 | CC49: 23491 | CD49: 16900 | CE49: 15005 | CF49: 14554 | CG49: 12742 | CH49: 10757 | CI49: 9093 | CJ49: 8520 | CK49: 7468 | CL49: 6466 | CM49: 5196 | CN49: 17347 | CP49: 2026
A50: 2027 | B50: 25833 | C50: 26049 | D50: 26263 | E50: 26416 | F50: 26528 | G50: 26690 | H50: 26892 | I50: 27037 | J50: 26829 | K50: 27839 | L50: 28785 | M50: 29931 | N50: 30139 | O50: 30416 | P50: 30795 | Q50: 31767 | R50: 32521 | S50: 30897 | T50: 31843 | U50: 32374 | V50: 32254 | W50: 32077 | X50: 32493 | Y50: 32153 | Z50: 31234 | AA50: 31168 | AB50: 32379 | AC50: 33799 | AD50: 35563 | AE50: 36059 | AF50: 37006 | AG50: 37119 | AH50: 37101 | AI50: 37788 | AJ50: 38016 | AK50: 40128 | AL50: 40411 | AM50: 38834 | AN50: 38260 | AO50: 38124 | AP50: 36565 | AQ50: 36421 | AR50: 35502 | AS50: 34322 | AT50: 34511 | AU50: 34684 | AV50: 34498 | AW50: 33848 | AX50: 32973 | AY50: 29990 | AZ50: 29864 | BA50: 30992 | BB50: 30832 | BC50: 31606 | BD50: 33351 | BE50: 34839 | BF50: 35841 | BG50: 35368 | BH50: 36715 | BI50: 37229 | BJ50: 37819 | BK50: 37037 | BL50: 38327 | BM50: 37267 | BN50: 37043 | BO50: 36210 | BP50: 34926 | BQ50: 33509 | BR50: 32497 | BS50: 31266 | BT50: 30003 | BU50: 28551 | BV50: 26649 | BW50: 25910 | BX50: 24687 | BY50: 23183 | BZ50: 22616 | CA50: 22146 | CB50: 21799 | CC50: 21554 | CD50: 22233 | CE50: 15894 | CF50: 14008 | CG50: 13474 | CH50: 11688 | CI50: 9758 | CJ50: 8144 | CK50: 7528 | CL50: 6504 | CM50: 5544 | CN50: 17884 | CP50: 2027
A51: 2028 | B51: 25745 | C51: 25975 | D51: 26203 | E51: 26385 | F51: 26525 | G51: 26631 | H51: 26784 | I51: 26971 | J51: 27111 | K51: 26920 | L51: 27934 | M51: 28861 | N51: 30000 | O51: 30215 | P51: 30493 | Q51: 30874 | R51: 31852 | S51: 32620 | T51: 31117 | U51: 32625 | V51: 33399 | W51: 32905 | X51: 32535 | Y51: 32870 | Z51: 32399 | AA51: 31391 | AB51: 31299 | AC51: 32486 | AD51: 33906 | AE51: 35675 | AF51: 36172 | AG51: 37132 | AH51: 37261 | AI51: 37236 | AJ51: 37908 | AK51: 38126 | AL51: 40222 | AM51: 40485 | AN51: 38881 | AO51: 38291 | AP51: 38137 | AQ51: 36566 | AR51: 36414 | AS51: 35486 | AT51: 34292 | AU51: 34463 | AV51: 34626 | AW51: 34430 | AX51: 33775 | AY51: 32895 | AZ51: 29927 | BA51: 29803 | BB51: 30916 | BC51: 30741 | BD51: 31516 | BE51: 33250 | BF51: 34712 | BG51: 35697 | BH51: 35205 | BI51: 36519 | BJ51: 37016 | BK51: 37577 | BL51: 36765 | BM51: 37993 | BN51: 36911 | BO51: 36667 | BP51: 35790 | BQ51: 34462 | BR51: 33009 | BS51: 31942 | BT51: 30663 | BU51: 29367 | BV51: 27877 | BW51: 25950 | BX51: 25161 | BY51: 23902 | BZ51: 22366 | CA51: 21739 | CB51: 21197 | CC51: 20761 | CD51: 20412 | CE51: 20925 | CF51: 14850 | CG51: 12981 | CH51: 12371 | CI51: 10614 | CJ51: 8747 | CK51: 7204 | CL51: 6564 | CM51: 5583 | CN51: 18612 | CP51: 2028
A52: 2029 | B52: 25661 | C52: 25888 | D52: 26128 | E52: 26326 | F52: 26494 | G52: 26628 | H52: 26724 | I52: 26861 | J52: 27045 | K52: 27200 | L52: 27012 | M52: 28008 | N52: 28929 | O52: 30076 | P52: 30290 | Q52: 30571 | R52: 30959 | S52: 31952 | T52: 32839 | U52: 31901 | V52: 33659 | W52: 34058 | X52: 33365 | Y52: 32911 | Z52: 33114 | AA52: 32555 | AB52: 31524 | AC52: 31408 | AD52: 32594 | AE52: 34018 | AF52: 35788 | AG52: 36298 | AH52: 37275 | AI52: 37396 | AJ52: 37357 | AK52: 38017 | AL52: 38221 | AM52: 40297 | AN52: 40532 | AO52: 38912 | AP52: 38306 | AQ52: 38135 | AR52: 36558 | AS52: 36399 | AT52: 35453 | AU52: 34245 | AV52: 34405 | AW52: 34558 | AX52: 34355 | AY52: 33700 | AZ52: 32826 | BA52: 29866 | BB52: 29732 | BC52: 30825 | BD52: 30654 | BE52: 31422 | BF52: 33131 | BG52: 34576 | BH52: 35535 | BI52: 35022 | BJ52: 36313 | BK52: 36785 | BL52: 37303 | BM52: 36450 | BN52: 37634 | BO52: 36544 | BP52: 36248 | BQ52: 35321 | BR52: 33955 | BS52: 32455 | BT52: 31336 | BU52: 30020 | BV52: 28684 | BW52: 27158 | BX52: 25210 | BY52: 24369 | BZ52: 23070 | CA52: 21509 | CB52: 20818 | CC52: 20198 | CD52: 19673 | CE52: 19224 | CF52: 19568 | CG52: 13773 | CH52: 11929 | CI52: 11245 | CJ52: 9526 | CK52: 7746 | CL52: 6289 | CM52: 5642 | CN52: 19239 | CP52: 2029
A53: 2030 | B53: 25580 | C53: 25804 | D53: 26043 | E53: 26251 | F53: 26436 | G53: 26597 | H53: 26721 | I53: 26803 | J53: 26936 | K53: 27135 | L53: 27291 | M53: 27086 | N53: 28076 | O53: 29005 | P53: 30152 | Q53: 30369 | R53: 30655 | S53: 31060 | T53: 32175 | U53: 33618 | V53: 32929 | W53: 34322 | X53: 34523 | Y53: 33743 | Z53: 33152 | AA53: 33268 | AB53: 32686 | AC53: 31635 | AD53: 31519 | AE53: 32708 | AF53: 34133 | AG53: 35915 | AH53: 36442 | AI53: 37410 | AJ53: 37516 | AK53: 37467 | AL53: 38111 | AM53: 38298 | AN53: 40346 | AO53: 40564 | AP53: 38927 | AQ53: 38306 | AR53: 38125 | AS53: 36544 | AT53: 36366 | AU53: 35403 | AV53: 34188 | AW53: 34338 | AX53: 34485 | AY53: 34281 | AZ53: 33632 | BA53: 32757 | BB53: 29795 | BC53: 29648 | BD53: 30739 | BE53: 30564 | BF53: 31311 | BG53: 33005 | BH53: 34423 | BI53: 35352 | BJ53: 34829 | BK53: 36090 | BL53: 36524 | BM53: 36988 | BN53: 36114 | BO53: 37265 | BP53: 36135 | BQ53: 35781 | BR53: 34811 | BS53: 33394 | BT53: 31847 | BU53: 30690 | BV53: 29332 | BW53: 27954 | BX53: 26395 | BY53: 24428 | BZ53: 23533 | CA53: 22198 | CB53: 20609 | CC53: 19849 | CD53: 19151 | CE53: 18540 | CF53: 17990 | CG53: 18164 | CH53: 12668 | CI53: 10854 | CJ53: 10103 | CK53: 8444 | CL53: 6770 | CM53: 5412 | CN53: 19797 | CP53: 2030
A54: 2031 | B54: 25509 | C54: 25721 | D54: 25957 | E54: 26166 | F54: 26361 | G54: 26539 | H54: 26690 | I54: 26800 | J54: 26878 | K54: 27025 | L54: 27227 | M54: 27365 | N54: 27153 | O54: 28151 | P54: 29082 | Q54: 30232 | R54: 30454 | S54: 30755 | T54: 31281 | U54: 32970 | V54: 34659 | W54: 33590 | X54: 34788 | Y54: 34901 | Z54: 33984 | AA54: 33305 | AB54: 33398 | AC54: 32794 | AD54: 31745 | AE54: 31633 | AF54: 32823 | AG54: 34260 | AH54: 36059 | AI54: 36578 | AJ54: 37531 | AK54: 37626 | AL54: 37560 | AM54: 38186 | AN54: 38349 | AO54: 40380 | AP54: 40577 | AQ54: 38927 | AR54: 38298 | AS54: 38106 | AT54: 36511 | AU54: 36314 | AV54: 35342 | AW54: 34123 | AX54: 34267 | AY54: 34411 | AZ54: 34214 | BA54: 33568 | BB54: 32679 | BC54: 29710 | BD54: 29568 | BE54: 30650 | BF54: 30456 | BG54: 31192 | BH54: 32861 | BI54: 34250 | BJ54: 35160 | BK54: 34619 | BL54: 35838 | BM54: 36221 | BN54: 36650 | BO54: 35768 | BP54: 36854 | BQ54: 35678 | BR54: 35273 | BS54: 34244 | BT54: 32777 | BU54: 31200 | BV54: 29998 | BW54: 28597 | BX54: 27180 | BY54: 25590 | BZ54: 23602 | CA54: 22655 | CB54: 21281 | CC54: 19661 | CD54: 18832 | CE54: 18061 | CF54: 17362 | CG54: 16713 | CH54: 16723 | CI54: 11538 | CJ54: 9762 | CK54: 8967 | CL54: 7389 | CM54: 5833 | CN54: 20057 | CP54: 2031
A55: 2032 | B55: 25452 | C55: 25653 | D55: 25876 | E55: 26080 | F55: 26276 | G55: 26464 | H55: 26633 | I55: 26769 | J55: 26875 | K55: 26968 | L55: 27116 | M55: 27299 | N55: 27431 | O55: 27226 | P55: 28226 | Q55: 29160 | R55: 30317 | S55: 30555 | T55: 30974 | U55: 32070 | V55: 34016 | W55: 35327 | X55: 34056 | Y55: 35167 | Z55: 35140 | AA55: 34136 | AB55: 33434 | AC55: 33507 | AD55: 32904 | AE55: 31860 | AF55: 31748 | AG55: 32949 | AH55: 34404 | AI55: 36195 | AJ55: 36700 | AK55: 37641 | AL55: 37719 | AM55: 37636 | AN55: 38235 | AO55: 38385 | AP55: 40396 | AQ55: 40576 | AR55: 38919 | AS55: 38281 | AT55: 38070 | AU55: 36462 | AV55: 36253 | AW55: 35275 | AX55: 34053 | AY55: 34195 | AZ55: 34345 | BA55: 34149 | BB55: 33491 | BC55: 32587 | BD55: 29630 | BE55: 29484 | BF55: 30545 | BG55: 30343 | BH55: 31059 | BI55: 32699 | BJ55: 34068 | BK55: 34951 | BL55: 34380 | BM55: 35545 | BN55: 35897 | BO55: 36302 | BP55: 35380 | BQ55: 36395 | BR55: 35179 | BS55: 34708 | BT55: 33622 | BU55: 32121 | BV55: 30507 | BW55: 29257 | BX55: 27817 | BY55: 26362 | BZ55: 24736 | CA55: 22734 | CB55: 21732 | CC55: 20314 | CD55: 18664 | CE55: 17772 | CF55: 16928 | CG55: 16143 | CH55: 15402 | CI55: 15246 | CJ55: 10389 | CK55: 8675 | CL55: 7856 | CM55: 6375 | CN55: 20624 | CP55: 2032
A56: 2033 | B56: 25410 | C56: 25595 | D56: 25807 | E56: 25999 | F56: 26190 | G56: 26379 | H56: 26557 | I56: 26712 | J56: 26844 | K56: 26965 | L56: 27059 | M56: 27190 | N56: 27365 | O56: 27504 | P56: 27300 | Q56: 28302 | R56: 29244 | S56: 30417 | T56: 30774 | U56: 31751 | V56: 33100 | W56: 34686 | X56: 35795 | Y56: 34432 | Z56: 35403 | AA56: 35289 | AB56: 34265 | AC56: 33542 | AD56: 33617 | AE56: 33019 | AF56: 31976 | AG56: 31873 | AH56: 33091 | AI56: 34540 | AJ56: 36315 | AK56: 36810 | AL56: 37736 | AM56: 37795 | AN56: 37687 | AO56: 38270 | AP56: 38405 | AQ56: 40398 | AR56: 40567 | AS56: 38903 | AT56: 38248 | AU56: 38018 | AV56: 36402 | AW56: 36184 | AX56: 35203 | AY56: 33982 | AZ56: 34132 | BA56: 34283 | BB56: 34072 | BC56: 33400 | BD56: 32499 | BE56: 29548 | BF56: 29386 | BG56: 30433 | BH56: 30214 | BI56: 30907 | BJ56: 32528 | BK56: 33870 | BL56: 34715 | BM56: 34103 | BN56: 35232 | BO56: 35563 | BP56: 35914 | BQ56: 34946 | BR56: 35894 | BS56: 34624 | BT56: 34086 | BU56: 32960 | BV56: 31418 | BW56: 29764 | BX56: 28470 | BY56: 26993 | BZ56: 25495 | CA56: 23838 | CB56: 21820 | CC56: 20757 | CD56: 19297 | CE56: 17625 | CF56: 16668 | CG56: 15751 | CH56: 14890 | CI56: 14057 | CJ56: 13742 | CK56: 9243 | CL56: 7610 | CM56: 6787 | CN56: 21553 | CP56: 2033
A57: 2034 | B57: 25380 | C57: 25553 | D57: 25749 | E57: 25930 | F57: 26109 | G57: 26293 | H57: 26472 | I57: 26635 | J57: 26788 | K57: 26934 | L57: 27057 | M57: 27131 | N57: 27256 | O57: 27438 | P57: 27577 | Q57: 27375 | R57: 28385 | S57: 29343 | T57: 30636 | U57: 31548 | V57: 32774 | W57: 33762 | X57: 35155 | Y57: 36175 | Z57: 34669 | AA57: 35551 | AB57: 35416 | AC57: 34373 | AD57: 33651 | AE57: 33731 | AF57: 33135 | AG57: 32101 | AH57: 32013 | AI57: 33225 | AJ57: 34661 | AK57: 36426 | AL57: 36906 | AM57: 37813 | AN57: 37845 | AO57: 37723 | AP57: 38288 | AQ57: 38409 | AR57: 40390 | AS57: 40549 | AT57: 38868 | AU57: 38198 | AV57: 37956 | AW57: 36335 | AX57: 36110 | AY57: 35130 | AZ57: 33921 | BA57: 34072 | BB57: 34208 | BC57: 33982 | BD57: 33314 | BE57: 32408 | BF57: 29449 | BG57: 29282 | BH57: 30306 | BI57: 30069 | BJ57: 30748 | BK57: 32342 | BL57: 33646 | BM57: 34438 | BN57: 33808 | BO57: 34908 | BP57: 35188 | BQ57: 35480 | BR57: 34473 | BS57: 35335 | BT57: 34012 | BU57: 33424 | BV57: 32248 | BW57: 30663 | BX57: 28975 | BY57: 27637 | BZ57: 26118 | CA57: 24583 | CB57: 22893 | CC57: 20855 | CD57: 19732 | CE57: 18236 | CF57: 16543 | CG57: 15522 | CH57: 14541 | CI57: 13602 | CJ57: 12685 | CK57: 12240 | CL57: 8119 | CM57: 6585 | CN57: 22681 | CP57: 2034
A58: 2035 | B58: 25373 | C58: 25523 | D58: 25706 | E58: 25872 | F58: 26040 | G58: 26211 | H58: 26386 | I58: 26551 | J58: 26711 | K58: 26878 | L58: 27026 | M58: 27130 | N58: 27197 | O58: 27329 | P58: 27513 | Q58: 27653 | R58: 27458 | S58: 28484 | T58: 29561 | U58: 31408 | V58: 32568 | W58: 33434 | X58: 34230 | Y58: 35532 | Z58: 36410 | AA58: 34818 | AB58: 35678 | AC58: 35522 | AD58: 34483 | AE58: 33766 | AF58: 33847 | AG58: 33261 | AH58: 32242 | AI58: 32147 | AJ58: 33344 | AK58: 34770 | AL58: 36521 | AM58: 36983 | AN58: 37865 | AO58: 37882 | AP58: 37743 | AQ58: 38293 | AR58: 38406 | AS58: 40375 | AT58: 40513 | AU58: 38818 | AV58: 38138 | AW58: 37886 | AX58: 36264 | AY58: 36036 | AZ58: 35065 | BA58: 33862 | BB58: 33999 | BC58: 34120 | BD58: 33897 | BE58: 33226 | BF58: 32300 | BG58: 29344 | BH58: 29163 | BI58: 30162 | BJ58: 29916 | BK58: 30577 | BL58: 32131 | BM58: 33382 | BN58: 34142 | BO58: 33502 | BP58: 34547 | BQ58: 34767 | BR58: 35004 | BS58: 33942 | BT58: 34719 | BU58: 33359 | BV58: 32711 | BW58: 31484 | BX58: 29861 | BY58: 28140 | BZ58: 26752 | CA58: 25196 | CB58: 23622 | CC58: 21894 | CD58: 19839 | CE58: 18660 | CF58: 17131 | CG58: 15419 | CH58: 14343 | CI58: 13297 | CJ58: 12288 | CK58: 11313 | CL58: 10765 | CM58: 7035 | CN58: 23448 | CP58: 2035
A59: 2036 | B59: 25399 | C59: 25517 | D59: 25677 | E59: 25829 | F59: 25981 | G59: 26143 | H59: 26304 | I59: 26465 | J59: 26626 | K59: 26800 | L59: 26970 | M59: 27098 | N59: 27196 | O59: 27270 | P59: 27403 | Q59: 27589 | R59: 27735 | S59: 27557 | T59: 28700 | U59: 30330 | V59: 32426 | W59: 33227 | X59: 33899 | Y59: 34608 | Z59: 35765 | AA59: 36555 | AB59: 34945 | AC59: 35783 | AD59: 35631 | AE59: 34596 | AF59: 33883 | AG59: 33975 | AH59: 33403 | AI59: 32376 | AJ59: 32266 | AK59: 33453 | AL59: 34866 | AM59: 36598 | AN59: 37035 | AO59: 37902 | AP59: 37901 | AQ59: 37748 | AR59: 38290 | AS59: 38396 | AT59: 40342 | AU59: 40461 | AV59: 38758 | AW59: 38070 | AX59: 37812 | AY59: 36192 | AZ59: 35971 | BA59: 35004 | BB59: 33791 | BC59: 33912 | BD59: 34037 | BE59: 33810 | BF59: 33121 | BG59: 32186 | BH59: 29226 | BI59: 29028 | BJ59: 30010 | BK59: 29749 | BL59: 30380 | BM59: 31883 | BN59: 33100 | BO59: 33837 | BP59: 33160 | BQ59: 34140 | BR59: 34309 | BS59: 34473 | BT59: 33358 | BU59: 34062 | BV59: 32657 | BW59: 31947 | BX59: 30672 | BY59: 29011 | BZ59: 27253 | CA59: 25820 | CB59: 24224 | CC59: 22604 | CD59: 20842 | CE59: 18776 | CF59: 17543 | CG59: 15982 | CH59: 14262 | CI59: 13129 | CJ59: 12027 | CK59: 10971 | CL59: 9964 | CM59: 9340 | CN59: 24464 | CP59: 2036
A60: 2037 | B60: 25458 | C60: 25544 | D60: 25671 | E60: 25800 | F60: 25938 | G60: 26083 | H60: 26236 | I60: 26383 | J60: 26541 | K60: 26716 | L60: 26892 | M60: 27042 | N60: 27164 | O60: 27269 | P60: 27343 | Q60: 27479 | R60: 27671 | S60: 27833 | T60: 27771 | U60: 29455 | V60: 31336 | W60: 33082 | X60: 33691 | Y60: 34276 | Z60: 34844 | AA60: 35910 | AB60: 36681 | AC60: 35052 | AD60: 35892 | AE60: 35747 | AF60: 34714 | AG60: 34010 | AH60: 34118 | AI60: 33537 | AJ60: 32493 | AK60: 32373 | AL60: 33548 | AM60: 34945 | AN60: 36651 | AO60: 37074 | AP60: 37922 | AQ60: 37907 | AR60: 37746 | AS60: 38279 | AT60: 38368 | AU60: 40292 | AV60: 40398 | AW60: 38689 | AX60: 37998 | AY60: 37738 | AZ60: 36131 | BA60: 35911 | BB60: 34932 | BC60: 33707 | BD60: 33831 | BE60: 33952 | BF60: 33705 | BG60: 33009 | BH60: 32057 | BI60: 29092 | BJ60: 28885 | BK60: 29845 | BL60: 29560 | BM60: 30148 | BN60: 31618 | BO60: 32811 | BP60: 33496 | BQ60: 32775 | BR60: 33696 | BS60: 33796 | BT60: 33887 | BU60: 32735 | BV60: 33355 | BW60: 31904 | BX60: 31133 | BY60: 29810 | BZ60: 28107 | CA60: 26316 | CB60: 24836 | CC60: 23194 | CD60: 21531 | CE60: 19739 | CF60: 17666 | CG60: 16381 | CH60: 14797 | CI60: 13069 | CJ60: 11888 | CK60: 10752 | CL60: 9676 | CM60: 8658 | CN60: 27279 | CP60: 2037
A61: 2038 | B61: 25539 | C61: 25603 | D61: 25698 | E61: 25794 | F61: 25909 | G61: 26040 | H61: 26176 | I61: 26315 | J61: 26458 | K61: 26630 | L61: 26808 | M61: 26965 | N61: 27108 | O61: 27237 | P61: 27342 | Q61: 27419 | R61: 27562 | S61: 27769 | T61: 28046 | U61: 28515 | V61: 30445 | W61: 31986 | X61: 33546 | Y61: 34067 | Z61: 34514 | AA61: 34992 | AB61: 36034 | AC61: 36786 | AD61: 35163 | AE61: 36007 | AF61: 35863 | AG61: 34843 | AH61: 34155 | AI61: 34254 | AJ61: 33655 | AK61: 32600 | AL61: 32466 | AM61: 33624 | AN61: 34997 | AO61: 36688 | AP61: 37095 | AQ61: 37928 | AR61: 37904 | AS61: 37736 | AT61: 38250 | AU61: 38322 | AV61: 40233 | AW61: 40327 | AX61: 38617 | AY61: 37927 | AZ61: 37675 | BA61: 36073 | BB61: 35840 | BC61: 34846 | BD61: 33629 | BE61: 33748 | BF61: 33849 | BG61: 33593 | BH61: 32880 | BI61: 31910 | BJ61: 28949 | BK61: 28729 | BL61: 29657 | BM61: 29337 | BN61: 29901 | BO61: 31346 | BP61: 32486 | BQ61: 33113 | BR61: 32353 | BS61: 33198 | BT61: 33229 | BU61: 33261 | BV61: 32064 | BW61: 32596 | BX61: 31102 | BY61: 30270 | BZ61: 28894 | CA61: 27153 | CB61: 25324 | CC61: 23793 | CD61: 22107 | CE61: 20406 | CF61: 18587 | CG61: 16511 | CH61: 15181 | CI61: 13575 | CJ61: 11849 | CK61: 10641 | CL61: 9495 | CM61: 8419 | CN61: 29057 | CP61: 2038
A62: 2039 | B62: 25627 | C62: 25684 | D62: 25757 | E62: 25820 | F62: 25903 | G62: 26011 | H62: 26132 | I62: 26255 | J62: 26390 | K62: 26547 | L62: 26721 | M62: 26880 | N62: 27031 | O62: 27181 | P62: 27310 | Q62: 27418 | R62: 27502 | S62: 27661 | T62: 27981 | U62: 28780 | V62: 29489 | W62: 31089 | X62: 32448 | Y62: 33924 | Z62: 34306 | AA62: 34663 | AB62: 35118 | AC62: 36140 | AD62: 36896 | AE62: 35280 | AF62: 36125 | AG62: 35991 | AH62: 34988 | AI62: 34292 | AJ62: 34374 | AK62: 33763 | AL62: 32693 | AM62: 32543 | AN62: 33677 | AO62: 35037 | AP62: 36711 | AQ62: 37103 | AR62: 37927 | AS62: 37894 | AT62: 37710 | AU62: 38204 | AV62: 38267 | AW62: 40165 | AX62: 40252 | AY62: 38545 | AZ62: 37866 | BA62: 37615 | BB62: 36003 | BC62: 35754 | BD62: 34766 | BE62: 33549 | BF62: 33648 | BG62: 33739 | BH62: 33465 | BI62: 32734 | BJ62: 31756 | BK62: 28795 | BL62: 28552 | BM62: 29437 | BN62: 29100 | BO62: 29647 | BP62: 31039 | BQ62: 32120 | BR62: 32692 | BS62: 31880 | BT62: 32649 | BU62: 32624 | BV62: 32587 | BW62: 31343 | BX62: 31787 | BY62: 30251 | BZ62: 29351 | CA62: 27925 | CB62: 26143 | CC62: 24274 | CD62: 22693 | CE62: 20967 | CF62: 19231 | CG62: 17386 | CH62: 15316 | CI62: 13942 | CJ62: 12321 | CK62: 10620 | CL62: 9411 | CM62: 8274 | CN62: 30315 | CP62: 2039
A63: 2040 | B63: 25690 | C63: 25772 | D63: 25839 | E63: 25880 | F63: 25929 | G63: 26005 | H63: 26104 | I63: 26211 | J63: 26330 | K63: 26479 | L63: 26639 | M63: 26793 | N63: 26945 | O63: 27104 | P63: 27254 | Q63: 27386 | R63: 27502 | S63: 27601 | T63: 27874 | U63: 28718 | V63: 29751 | W63: 30125 | X63: 31547 | Y63: 32825 | Z63: 34163 | AA63: 34457 | AB63: 34791 | AC63: 35225 | AD63: 36250 | AE63: 37011 | AF63: 35398 | AG63: 36257 | AH63: 36139 | AI63: 35127 | AJ63: 34413 | AK63: 34484 | AL63: 33857 | AM63: 32769 | AN63: 32597 | AO63: 33716 | AP63: 35061 | AQ63: 36719 | AR63: 37104 | AS63: 37920 | AT63: 37867 | AU63: 37667 | AV63: 38149 | AW63: 38204 | AX63: 40094 | AY63: 40179 | AZ63: 38484 | BA63: 37808 | BB63: 37544 | BC63: 35918 | BD63: 35674 | BE63: 34685 | BF63: 33452 | BG63: 33540 | BH63: 33613 | BI63: 33320 | BJ63: 32581 | BK63: 31589 | BL63: 28619 | BM63: 28342 | BN63: 29200 | BO63: 28854 | BP63: 29360 | BQ63: 30693 | BR63: 31717 | BS63: 32221 | BT63: 31359 | BU63: 32061 | BV63: 31971 | BW63: 31863 | BX63: 30574 | BY63: 30927 | BZ63: 29343 | CA63: 28379 | CB63: 26900 | CC63: 25073 | CD63: 23164 | CE63: 21537 | CF63: 19774 | CG63: 18004 | CH63: 16143 | CI63: 14081 | CJ63: 12670 | CK63: 11058 | CL63: 9406 | CM63: 8213 | CN63: 31212 | CP63: 2040
A64: 2041 | B64: 25726 | C64: 25836 | D64: 25927 | E64: 25962 | F64: 25989 | G64: 26032 | H64: 26098 | I64: 26184 | J64: 26287 | K64: 26419 | L64: 26570 | M64: 26711 | N64: 26859 | O64: 27019 | P64: 27178 | Q64: 27331 | R64: 27469 | S64: 27601 | T64: 27814 | U64: 28610 | V64: 29690 | W64: 30388 | X64: 30580 | Y64: 31924 | Z64: 33068 | AA64: 34315 | AB64: 34584 | AC64: 34898 | AD64: 35334 | AE64: 36367 | AF64: 37130 | AG64: 35530 | AH64: 36405 | AI64: 36278 | AJ64: 35248 | AK64: 34523 | AL64: 34580 | AM64: 33933 | AN64: 32822 | AO64: 32637 | AP64: 33741 | AQ64: 35072 | AR64: 36721 | AS64: 37098 | AT64: 37893 | AU64: 37824 | AV64: 37614 | AW64: 38088 | AX64: 38139 | AY64: 40024 | AZ64: 40116 | BA64: 38428 | BB64: 37739 | BC64: 37457 | BD64: 35839 | BE64: 35591 | BF64: 34585 | BG64: 33347 | BH64: 33418 | BI64: 33470 | BJ64: 33167 | BK64: 32415 | BL64: 31397 | BM64: 28411 | BN64: 28117 | BO64: 28957 | BP64: 28578 | BQ64: 29037 | BR64: 30314 | BS64: 31265 | BT64: 31700 | BU64: 30800 | BV64: 31427 | BW64: 31269 | BX64: 31091 | BY64: 29758 | BZ64: 30011 | CA64: 28383 | CB64: 27350 | CC64: 25812 | CD64: 23942 | CE64: 22000 | CF64: 20327 | CG64: 18527 | CH64: 16732 | CI64: 14856 | CJ64: 12812 | CK64: 11386 | CL64: 9808 | CM64: 8222 | CN64: 31877 | CP64: 2041
A65: 2042 | B65: 25743 | C65: 25871 | D65: 25992 | E65: 26050 | F65: 26072 | G65: 26091 | H65: 26125 | I65: 26178 | J65: 26260 | K65: 26376 | L65: 26509 | M65: 26642 | N65: 26777 | O65: 26933 | P65: 27093 | Q65: 27255 | R65: 27414 | S65: 27568 | T65: 27814 | U65: 28548 | V65: 29581 | W65: 30327 | X65: 30843 | Y65: 30957 | Z65: 32169 | AA65: 33222 | AB65: 34444 | AC65: 34691 | AD65: 35010 | AE65: 35452 | AF65: 36487 | AG65: 37262 | AH65: 35680 | AI65: 36546 | AJ65: 36402 | AK65: 35360 | AL65: 34619 | AM65: 34658 | AN65: 33986 | AO65: 32862 | AP65: 32663 | AQ65: 33753 | AR65: 35077 | AS65: 36716 | AT65: 37076 | AU65: 37853 | AV65: 37772 | AW65: 37554 | AX65: 38023 | AY65: 38075 | AZ65: 39965 | BA65: 40058 | BB65: 38359 | BC65: 37654 | BD65: 37376 | BE65: 35758 | BF65: 35492 | BG65: 34478 | BH65: 33228 | BI65: 33279 | BJ65: 33320 | BK65: 33001 | BL65: 32224 | BM65: 31172 | BN65: 28187 | BO65: 27886 | BP65: 28682 | BQ65: 28266 | BR65: 28682 | BS65: 29887 | BT65: 30766 | BU65: 31142 | BV65: 30198 | BW65: 30745 | BX65: 30521 | BY65: 30271 | BZ65: 28886 | CA65: 29041 | CB65: 27366 | CC65: 26257 | CD65: 24661 | CE65: 22753 | CF65: 20779 | CG65: 19060 | CH65: 17234 | CI65: 15415 | CJ65: 13531 | CK65: 11529 | CL65: 10114 | CM65: 8587 | CN65: 32421
A66: 2043 | B66: 25732 | C66: 25889 | D66: 26027 | E66: 26116 | F66: 26160 | G66: 26175 | H66: 26185 | I66: 26205 | J66: 26252 | K66: 26349 | L66: 26467 | M66: 26582 | N66: 26707 | O66: 26851 | P66: 27007 | Q66: 27170 | R66: 27338 | S66: 27512 | T66: 27781 | U66: 28547 | V66: 29519 | W66: 30217 | X66: 30782 | Y66: 31224 | Z66: 31207 | AA66: 32326 | AB66: 33352 | AC66: 34554 | AD66: 34803 | AE66: 35127 | AF66: 35572 | AG66: 36620 | AH66: 37411 | AI66: 35822 | AJ66: 36671 | AK66: 36516 | AL66: 35458 | AM66: 34698 | AN66: 34712 | AO66: 34026 | AP66: 32887 | AQ66: 32676 | AR66: 33758 | AS66: 35075 | AT66: 36695 | AU66: 37038 | AV66: 37802 | AW66: 37713 | AX66: 37492 | AY66: 37959 | AZ66: 38021 | BA66: 39911 | BB66: 39987 | BC66: 38274 | BD66: 37575 | BE66: 37293 | BF66: 35662 | BG66: 35385 | BH66: 34356 | BI66: 33092 | BJ66: 33133 | BK66: 33158 | BL66: 32811 | BM66: 31998 | BN66: 30929 | BO66: 27957 | BP66: 27626 | BQ66: 28372 | BR66: 27924 | BS66: 28280 | BT66: 29414 | BU66: 30231 | BV66: 30540 | BW66: 29550 | BX66: 30018 | BY66: 29724 | BZ66: 29395 | CA66: 27963 | CB66: 28013 | CC66: 26286 | CD66: 25100 | CE66: 23452 | CF66: 21505 | CG66: 19500 | CH66: 17745 | CI66: 15893 | CJ66: 14056 | CK66: 12191 | CL66: 10256 | CM66: 8869 | CN66: 33183
A68: © Crown Copyright 2019

Sheet Females
A1: Scotland | CP1: Scotland
A3: Females | B3: 0 | C3: 1 | D3: 2 | E3: 3 | F3: 4 | G3: 5 | H3: 6 | I3: 7 | J3: 8 | K3: 9 | L3: 10 | M3: 11 | N3: 12 | O3: 13 | P3: 14 | Q3: 15 | R3: 16 | S3: 17 | T3: 18 | U3: 19 | V3: 20 | W3: 21 | X3: 22 | Y3: 23 | Z3: 24 | AA3: 25 | AB3: 26 | AC3: 27 | AD3: 28 | AE3: 29 | AF3: 30 | AG3: 31 | AH3: 32 | AI3: 33 | AJ3: 34 | AK3: 35 | AL3: 36 | AM3: 37 | AN3: 38 | AO3: 39 | AP3: 40 | AQ3: 41 | AR3: 42 | AS3: 43 | AT3: 44 | AU3: 45 | AV3: 46 | AW3: 47 | AX3: 48 | AY3: 49 | AZ3: 50 | BA3: 51 | BB3: 52 | BC3: 53 | BD3: 54 | BE3: 55 | BF3: 56 | BG3: 57 | BH3: 58 | BI3: 59 | BJ3: 60 | BK3: 61 | BL3: 62 | BM3: 63 | BN3: 64 | BO3: 65 | BP3: 66 | BQ3: 67 | BR3: 68 | BS3: 69 | BT3: 70 | BU3: 71 | BV3: 72 | BW3: 73 | BX3: 74 | BY3: 75 | BZ3: 76 | CA3: 77 | CB3: 78 | CC3: 79 | CD3: 80 | CE3: 81 | CF3: 82 | CG3: 83 | CH3: 84 | CI3: 85 | CJ3: 86 | CK3: 87 | CL3: 88 | CM3: 89 | CN3: 90+ | CP3: Females
A4: 1981 | B4: 33266 | C4: 32581 | D4: 30995 | E4: 29205 | F4: 28643 | G4: 31299 | H4: 32077 | I4: 32738 | J4: 35159 | K4: 38287 | L4: 40381 | M4: 40762 | N4: 42130 | O4: 43476 | P4: 43879 | Q4: 43894 | R4: 46361 | S4: 45919 | T4: 44822 | U4: 44173 | V4: 43551 | W4: 42042 | X4: 41338 | Y4: 39828 | Z4: 38152 | AA4: 36938 | AB4: 35674 | AC4: 35386 | AD4: 34628 | AE4: 33546 | AF4: 34373 | AG4: 34566 | AH4: 35848 | AI4: 37513 | AJ4: 40860 | AK4: 31690 | AL4: 30464 | AM4: 31699 | AN4: 31623 | AO4: 30073 | AP4: 28733 | AQ4: 30091 | AR4: 30063 | AS4: 30039 | AT4: 30199 | AU4: 29952 | AV4: 29638 | AW4: 29182 | AX4: 29375 | AY4: 30708 | AZ4: 30663 | BA4: 30963 | BB4: 30613 | BC4: 30046 | BD4: 30446 | BE4: 31183 | BF4: 30244 | BG4: 30754 | BH4: 30260 | BI4: 31972 | BJ4: 33018 | BK4: 34812 | BL4: 25021 | BM4: 23992 | BN4: 25461 | BO4: 27038 | BP4: 29028 | BQ4: 28901 | BR4: 27871 | BS4: 27091 | BT4: 26582 | BU4: 26267 | BV4: 25504 | BW4: 24442 | BX4: 22638 | BY4: 22099 | BZ4: 20717 | CA4: 19414 | CB4: 17730 | CC4: 16297 | CD4: 15094 | CE4: 13650 | CF4: 11349 | CG4: 10014 | CH4: 8759 | CI4: 7686 | CJ4: 6187 | CK4: 5156 | CL4: 4329 | CM4: 3371 | CN4: 10859 | CP4: 1981
A5: 1982 | B5: 32590 | C5: 33052 | D5: 32426 | E5: 30878 | F5: 29106 | G5: 28565 | H5: 31176 | I5: 32018 | J5: 32632 | K5: 35105 | L5: 38180 | M5: 40300 | N5: 40715 | O5: 42078 | P5: 43396 | Q5: 43817 | R5: 43772 | S5: 46126 | T5: 45692 | U5: 44627 | V5: 43842 | W5: 43035 | X5: 41667 | Y5: 40636 | Z5: 39247 | AA5: 37766 | AB5: 36680 | AC5: 35398 | AD5: 35215 | AE5: 34407 | AF5: 33425 | AG5: 34272 | AH5: 34401 | AI5: 35699 | AJ5: 37397 | AK5: 40710 | AL5: 31540 | AM5: 30398 | AN5: 31658 | AO5: 31527 | AP5: 29926 | AQ5: 28632 | AR5: 29939 | AS5: 29951 | AT5: 29926 | AU5: 30089 | AV5: 29818 | AW5: 29525 | AX5: 29085 | AY5: 29259 | AZ5: 30532 | BA5: 30499 | BB5: 30766 | BC5: 30400 | BD5: 29838 | BE5: 30230 | BF5: 30915 | BG5: 30018 | BH5: 30426 | BI5: 29959 | BJ5: 31627 | BK5: 32581 | BL5: 34313 | BM5: 24612 | BN5: 23580 | BO5: 24976 | BP5: 26500 | BQ5: 28375 | BR5: 28185 | BS5: 27094 | BT5: 26247 | BU5: 25740 | BV5: 25326 | BW5: 24459 | BX5: 23411 | BY5: 21600 | BZ5: 20950 | CA5: 19513 | CB5: 18162 | CC5: 16512 | CD5: 15013 | CE5: 13797 | CF5: 12380 | CG5: 10144 | CH5: 8905 | CI5: 7687 | CJ5: 6649 | CK5: 5221 | CL5: 4256 | CM5: 3509 | CN5: 10977 | CP5: 1982
A6: 1983 | B6: 31699 | C6: 32325 | D6: 32902 | E6: 32279 | F6: 30845 | G6: 29069 | H6: 28512 | I6: 31186 | J6: 31934 | K6: 32545 | L6: 35073 | M6: 38094 | N6: 40311 | O6: 40639 | P6: 42010 | Q6: 43334 | R6: 43702 | S6: 43587 | T6: 45839 | U6: 45305 | V6: 44419 | W6: 43420 | X6: 42568 | Y6: 40998 | Z6: 40095 | AA6: 38879 | AB6: 37419 | AC6: 36479 | AD6: 35044 | AE6: 34990 | AF6: 34156 | AG6: 33264 | AH6: 34102 | AI6: 34224 | AJ6: 35595 | AK6: 37231 | AL6: 40577 | AM6: 31396 | AN6: 30311 | AO6: 31608 | AP6: 31413 | AQ6: 29798 | AR6: 28523 | AS6: 29836 | AT6: 29878 | AU6: 29832 | AV6: 29940 | AW6: 29651 | AX6: 29395 | AY6: 28941 | AZ6: 29095 | BA6: 30355 | BB6: 30339 | BC6: 30552 | BD6: 30180 | BE6: 29637 | BF6: 29958 | BG6: 30630 | BH6: 29763 | BI6: 30088 | BJ6: 29634 | BK6: 31235 | BL6: 32152 | BM6: 33807 | BN6: 24163 | BO6: 23106 | BP6: 24461 | BQ6: 25926 | BR6: 27682 | BS6: 27436 | BT6: 26316 | BU6: 25418 | BV6: 24846 | BW6: 24334 | BX6: 23425 | BY6: 22348 | BZ6: 20465 | CA6: 19762 | CB6: 18325 | CC6: 16990 | CD6: 15328 | CE6: 13781 | CF6: 12556 | CG6: 11217 | CH6: 9029 | CI6: 7859 | CJ6: 6670 | CK6: 5711 | CL6: 4385 | CM6: 3480 | CN6: 11429 | CP6: 1983
A7: 1984 | B7: 31049 | C7: 31619 | D7: 32197 | E7: 32825 | F7: 32164 | G7: 30814 | H7: 29059 | I7: 28501 | J7: 31080 | K7: 31916 | L7: 32486 | M7: 35030 | N7: 38008 | O7: 40230 | P7: 40588 | Q7: 41966 | R7: 43293 | S7: 43554 | T7: 43318 | U7: 45623 | V7: 45244 | W7: 44227 | X7: 43014 | Y7: 42150 | Z7: 40610 | AA7: 39873 | AB7: 38699 | AC7: 37303 | AD7: 36383 | AE7: 35059 | AF7: 34797 | AG7: 34108 | AH7: 33125 | AI7: 33967 | AJ7: 34127 | AK7: 35597 | AL7: 37115 | AM7: 40501 | AN7: 31298 | AO7: 30231 | AP7: 31532 | AQ7: 31285 | AR7: 29678 | AS7: 28425 | AT7: 29732 | AU7: 29800 | AV7: 29751 | AW7: 29810 | AX7: 29553 | AY7: 29287 | AZ7: 28810 | BA7: 28951 | BB7: 30162 | BC7: 30180 | BD7: 30367 | BE7: 29982 | BF7: 29395 | BG7: 29716 | BH7: 30368 | BI7: 29468 | BJ7: 29716 | BK7: 29298 | BL7: 30825 | BM7: 31655 | BN7: 33308 | BO7: 23729 | BP7: 22639 | BQ7: 23945 | BR7: 25364 | BS7: 27006 | BT7: 26667 | BU7: 25522 | BV7: 24543 | BW7: 23934 | BX7: 23389 | BY7: 22418 | BZ7: 21300 | CA7: 19363 | CB7: 18641 | CC7: 17124 | CD7: 15780 | CE7: 14209 | CF7: 12614 | CG7: 11417 | CH7: 10087 | CI7: 7956 | CJ7: 6881 | CK7: 5739 | CL7: 4871 | CM7: 3610 | CN7: 11707 | CP7: 1984
A8: 1985 | B8: 32064 | C8: 30811 | D8: 31362 | E8: 31987 | F8: 32623 | G8: 32063 | H8: 30727 | I8: 29000 | J8: 28372 | K8: 31042 | L8: 31865 | M8: 32454 | N8: 34966 | O8: 37962 | P8: 40168 | Q8: 40554 | R8: 41863 | S8: 43087 | T8: 43184 | U8: 42917 | V8: 45397 | W8: 44800 | X8: 43642 | Y8: 42266 | Z8: 41711 | AA8: 40265 | AB8: 39617 | AC8: 38465 | AD8: 37217 | AE8: 36218 | AF8: 34931 | AG8: 34718 | AH8: 34009 | AI8: 33028 | AJ8: 33938 | AK8: 34082 | AL8: 35548 | AM8: 37082 | AN8: 40462 | AO8: 31245 | AP8: 30188 | AQ8: 31434 | AR8: 31201 | AS8: 29589 | AT8: 28361 | AU8: 29579 | AV8: 29728 | AW8: 29696 | AX8: 29673 | AY8: 29456 | AZ8: 29165 | BA8: 28678 | BB8: 28818 | BC8: 29979 | BD8: 30031 | BE8: 30171 | BF8: 29756 | BG8: 29154 | BH8: 29465 | BI8: 30064 | BJ8: 29180 | BK8: 29358 | BL8: 28926 | BM8: 30400 | BN8: 31105 | BO8: 32783 | BP8: 23230 | BQ8: 22147 | BR8: 23393 | BS8: 24727 | BT8: 26233 | BU8: 25833 | BV8: 24683 | BW8: 23630 | BX8: 22958 | BY8: 22373 | BZ8: 21356 | CA8: 20196 | CB8: 18284 | CC8: 17510 | CD8: 15929 | CE8: 14561 | CF8: 13022 | CG8: 11437 | CH8: 10289 | CI8: 8995 | CJ8: 6967 | CK8: 5989 | CL8: 4898 | CM8: 4078 | CN8: 12008 | CP8: 1985
A9: 1986 | B9: 32301 | C9: 31946 | D9: 30665 | E9: 31178 | F9: 31930 | G9: 32504 | H9: 32001 | I9: 30669 | J9: 28907 | K9: 28306 | L9: 30946 | M9: 31749 | N9: 32390 | O9: 34843 | P9: 37875 | Q9: 40091 | R9: 40479 | S9: 41672 | T9: 42812 | U9: 42873 | V9: 42835 | W9: 45012 | X9: 44195 | Y9: 42875 | Z9: 41614 | AA9: 41292 | AB9: 39939 | AC9: 39389 | AD9: 38294 | AE9: 37004 | AF9: 35973 | AG9: 34748 | AH9: 34540 | AI9: 33817 | AJ9: 32856 | AK9: 33774 | AL9: 33924 | AM9: 35445 | AN9: 36942 | AO9: 40317 | AP9: 31148 | AQ9: 30062 | AR9: 31308 | AS9: 31129 | AT9: 29458 | AU9: 28246 | AV9: 29470 | AW9: 29623 | AX9: 29558 | AY9: 29516 | AZ9: 29311 | BA9: 29009 | BB9: 28522 | BC9: 28638 | BD9: 29775 | BE9: 29860 | BF9: 29958 | BG9: 29484 | BH9: 28896 | BI9: 29125 | BJ9: 29728 | BK9: 28841 | BL9: 28945 | BM9: 28530 | BN9: 29963 | BO9: 30548 | BP9: 32153 | BQ9: 22674 | BR9: 21631 | BS9: 22771 | BT9: 23994 | BU9: 25381 | BV9: 24919 | BW9: 23732 | BX9: 22628 | BY9: 21890 | BZ9: 21248 | CA9: 20201 | CB9: 18991 | CC9: 17072 | CD9: 16286 | CE9: 14651 | CF9: 13301 | CG9: 11777 | CH9: 10244 | CI9: 9134 | CJ9: 7901 | CK9: 5943 | CL9: 5040 | CM9: 4047 | CN9: 12267 | CP9: 1986
A10: 1987 | B10: 31984 | C10: 32196 | D10: 31753 | E10: 30452 | F10: 31078 | G10: 31798 | H10: 32342 | I10: 31921 | J10: 30593 | K10: 28860 | L10: 28270 | M10: 30915 | N10: 31658 | O10: 32324 | P10: 34744 | Q10: 37766 | R10: 40035 | S10: 40316 | T10: 41545 | U10: 42652 | V10: 42747 | W10: 42511 | X10: 44341 | Y10: 43400 | Z10: 42173 | AA10: 41100 | AB10: 40888 | AC10: 39652 | AD10: 39072 | AE10: 38073 | AF10: 36819 | AG10: 35846 | AH10: 34614 | AI10: 34361 | AJ10: 33681 | AK10: 32733 | AL10: 33638 | AM10: 33806 | AN10: 35325 | AO10: 36810 | AP10: 40242 | AQ10: 31055 | AR10: 29995 | AS10: 31170 | AT10: 31046 | AU10: 29411 | AV10: 28130 | AW10: 29384 | AX10: 29503 | AY10: 29444 | AZ10: 29394 | BA10: 29173 | BB10: 28868 | BC10: 28354 | BD10: 28476 | BE10: 29572 | BF10: 29686 | BG10: 29725 | BH10: 29246 | BI10: 28658 | BJ10: 28867 | BK10: 29433 | BL10: 28517 | BM10: 28524 | BN10: 28108 | BO10: 29493 | BP10: 30019 | BQ10: 31542 | BR10: 22130 | BS10: 21110 | BT10: 22135 | BU10: 23290 | BV10: 24544 | BW10: 24049 | BX10: 22836 | BY10: 21672 | BZ10: 20895 | CA10: 20178 | CB10: 19075 | CC10: 17862 | CD10: 15933 | CE10: 15140 | CF10: 13517 | CG10: 12158 | CH10: 10681 | CI10: 9172 | CJ10: 8123 | CK10: 6962 | CL10: 5061 | CM10: 4225 | CN10: 13042 | CP10: 1987
A11: 1988 | B11: 32099 | C11: 31686 | D11: 31955 | E11: 31457 | F11: 30253 | G11: 30918 | H11: 31633 | I11: 32200 | J11: 31778 | K11: 30470 | L11: 28816 | M11: 28240 | N11: 30825 | O11: 31579 | P11: 32210 | Q11: 34661 | R11: 37606 | S11: 39793 | T11: 39985 | U11: 41170 | V11: 42415 | W11: 42217 | X11: 41700 | Y11: 43192 | Z11: 42500 | AA11: 41384 | AB11: 40409 | AC11: 40401 | AD11: 39259 | AE11: 38686 | AF11: 37744 | AG11: 36542 | AH11: 35621 | AI11: 34438 | AJ11: 34182 | AK11: 33532 | AL11: 32629 | AM11: 33483 | AN11: 33709 | AO11: 35166 | AP11: 36659 | AQ11: 40064 | AR11: 30885 | AS11: 29867 | AT11: 31049 | AU11: 30889 | AV11: 29290 | AW11: 28025 | AX11: 29243 | AY11: 29394 | AZ11: 29309 | BA11: 29248 | BB11: 29030 | BC11: 28744 | BD11: 28220 | BE11: 28268 | BF11: 29416 | BG11: 29485 | BH11: 29459 | BI11: 28985 | BJ11: 28388 | BK11: 28569 | BL11: 29083 | BM11: 28174 | BN11: 28123 | BO11: 27663 | BP11: 29004 | BQ11: 29370 | BR11: 30854 | BS11: 21563 | BT11: 20572 | BU11: 21502 | BV11: 22598 | BW11: 23654 | BX11: 23120 | BY11: 21870 | BZ11: 20647 | CA11: 19894 | CB11: 19075 | CC11: 17942 | CD11: 16670 | CE11: 14779 | CF11: 13962 | CG11: 12318 | CH11: 10950 | CI11: 9543 | CJ11: 8101 | CK11: 7165 | CL11: 5986 | CM11: 4269 | CN11: 13641 | CP11: 1988
A12: 1989 | B12: 31303 | C12: 32068 | D12: 31801 | E12: 32001 | F12: 31504 | G12: 30251 | H12: 30992 | I12: 31756 | J12: 32308 | K12: 31862 | L12: 30554 | M12: 28936 | N12: 28289 | O12: 30853 | P12: 31605 | Q12: 32257 | R12: 34646 | S12: 37500 | T12: 39572 | U12: 39780 | V12: 40957 | W12: 42133 | X12: 41667 | Y12: 40922 | Z12: 42434 | AA12: 42089 | AB12: 41182 | AC12: 40424 | AD12: 40466 | AE12: 39216 | AF12: 38693 | AG12: 37801 | AH12: 36753 | AI12: 35663 | AJ12: 34463 | AK12: 34266 | AL12: 33589 | AM12: 32720 | AN12: 33521 | AO12: 33756 | AP12: 35222 | AQ12: 36689 | AR12: 40110 | AS12: 30924 | AT12: 29862 | AU12: 31061 | AV12: 30859 | AW12: 29284 | AX12: 28011 | AY12: 29206 | AZ12: 29354 | BA12: 29253 | BB12: 29215 | BC12: 28953 | BD12: 28702 | BE12: 28175 | BF12: 28139 | BG12: 29309 | BH12: 29316 | BI12: 29317 | BJ12: 28809 | BK12: 28207 | BL12: 28344 | BM12: 28749 | BN12: 27888 | BO12: 27737 | BP12: 27285 | BQ12: 28506 | BR12: 28848 | BS12: 30140 | BT12: 21055 | BU12: 20058 | BV12: 20877 | BW12: 21896 | BX12: 22791 | BY12: 22223 | BZ12: 20926 | CA12: 19580 | CB12: 18835 | CC12: 17995 | CD12: 16754 | CE12: 15442 | CF12: 13590 | CG12: 12722 | CH12: 11143 | CI12: 9864 | CJ12: 8498 | CK12: 7148 | CL12: 6253 | CM12: 5115 | CN12: 14233 | CP12: 1989
A13: 1990 | B13: 31080 | C13: 31284 | D13: 32135 | E13: 31868 | F13: 32075 | G13: 31598 | H13: 30337 | I13: 31073 | J13: 31822 | K13: 32415 | L13: 32013 | M13: 30636 | N13: 29026 | O13: 28353 | P13: 30892 | Q13: 31645 | R13: 32253 | S13: 34531 | T13: 37268 | U13: 39760 | V13: 40031 | W13: 40946 | X13: 41871 | Y13: 41276 | Z13: 40757 | AA13: 42421 | AB13: 42209 | AC13: 41297 | AD13: 40602 | AE13: 40665 | AF13: 39473 | AG13: 38823 | AH13: 37987 | AI13: 36944 | AJ13: 35824 | AK13: 34626 | AL13: 34326 | AM13: 33693 | AN13: 32776 | AO13: 33579 | AP13: 33817 | AQ13: 35247 | AR13: 36751 | AS13: 40081 | AT13: 30929 | AU13: 29836 | AV13: 31012 | AW13: 30818 | AX13: 29233 | AY13: 27969 | AZ13: 29167 | BA13: 29302 | BB13: 29204 | BC13: 29121 | BD13: 28827 | BE13: 28576 | BF13: 28021 | BG13: 27942 | BH13: 29092 | BI13: 29088 | BJ13: 29081 | BK13: 28558 | BL13: 27891 | BM13: 28045 | BN13: 28350 | BO13: 27468 | BP13: 27233 | BQ13: 26833 | BR13: 27896 | BS13: 28196 | BT13: 29332 | BU13: 20499 | BV13: 19453 | BW13: 20106 | BX13: 21092 | BY13: 21833 | BZ13: 21116 | CA13: 19863 | CB13: 18457 | CC13: 17698 | CD13: 16745 | CE13: 15489 | CF13: 14065 | CG13: 12313 | CH13: 11426 | CI13: 9842 | CJ13: 8705 | CK13: 7365 | CL13: 6066 | CM13: 5285 | CN13: 14881 | CP13: 1990
A14: 1991 | B14: 32083 | C14: 31006 | D14: 31236 | E14: 32103 | F14: 31868 | G14: 32089 | H14: 31575 | I14: 30314 | J14: 31036 | K14: 31800 | L14: 32468 | M14: 32027 | N14: 30661 | O14: 29051 | P14: 28345 | Q14: 30898 | R14: 31619 | S14: 32141 | T14: 34081 | U14: 37231 | V14: 39892 | W14: 39902 | X14: 40721 | Y14: 41551 | Z14: 41089 | AA14: 40733 | AB14: 42409 | AC14: 42233 | AD14: 41452 | AE14: 40643 | AF14: 40778 | AG14: 39612 | AH14: 38890 | AI14: 38057 | AJ14: 36986 | AK14: 35816 | AL14: 34617 | AM14: 34374 | AN14: 33675 | AO14: 32763 | AP14: 33555 | AQ14: 33814 | AR14: 35237 | AS14: 36753 | AT14: 40033 | AU14: 30904 | AV14: 29797 | AW14: 30988 | AX14: 30778 | AY14: 29149 | AZ14: 27857 | BA14: 29060 | BB14: 29208 | BC14: 29093 | BD14: 28958 | BE14: 28685 | BF14: 28429 | BG14: 27874 | BH14: 27730 | BI14: 28849 | BJ14: 28840 | BK14: 28802 | BL14: 28240 | BM14: 27540 | BN14: 27644 | BO14: 27917 | BP14: 27036 | BQ14: 26712 | BR14: 26264 | BS14: 27234 | BT14: 27502 | BU14: 28560 | BV14: 19818 | BW14: 18777 | BX14: 19354 | BY14: 20323 | BZ14: 20869 | CA14: 20101 | CB14: 18783 | CC14: 17347 | CD14: 16543 | CE14: 15569 | CF14: 14294 | CG14: 12809 | CH14: 11076 | CI14: 10222 | CJ14: 8756 | CK14: 7623 | CL14: 6376 | CM14: 5178 | CN14: 16130 | CP14: 1991
A15: 1992 | B15: 32611 | C15: 32040 | D15: 30948 | E15: 31155 | F15: 32049 | G15: 31823 | H15: 32060 | I15: 31616 | J15: 30335 | K15: 30988 | L15: 31683 | M15: 32457 | N15: 32040 | O15: 30640 | P15: 29002 | Q15: 28328 | R15: 30769 | S15: 31510 | T15: 31797 | U15: 34925 | V15: 37701 | W15: 39815 | X15: 39518 | Y15: 40239 | Z15: 41009 | AA15: 40916 | AB15: 40573 | AC15: 42278 | AD15: 42185 | AE15: 41465 | AF15: 40567 | AG15: 40706 | AH15: 39607 | AI15: 38895 | AJ15: 38132 | AK15: 36993 | AL15: 35875 | AM15: 34666 | AN15: 34339 | AO15: 33694 | AP15: 32772 | AQ15: 33559 | AR15: 33823 | AS15: 35244 | AT15: 36732 | AU15: 39958 | AV15: 30881 | AW15: 29769 | AX15: 30974 | AY15: 30709 | AZ15: 29119 | BA15: 27793 | BB15: 28984 | BC15: 29133 | BD15: 28993 | BE15: 28859 | BF15: 28531 | BG15: 28295 | BH15: 27723 | BI15: 27547 | BJ15: 28656 | BK15: 28573 | BL15: 28471 | BM15: 27888 | BN15: 27175 | BO15: 27195 | BP15: 27461 | BQ15: 26504 | BR15: 26179 | BS15: 25654 | BT15: 26516 | BU15: 26713 | BV15: 27666 | BW15: 19159 | BX15: 18081 | BY15: 18517 | BZ15: 19463 | CA15: 19857 | CB15: 19022 | CC15: 17697 | CD15: 16260 | CE15: 15391 | CF15: 14443 | CG15: 13101 | CH15: 11603 | CI15: 9949 | CJ15: 9034 | CK15: 7703 | CL15: 6635 | CM15: 5460 | CN15: 16975 | CP15: 1992
A16: 1993 | B16: 31396 | C16: 32557 | D16: 32076 | E16: 31004 | F16: 31103 | G16: 32077 | H16: 31845 | I16: 32062 | J16: 31720 | K16: 30393 | L16: 30956 | M16: 31636 | N16: 32511 | O16: 32056 | P16: 30644 | Q16: 28998 | R16: 28274 | S16: 30681 | T16: 31349 | U16: 32951 | V16: 35479 | W16: 37910 | X16: 39655 | Y16: 39116 | Z16: 39961 | AA16: 40832 | AB16: 40893 | AC16: 40700 | AD16: 42314 | AE16: 42229 | AF16: 41562 | AG16: 40673 | AH16: 40763 | AI16: 39678 | AJ16: 39038 | AK16: 38242 | AL16: 37007 | AM16: 35917 | AN16: 34736 | AO16: 34403 | AP16: 33729 | AQ16: 32777 | AR16: 33612 | AS16: 33857 | AT16: 35173 | AU16: 36718 | AV16: 39935 | AW16: 30835 | AX16: 29768 | AY16: 30952 | AZ16: 30688 | BA16: 29093 | BB16: 27762 | BC16: 28902 | BD16: 29043 | BE16: 28894 | BF16: 28693 | BG16: 28451 | BH16: 28162 | BI16: 27561 | BJ16: 27314 | BK16: 28422 | BL16: 28254 | BM16: 28136 | BN16: 27515 | BO16: 26775 | BP16: 26702 | BQ16: 26967 | BR16: 25964 | BS16: 25646 | BT16: 24984 | BU16: 25795 | BV16: 25943 | BW16: 26749 | BX16: 18473 | BY16: 17321 | BZ16: 17672 | CA16: 18490 | CB16: 18765 | CC16: 17954 | CD16: 16524 | CE16: 15091 | CF16: 14162 | CG16: 13213 | CH16: 11937 | CI16: 10471 | CJ16: 8774 | CK16: 7891 | CL16: 6684 | CM16: 5669 | CN16: 17782 | CP16: 1993
A17: 1994 | B17: 30702 | C17: 31378 | D17: 32519 | E17: 32101 | F17: 31091 | G17: 31150 | H17: 32116 | I17: 31914 | J17: 32121 | K17: 31879 | L17: 30495 | M17: 30928 | N17: 31601 | O17: 32451 | P17: 32082 | Q17: 30638 | R17: 28999 | S17: 28277 | T17: 30667 | U17: 32655 | V17: 33674 | W17: 35707 | X17: 37868 | Y17: 39268 | Z17: 38855 | AA17: 39929 | AB17: 40847 | AC17: 41073 | AD17: 40912 | AE17: 42401 | AF17: 42361 | AG17: 41747 | AH17: 40819 | AI17: 40878 | AJ17: 39774 | AK17: 39122 | AL17: 38371 | AM17: 37104 | AN17: 36014 | AO17: 34824 | AP17: 34496 | AQ17: 33747 | AR17: 32763 | AS17: 33623 | AT17: 33919 | AU17: 35173 | AV17: 36682 | AW17: 39944 | AX17: 30806 | AY17: 29799 | AZ17: 30934 | BA17: 30684 | BB17: 29025 | BC17: 27666 | BD17: 28808 | BE17: 28947 | BF17: 28749 | BG17: 28544 | BH17: 28315 | BI17: 27991 | BJ17: 27375 | BK17: 27151 | BL17: 28164 | BM17: 27944 | BN17: 27791 | BO17: 27148 | BP17: 26312 | BQ17: 26191 | BR17: 26402 | BS17: 25400 | BT17: 24986 | BU17: 24271 | BV17: 25017 | BW17: 25147 | BX17: 25785 | BY17: 17765 | BZ17: 16538 | CA17: 16795 | CB17: 17517 | CC17: 17644 | CD17: 16798 | CE17: 15295 | CF17: 13981 | CG17: 12957 | CH17: 11980 | CI17: 10796 | CJ17: 9299 | CK17: 7633 | CL17: 6786 | CM17: 5713 | CN17: 18360 | CP17: 1994
A18: 1995 | B18: 29426 | C18: 30575 | D18: 31323 | E18: 32419 | F18: 32070 | G18: 31060 | H18: 31155 | I18: 32060 | J18: 31908 | K18: 32117 | L18: 31972 | M18: 30508 | N18: 30868 | O18: 31524 | P18: 32402 | Q18: 32081 | R18: 30610 | S18: 28873 | T18: 28292 | U18: 32138 | V18: 33343 | W18: 33764 | X18: 35523 | Y18: 37414 | Z18: 38935 | AA18: 38649 | AB18: 39827 | AC18: 40828 | AD18: 41084 | AE18: 40982 | AF18: 42342 | AG18: 42423 | AH18: 41880 | AI18: 40847 | AJ18: 40872 | AK18: 39737 | AL18: 39199 | AM18: 38382 | AN18: 37182 | AO18: 36050 | AP18: 34801 | AQ18: 34494 | AR18: 33758 | AS18: 32757 | AT18: 33627 | AU18: 33912 | AV18: 35112 | AW18: 36588 | AX18: 39877 | AY18: 30786 | AZ18: 29735 | BA18: 30858 | BB18: 30607 | BC18: 28930 | BD18: 27607 | BE18: 28704 | BF18: 28811 | BG18: 28572 | BH18: 28388 | BI18: 28176 | BJ18: 27829 | BK18: 27163 | BL18: 26911 | BM18: 27880 | BN18: 27628 | BO18: 27361 | BP18: 26751 | BQ18: 25802 | BR18: 25649 | BS18: 25825 | BT18: 24803 | BU18: 24328 | BV18: 23515 | BW18: 24235 | BX18: 24283 | BY18: 24777 | BZ18: 17035 | CA18: 15741 | CB18: 15934 | CC18: 16527 | CD18: 16630 | CE18: 15686 | CF18: 14196 | CG18: 12883 | CH18: 11750 | CI18: 10842 | CJ18: 9692 | CK18: 8224 | CL18: 6689 | CM18: 5877 | CN18: 19147 | CP18: 1995
A19: 1996 | B19: 28495 | C19: 29250 | D19: 30389 | E19: 31181 | F19: 32257 | G19: 32046 | H19: 30963 | I19: 31045 | J19: 31950 | K19: 31862 | L19: 32067 | M19: 31976 | N19: 30467 | O19: 30756 | P19: 31394 | Q19: 32318 | R19: 32000 | S19: 30527 | T19: 28762 | U19: 29533 | V19: 32542 | W19: 33278 | X19: 33462 | Y19: 34857 | Z19: 36848 | AA19: 38611 | AB19: 38265 | AC19: 39525 | AD19: 40694 | AE19: 41053 | AF19: 40857 | AG19: 42220 | AH19: 42377 | AI19: 41850 | AJ19: 40809 | AK19: 40763 | AL19: 39590 | AM19: 39097 | AN19: 38351 | AO19: 37192 | AP19: 36029 | AQ19: 34745 | AR19: 34480 | AS19: 33690 | AT19: 32709 | AU19: 33557 | AV19: 33859 | AW19: 35056 | AX19: 36498 | AY19: 39737 | AZ19: 30715 | BA19: 29670 | BB19: 30767 | BC19: 30505 | BD19: 28759 | BE19: 27541 | BF19: 28579 | BG19: 28649 | BH19: 28382 | BI19: 28176 | BJ19: 27966 | BK19: 27619 | BL19: 26933 | BM19: 26640 | BN19: 27567 | BO19: 27225 | BP19: 26931 | BQ19: 26278 | BR19: 25217 | BS19: 25101 | BT19: 25227 | BU19: 24080 | BV19: 23714 | BW19: 22791 | BX19: 23390 | BY19: 23332 | BZ19: 23762 | CA19: 16275 | CB19: 14896 | CC19: 15009 | CD19: 15507 | CE19: 15487 | CF19: 14528 | CG19: 13022 | CH19: 11690 | CI19: 10573 | CJ19: 9660 | CK19: 8576 | CL19: 7136 | CM19: 5725 | CN19: 19731 | CP19: 1996
A20: 1997 | B20: 28992 | C20: 28431 | D20: 29097 | E20: 30282 | F20: 31005 | G20: 32115 | H20: 31941 | I20: 30952 | J20: 30962 | K20: 31898 | L20: 31833 | M20: 32021 | N20: 31988 | O20: 30406 | P20: 30643 | Q20: 31265 | R20: 32181 | S20: 31930 | T20: 30346 | U20: 30077 | V20: 29947 | W20: 32290 | X20: 32947 | Y20: 32498 | Z20: 34246 | AA20: 36520 | AB20: 38253 | AC20: 38064 | AD20: 39359 | AE20: 40664 | AF20: 40976 | AG20: 40792 | AH20: 42129 | AI20: 42308 | AJ20: 41865 | AK20: 40781 | AL20: 40719 | AM20: 39490 | AN20: 39076 | AO20: 38298 | AP20: 37158 | AQ20: 35961 | AR20: 34668 | AS20: 34423 | AT20: 33637 | AU20: 32674 | AV20: 33515 | AW20: 33812 | AX20: 34968 | AY20: 36384 | AZ20: 39617 | BA20: 30617 | BB20: 29616 | BC20: 30667 | BD20: 30401 | BE20: 28619 | BF20: 27411 | BG20: 28426 | BH20: 28456 | BI20: 28237 | BJ20: 27983 | BK20: 27713 | BL20: 27400 | BM20: 26645 | BN20: 26330 | BO20: 27203 | BP20: 26822 | BQ20: 26478 | BR20: 25821 | BS20: 24645 | BT20: 24502 | BU20: 24604 | BV20: 23394 | BW20: 23042 | BX20: 22034 | BY20: 22491 | BZ20: 22377 | CA20: 22768 | CB20: 15474 | CC20: 14061 | CD20: 14049 | CE20: 14465 | CF20: 14354 | CG20: 13349 | CH20: 11868 | CI20: 10560 | CJ20: 9410 | CK20: 8534 | CL20: 7453 | CM20: 6165 | CN20: 20170 | CP20: 1997
A21: 1998 | B21: 28040 | C21: 28849 | D21: 28447 | E21: 28977 | F21: 30160 | G21: 30868 | H21: 32086 | I21: 31897 | J21: 30931 | K21: 30916 | L21: 31840 | M21: 31782 | N21: 31988 | O21: 32027 | P21: 30402 | Q21: 30561 | R21: 31104 | S21: 32045 | T21: 31619 | U21: 31745 | V21: 30592 | W21: 29911 | X21: 31801 | Y21: 32005 | Z21: 31753 | AA21: 33791 | AB21: 36231 | AC21: 38034 | AD21: 37949 | AE21: 39240 | AF21: 40582 | AG21: 40931 | AH21: 40816 | AI21: 42126 | AJ21: 42272 | AK21: 41873 | AL21: 40830 | AM21: 40661 | AN21: 39475 | AO21: 39037 | AP21: 38325 | AQ21: 37138 | AR21: 35966 | AS21: 34647 | AT21: 34420 | AU21: 33607 | AV21: 32625 | AW21: 33468 | AX21: 33800 | AY21: 34888 | AZ21: 36274 | BA21: 39523 | BB21: 30546 | BC21: 29594 | BD21: 30604 | BE21: 30300 | BF21: 28500 | BG21: 27296 | BH21: 28329 | BI21: 28310 | BJ21: 28044 | BK21: 27751 | BL21: 27533 | BM21: 27155 | BN21: 26410 | BO21: 26004 | BP21: 26845 | BQ21: 26413 | BR21: 26074 | BS21: 25315 | BT21: 24038 | BU21: 23845 | BV21: 23988 | BW21: 22743 | BX21: 22328 | BY21: 21206 | BZ21: 21573 | CA21: 21422 | CB21: 21650 | CC21: 14649 | CD21: 13257 | CE21: 13132 | CF21: 13453 | CG21: 13265 | CH21: 12221 | CI21: 10770 | CJ21: 9444 | CK21: 8330 | CL21: 7479 | CM21: 6502 | CN21: 20886 | CP21: 1998
A22: 1999 | B22: 27451 | C22: 27956 | D22: 28685 | E22: 28420 | F22: 28893 | G22: 30044 | H22: 30812 | I22: 32031 | J22: 31856 | K22: 30952 | L22: 30845 | M22: 31798 | N22: 31707 | O22: 31966 | P22: 32051 | Q22: 30393 | R22: 30447 | S22: 30957 | T22: 31989 | U22: 33260 | V22: 32307 | W22: 30631 | X22: 29633 | Y22: 30965 | Z22: 31320 | AA22: 31389 | AB22: 33615 | AC22: 36174 | AD22: 37985 | AE22: 37906 | AF22: 39317 | AG22: 40619 | AH22: 40898 | AI22: 40868 | AJ22: 42146 | AK22: 42221 | AL22: 41964 | AM22: 40860 | AN22: 40570 | AO22: 39371 | AP22: 39050 | AQ22: 38297 | AR22: 37119 | AS22: 35916 | AT22: 34653 | AU22: 34379 | AV22: 33583 | AW22: 32581 | AX22: 33452 | AY22: 33779 | AZ22: 34826 | BA22: 36164 | BB22: 39415 | BC22: 30508 | BD22: 29522 | BE22: 30497 | BF22: 30202 | BG22: 28385 | BH22: 27216 | BI22: 28192 | BJ22: 28147 | BK22: 27830 | BL22: 27533 | BM22: 27272 | BN22: 26898 | BO22: 26106 | BP22: 25641 | BQ22: 26473 | BR22: 25949 | BS22: 25598 | BT22: 24767 | BU22: 23416 | BV22: 23133 | BW22: 23262 | BX22: 21993 | BY22: 21547 | BZ22: 20351 | CA22: 20670 | CB22: 20372 | CC22: 20521 | CD22: 13794 | CE22: 12350 | CF22: 12160 | CG22: 12398 | CH22: 12093 | CI22: 11075 | CJ22: 9601 | CK22: 8294 | CL22: 7167 | CM22: 6425 | CN22: 21571 | CP22: 1999
A23: 2000 | B23: 25835 | C23: 27230 | D23: 27846 | E23: 28499 | F23: 28347 | G23: 28808 | H23: 29925 | I23: 30679 | J23: 31914 | K23: 31833 | L23: 30956 | M23: 30856 | N23: 31767 | O23: 31702 | P23: 31927 | Q23: 32125 | R23: 30393 | S23: 30378 | T23: 30918 | U23: 33319 | V23: 33887 | W23: 32352 | X23: 30242 | Y23: 28822 | Z23: 30322 | AA23: 30983 | AB23: 31176 | AC23: 33483 | AD23: 36013 | AE23: 37993 | AF23: 37880 | AG23: 39326 | AH23: 40565 | AI23: 40886 | AJ23: 40933 | AK23: 42080 | AL23: 42229 | AM23: 42018 | AN23: 40871 | AO23: 40533 | AP23: 39310 | AQ23: 39031 | AR23: 38263 | AS23: 37125 | AT23: 35900 | AU23: 34615 | AV23: 34360 | AW23: 33556 | AX23: 32547 | AY23: 33389 | AZ23: 33714 | BA23: 34744 | BB23: 36093 | BC23: 39316 | BD23: 30417 | BE23: 29434 | BF23: 30390 | BG23: 30078 | BH23: 28254 | BI23: 27065 | BJ23: 28073 | BK23: 27949 | BL23: 27571 | BM23: 27251 | BN23: 27062 | BO23: 26613 | BP23: 25824 | BQ23: 25291 | BR23: 26024 | BS23: 25478 | BT23: 25072 | BU23: 24179 | BV23: 22762 | BW23: 22410 | BX23: 22495 | BY23: 21238 | BZ23: 20724 | CA23: 19434 | CB23: 19693 | CC23: 19257 | CD23: 19297 | CE23: 12885 | CF23: 11415 | CG23: 11189 | CH23: 11355 | CI23: 10926 | CJ23: 9976 | CK23: 8445 | CL23: 7190 | CM23: 6132 | CN23: 22352 | CP23: 2000
A24: 2001 | B24: 25682 | C24: 25618 | D24: 27064 | E24: 27742 | F24: 28383 | G24: 28336 | H24: 28769 | I24: 29871 | J24: 30623 | K24: 31859 | L24: 31848 | M24: 31026 | N24: 30845 | O24: 31752 | P24: 31713 | Q24: 31960 | R24: 32125 | S24: 30324 | T24: 30180 | U24: 31883 | V24: 33931 | W24: 33983 | X24: 32109 | Y24: 29512 | Z24: 28151 | AA24: 30133 | AB24: 30818 | AC24: 31180 | AD24: 33509 | AE24: 36124 | AF24: 38051 | AG24: 37895 | AH24: 39509 | AI24: 40615 | AJ24: 40985 | AK24: 40997 | AL24: 42137 | AM24: 42356 | AN24: 42155 | AO24: 40897 | AP24: 40538 | AQ24: 39238 | AR24: 39094 | AS24: 38296 | AT24: 37164 | AU24: 35887 | AV24: 34601 | AW24: 34366 | AX24: 33566 | AY24: 32563 | AZ24: 33331 | BA24: 33670 | BB24: 34658 | BC24: 36024 | BD24: 39262 | BE24: 30356 | BF24: 29402 | BG24: 30316 | BH24: 29922 | BI24: 28163 | BJ24: 26942 | BK24: 27873 | BL24: 27759 | BM24: 27352 | BN24: 27003 | BO24: 26785 | BP24: 26357 | BQ24: 25535 | BR24: 24952 | BS24: 25580 | BT24: 25004 | BU24: 24546 | BV24: 23626 | BW24: 22103 | BX24: 21659 | BY24: 21741 | BZ24: 20487 | CA24: 19951 | CB24: 18564 | CC24: 18679 | CD24: 18253 | CE24: 18129 | CF24: 12064 | CG24: 10490 | CH24: 10220 | CI24: 10262 | CJ24: 9843 | CK24: 8960 | CL24: 7411 | CM24: 6252 | CN24: 23018 | CP24: 2001
A25: 2002 | B25: 25083 | C25: 25796 | D25: 25762 | E25: 27208 | F25: 27870 | G25: 28506 | H25: 28374 | I25: 28842 | J25: 29952 | K25: 30726 | L25: 32099 | M25: 32004 | N25: 31012 | O25: 30851 | P25: 31770 | Q25: 31625 | R25: 31872 | S25: 31874 | T25: 30198 | U25: 31312 | V25: 32825 | W25: 34385 | X25: 33950 | Y25: 31413 | Z25: 29016 | AA25: 27946 | AB25: 30129 | AC25: 30843 | AD25: 31241 | AE25: 33536 | AF25: 36221 | AG25: 38131 | AH25: 38014 | AI25: 39630 | AJ25: 40654 | AK25: 40982 | AL25: 41053 | AM25: 42174 | AN25: 42390 | AO25: 42123 | AP25: 40887 | AQ25: 40503 | AR25: 39140 | AS25: 39028 | AT25: 38231 | AU25: 37144 | AV25: 35876 | AW25: 34616 | AX25: 34261 | AY25: 33552 | AZ25: 32546 | BA25: 33334 | BB25: 33611 | BC25: 34590 | BD25: 35954 | BE25: 39209 | BF25: 30259 | BG25: 29286 | BH25: 30219 | BI25: 29821 | BJ25: 27988 | BK25: 26754 | BL25: 27669 | BM25: 27497 | BN25: 27127 | BO25: 26740 | BP25: 26461 | BQ25: 25948 | BR25: 25173 | BS25: 24472 | BT25: 25087 | BU25: 24493 | BV25: 23951 | BW25: 22960 | BX25: 21389 | BY25: 20922 | BZ25: 20941 | CA25: 19601 | CB25: 18993 | CC25: 17645 | CD25: 17601 | CE25: 17204 | CF25: 16899 | CG25: 11137 | CH25: 9643 | CI25: 9244 | CJ25: 9232 | CK25: 8719 | CL25: 7849 | CM25: 6401 | CN25: 23166 | CP25: 2002
A26: 2003 | B26: 25319 | C26: 25139 | D26: 25898 | E26: 25916 | F26: 27304 | G26: 27901 | H26: 28640 | I26: 28520 | J26: 28966 | K26: 30040 | L26: 30815 | M26: 32167 | N26: 31978 | O26: 31059 | P26: 30841 | Q26: 31781 | R26: 31521 | S26: 31647 | T26: 31632 | U26: 31222 | V26: 32094 | W26: 33528 | X26: 34440 | Y26: 33265 | Z26: 30951 | AA26: 28795 | AB26: 27930 | AC26: 30155 | AD26: 30839 | AE26: 31400 | AF26: 33698 | AG26: 36288 | AH26: 38208 | AI26: 38104 | AJ26: 39694 | AK26: 40659 | AL26: 41037 | AM26: 41105 | AN26: 42228 | AO26: 42421 | AP26: 42172 | AQ26: 40913 | AR26: 40449 | AS26: 39087 | AT26: 39002 | AU26: 38178 | AV26: 37084 | AW26: 35867 | AX26: 34584 | AY26: 34197 | AZ26: 33534 | BA26: 32547 | BB26: 33293 | BC26: 33550 | BD26: 34575 | BE26: 35890 | BF26: 39127 | BG26: 30157 | BH26: 29140 | BI26: 30105 | BJ26: 29711 | BK26: 27838 | BL26: 26561 | BM26: 27428 | BN26: 27272 | BO26: 26867 | BP26: 26438 | BQ26: 26134 | BR26: 25574 | BS26: 24728 | BT26: 24039 | BU26: 24574 | BV26: 23893 | BW26: 23263 | BX26: 22226 | BY26: 20687 | BZ26: 20119 | CA26: 20086 | CB26: 18725 | CC26: 17983 | CD26: 16652 | CE26: 16490 | CF26: 16042 | CG26: 15623 | CH26: 10198 | CI26: 8726 | CJ26: 8252 | CK26: 8162 | CL26: 7598 | CM26: 6735 | CN26: 23192 | CP26: 2003
A27: 2004 | B27: 25999 | C27: 25436 | D27: 25255 | E27: 26055 | F27: 26118 | G27: 27434 | H27: 28105 | I27: 28867 | J27: 28665 | K27: 29081 | L27: 30170 | M27: 30945 | N27: 32242 | O27: 32136 | P27: 31017 | Q27: 30901 | R27: 31782 | S27: 31411 | T27: 31612 | U27: 33217 | V27: 32196 | W27: 32900 | X27: 33760 | Y27: 34029 | Z27: 32934 | AA27: 30931 | AB27: 28972 | AC27: 28179 | AD27: 30320 | AE27: 31124 | AF27: 31578 | AG27: 33855 | AH27: 36546 | AI27: 38497 | AJ27: 38295 | AK27: 39830 | AL27: 40799 | AM27: 41157 | AN27: 41210 | AO27: 42363 | AP27: 42494 | AQ27: 42260 | AR27: 40967 | AS27: 40477 | AT27: 39068 | AU27: 39043 | AV27: 38139 | AW27: 37145 | AX27: 35889 | AY27: 34601 | AZ27: 34232 | BA27: 33626 | BB27: 32536 | BC27: 33279 | BD27: 33544 | BE27: 34620 | BF27: 35895 | BG27: 39126 | BH27: 30067 | BI27: 29085 | BJ27: 29947 | BK27: 29653 | BL27: 27718 | BM27: 26385 | BN27: 27224 | BO27: 27026 | BP27: 26574 | BQ27: 26152 | BR27: 25741 | BS27: 25181 | BT27: 24321 | BU27: 23495 | BV27: 23983 | BW27: 23236 | BX27: 22591 | BY27: 21532 | BZ27: 19893 | CA27: 19340 | CB27: 19140 | CC27: 17747 | CD27: 17034 | CE27: 15632 | CF27: 15391 | CG27: 14870 | CH27: 14335 | CI27: 9300 | CJ27: 7841 | CK27: 7308 | CL27: 7097 | CM27: 6599 | CN27: 23395 | CP27: 2004
A28: 2005 | B28: 26409 | C28: 26133 | D28: 25563 | E28: 25376 | F28: 26253 | G28: 26274 | H28: 27584 | I28: 28297 | J28: 29025 | K28: 28835 | L28: 29248 | M28: 30331 | N28: 31036 | O28: 32173 | P28: 31906 | Q28: 30886 | R28: 30967 | S28: 31888 | T28: 31676 | U28: 33616 | V28: 34431 | W28: 33375 | X28: 33632 | Y28: 33982 | Z28: 34056 | AA28: 33187 | AB28: 31155 | AC28: 29269 | AD28: 28416 | AE28: 30587 | AF28: 31381 | AG28: 31768 | AH28: 34109 | AI28: 36804 | AJ28: 38785 | AK28: 38408 | AL28: 39975 | AM28: 41030 | AN28: 41242 | AO28: 41346 | AP28: 42500 | AQ28: 42641 | AR28: 42352 | AS28: 41034 | AT28: 40564 | AU28: 39099 | AV28: 39090 | AW28: 38141 | AX28: 37154 | AY28: 35952 | AZ28: 34593 | BA28: 34251 | BB28: 33603 | BC28: 32563 | BD28: 33293 | BE28: 33473 | BF28: 34588 | BG28: 35851 | BH28: 39022 | BI28: 29996 | BJ28: 28995 | BK28: 29747 | BL28: 29465 | BM28: 27557 | BN28: 26175 | BO28: 26954 | BP28: 26696 | BQ28: 26264 | BR28: 25797 | BS28: 25329 | BT28: 24763 | BU28: 23812 | BV28: 22994 | BW28: 23407 | BX28: 22533 | BY28: 21870 | BZ28: 20737 | CA28: 19083 | CB28: 18487 | CC28: 18257 | CD28: 16781 | CE28: 16014 | CF28: 14582 | CG28: 14198 | CH28: 13677 | CI28: 13111 | CJ28: 8432 | CK28: 6966 | CL28: 6373 | CM28: 6109 | CN28: 23587 | CP28: 2005
A29: 2006 | B29: 26915 | C29: 26520 | D29: 26152 | E29: 25617 | F29: 25466 | G29: 26322 | H29: 26403 | I29: 27728 | J29: 28427 | K29: 29173 | L29: 28999 | M29: 29317 | N29: 30502 | O29: 31001 | P29: 32237 | Q29: 31811 | R29: 30946 | S29: 31141 | T29: 32371 | U29: 33859 | V29: 34743 | W29: 35201 | X29: 33316 | Y29: 33537 | Z29: 34042 | AA29: 34131 | AB29: 33297 | AC29: 31370 | AD29: 29537 | AE29: 28725 | AF29: 30777 | AG29: 31584 | AH29: 31952 | AI29: 34310 | AJ29: 37011 | AK29: 38910 | AL29: 38652 | AM29: 40138 | AN29: 41127 | AO29: 41294 | AP29: 41364 | AQ29: 42574 | AR29: 42636 | AS29: 42417 | AT29: 41010 | AU29: 40494 | AV29: 39082 | AW29: 39086 | AX29: 38082 | AY29: 37080 | AZ29: 35924 | BA29: 34597 | BB29: 34202 | BC29: 33596 | BD29: 32550 | BE29: 33243 | BF29: 33334 | BG29: 34497 | BH29: 35737 | BI29: 38927 | BJ29: 29862 | BK29: 28840 | BL29: 29521 | BM29: 29229 | BN29: 27305 | BO29: 25879 | BP29: 26605 | BQ29: 26316 | BR29: 25919 | BS29: 25394 | BT29: 24871 | BU29: 24290 | BV29: 23251 | BW29: 22459 | BX29: 22721 | BY29: 21822 | BZ29: 21075 | CA29: 19893 | CB29: 18254 | CC29: 17587 | CD29: 17310 | CE29: 15729 | CF29: 14971 | CG29: 13519 | CH29: 13033 | CI29: 12541 | CJ29: 11949 | CK29: 7538 | CL29: 6142 | CM29: 5564 | CN29: 23554 | CP29: 2006
A30: 2007 | B30: 27721 | C30: 27108 | D30: 26713 | E30: 26293 | F30: 25750 | G30: 25583 | H30: 26519 | I30: 26637 | J30: 27937 | K30: 28595 | L30: 29380 | M30: 29168 | N30: 29507 | O30: 30532 | P30: 31158 | Q30: 32389 | R30: 31883 | S30: 31616 | T30: 31881 | U30: 34519 | V30: 35202 | W30: 34702 | X30: 34993 | Y30: 33585 | Z30: 33891 | AA30: 34607 | AB30: 34452 | AC30: 33793 | AD30: 31867 | AE30: 30028 | AF30: 29182 | AG30: 31147 | AH30: 31948 | AI30: 32301 | AJ30: 34664 | AK30: 37340 | AL30: 39167 | AM30: 38814 | AN30: 40358 | AO30: 41289 | AP30: 41414 | AQ30: 41466 | AR30: 42642 | AS30: 42728 | AT30: 42440 | AU30: 41076 | AV30: 40507 | AW30: 39088 | AX30: 39108 | AY30: 38073 | AZ30: 37103 | BA30: 35975 | BB30: 34568 | BC30: 34183 | BD30: 33573 | BE30: 32553 | BF30: 33212 | BG30: 33252 | BH30: 34412 | BI30: 35631 | BJ30: 38870 | BK30: 29709 | BL30: 28660 | BM30: 29298 | BN30: 28978 | BO30: 27061 | BP30: 25593 | BQ30: 26279 | BR30: 25912 | BS30: 25533 | BT30: 24996 | BU30: 24440 | BV30: 23735 | BW30: 22697 | BX30: 21830 | BY30: 22034 | BZ30: 21091 | CA30: 20295 | CB30: 19097 | CC30: 17429 | CD30: 16676 | CE30: 16254 | CF30: 14710 | CG30: 13816 | CH30: 12454 | CI30: 11858 | CJ30: 11351 | CK30: 10761 | CL30: 6589 | CM30: 5367 | CN30: 22845 | CP30: 2007
A31: 2008 | B31: 29211 | C31: 27861 | D31: 27194 | E31: 26770 | F31: 26348 | G31: 25812 | H31: 25697 | I31: 26687 | J31: 26796 | K31: 28096 | L31: 28725 | M31: 29565 | N31: 29258 | O31: 29668 | P31: 30639 | Q31: 31381 | R31: 32414 | S31: 32277 | T31: 32340 | U31: 34378 | V31: 35736 | W31: 35013 | X31: 35070 | Y31: 34963 | Z31: 33660 | AA31: 34240 | AB31: 34904 | AC31: 34639 | AD31: 33978 | AE31: 32248 | AF31: 30454 | AG31: 29487 | AH31: 31441 | AI31: 32166 | AJ31: 32606 | AK31: 34889 | AL31: 37541 | AM31: 39339 | AN31: 38995 | AO31: 40464 | AP31: 41418 | AQ31: 41465 | AR31: 41551 | AS31: 42694 | AT31: 42790 | AU31: 42445 | AV31: 41104 | AW31: 40463 | AX31: 39078 | AY31: 39088 | AZ31: 38073 | BA31: 37035 | BB31: 35934 | BC31: 34549 | BD31: 34126 | BE31: 33507 | BF31: 32489 | BG31: 33115 | BH31: 33114 | BI31: 34287 | BJ31: 35498 | BK31: 38710 | BL31: 29498 | BM31: 28486 | BN31: 28995 | BO31: 28722 | BP31: 26762 | BQ31: 25258 | BR31: 25940 | BS31: 25515 | BT31: 25062 | BU31: 24561 | BV31: 23950 | BW31: 23218 | BX31: 22064 | BY31: 21189 | BZ31: 21290 | CA31: 20357 | CB31: 19392 | CC31: 18224 | CD31: 16568 | CE31: 15744 | CF31: 15234 | CG31: 13650 | CH31: 12702 | CI31: 11335 | CJ31: 10733 | CK31: 10193 | CL31: 9516 | CM31: 5724 | CN31: 22237 | CP31: 2008
A32: 2009 | B32: 29136 | C32: 29171 | D32: 27877 | E32: 27253 | F32: 26863 | G32: 26358 | H32: 25831 | I32: 25739 | J32: 26782 | K32: 26969 | L32: 28193 | M32: 28880 | N32: 29691 | O32: 29387 | P32: 29798 | Q32: 30757 | R32: 31656 | S32: 34048 | T32: 34064 | U32: 33616 | V32: 34178 | W32: 35606 | X32: 35497 | Y32: 35180 | Z32: 35004 | AA32: 33812 | AB32: 34510 | AC32: 35114 | AD32: 34861 | AE32: 34099 | AF32: 32625 | AG32: 30664 | AH32: 29676 | AI32: 31721 | AJ32: 32475 | AK32: 32793 | AL32: 34996 | AM32: 37722 | AN32: 39536 | AO32: 39156 | AP32: 40514 | AQ32: 41472 | AR32: 41427 | AS32: 41552 | AT32: 42732 | AU32: 42812 | AV32: 42434 | AW32: 41139 | AX32: 40401 | AY32: 38976 | AZ32: 39026 | BA32: 38011 | BB32: 36946 | BC32: 35855 | BD32: 34486 | BE32: 34019 | BF32: 33449 | BG32: 32420 | BH32: 32966 | BI32: 32971 | BJ32: 34110 | BK32: 35256 | BL32: 38477 | BM32: 29245 | BN32: 28257 | BO32: 28714 | BP32: 28426 | BQ32: 26433 | BR32: 24924 | BS32: 25559 | BT32: 25114 | BU32: 24648 | BV32: 24032 | BW32: 23414 | BX32: 22645 | BY32: 21457 | BZ32: 20485 | CA32: 20528 | CB32: 19554 | CC32: 18512 | CD32: 17268 | CE32: 15652 | CF32: 14755 | CG32: 14160 | CH32: 12560 | CI32: 11588 | CJ32: 10270 | CK32: 9528 | CL32: 9086 | CM32: 8340 | CN32: 22032 | CP32: 2009
A33: 2010 | B33: 29255 | C33: 29119 | D33: 29074 | E33: 27836 | F33: 27288 | G33: 26915 | H33: 26382 | I33: 25840 | J33: 25775 | K33: 26869 | L33: 27106 | M33: 28305 | N33: 28960 | O33: 29789 | P33: 29475 | Q33: 29922 | R33: 30846 | S33: 31807 | T33: 34936 | U33: 36111 | V33: 35074 | W33: 35280 | X33: 36498 | Y33: 35769 | Z33: 35203 | AA33: 35231 | AB33: 33971 | AC33: 34779 | AD33: 35394 | AE33: 35018 | AF33: 34213 | AG33: 32833 | AH33: 30891 | AI33: 29938 | AJ33: 31969 | AK33: 32669 | AL33: 32936 | AM33: 35134 | AN33: 37905 | AO33: 39665 | AP33: 39193 | AQ33: 40629 | AR33: 41543 | AS33: 41442 | AT33: 41525 | AU33: 42774 | AV33: 42794 | AW33: 42422 | AX33: 41059 | AY33: 40346 | AZ33: 38894 | BA33: 38971 | BB33: 37965 | BC33: 36842 | BD33: 35712 | BE33: 34397 | BF33: 33939 | BG33: 33346 | BH33: 32305 | BI33: 32870 | BJ33: 32790 | BK33: 33912 | BL33: 35067 | BM33: 38271 | BN33: 29002 | BO33: 27995 | BP33: 28404 | BQ33: 28073 | BR33: 26105 | BS33: 24529 | BT33: 25121 | BU33: 24652 | BV33: 24147 | BW33: 23497 | BX33: 22841 | BY33: 22060 | BZ33: 20769 | CA33: 19823 | CB33: 19807 | CC33: 18664 | CD33: 17560 | CE33: 16317 | CF33: 14749 | CG33: 13766 | CH33: 13089 | CI33: 11489 | CJ33: 10486 | CK33: 9208 | CL33: 8425 | CM33: 8061 | CN33: 24355 | CP33: 2010
A34: 2011 | B34: 29488 | C34: 28294 | D34: 29190 | E34: 29061 | F34: 27807 | G34: 27372 | H34: 26912 | I34: 26373 | J34: 25846 | K34: 25804 | L34: 26930 | M34: 27206 | N34: 28397 | O34: 29033 | P34: 29934 | Q34: 29584 | R34: 30055 | S34: 31165 | T34: 33036 | U34: 36620 | V34: 37513 | W34: 36386 | X34: 36450 | Y34: 37038 | Z34: 36098 | AA34: 35492 | AB34: 35491 | AC34: 34274 | AD34: 35002 | AE34: 35698 | AF34: 35146 | AG34: 34479 | AH34: 33073 | AI34: 31212 | AJ34: 30232 | AK34: 32242 | AL34: 32892 | AM34: 33168 | AN34: 35265 | AO34: 38065 | AP34: 39755 | AQ34: 39275 | AR34: 40695 | AS34: 41588 | AT34: 41478 | AU34: 41500 | AV34: 42830 | AW34: 42788 | AX34: 42389 | AY34: 41054 | AZ34: 40323 | BA34: 38809 | BB34: 38896 | BC34: 37861 | BD34: 36731 | BE34: 35637 | BF34: 34292 | BG34: 33842 | BH34: 33239 | BI34: 32154 | BJ34: 32717 | BK34: 32585 | BL34: 33718 | BM34: 34827 | BN34: 37988 | BO34: 28758 | BP34: 27718 | BQ34: 28097 | BR34: 27702 | BS34: 25723 | BT34: 24164 | BU34: 24691 | BV34: 24184 | BW34: 23655 | BX34: 23009 | BY34: 22244 | BZ34: 21406 | CA34: 20067 | CB34: 19046 | CC34: 18993 | CD34: 17802 | CE34: 16639 | CF34: 15284 | CG34: 13764 | CH34: 12725 | CI34: 11956 | CJ34: 10446 | CK34: 9487 | CL34: 8188 | CM34: 7441 | CN34: 26117 | CP34: 2011
A35: 2012 | B35: 28444 | C35: 29592 | D35: 28358 | E35: 29291 | F35: 29118 | G35: 27832 | H35: 27403 | I35: 26941 | J35: 26409 | K35: 25876 | L35: 25819 | M35: 26975 | N35: 27239 | O35: 28404 | P35: 29073 | Q35: 29982 | R35: 29632 | S35: 30120 | T35: 31417 | U35: 34723 | V35: 37833 | W35: 38211 | X35: 36778 | Y35: 36778 | Z35: 36991 | AA35: 36026 | AB35: 35469 | AC35: 35527 | AD35: 34356 | AE35: 35065 | AF35: 35740 | AG35: 35176 | AH35: 34555 | AI35: 33008 | AJ35: 31150 | AK35: 30272 | AL35: 32288 | AM35: 32915 | AN35: 33108 | AO35: 35259 | AP35: 38032 | AQ35: 39781 | AR35: 39211 | AS35: 40683 | AT35: 41568 | AU35: 41439 | AV35: 41471 | AW35: 42777 | AX35: 42727 | AY35: 42313 | AZ35: 40990 | BA35: 40246 | BB35: 38681 | BC35: 38797 | BD35: 37747 | BE35: 36631 | BF35: 35516 | BG35: 34170 | BH35: 33667 | BI35: 33103 | BJ35: 32018 | BK35: 32489 | BL35: 32325 | BM35: 33484 | BN35: 34520 | BO35: 37638 | BP35: 28419 | BQ35: 27334 | BR35: 27716 | BS35: 27288 | BT35: 25295 | BU35: 23729 | BV35: 24164 | BW35: 23670 | BX35: 23056 | BY35: 22378 | BZ35: 21631 | CA35: 20634 | CB35: 19314 | CC35: 18235 | CD35: 18188 | CE35: 16851 | CF35: 15644 | CG35: 14261 | CH35: 12769 | CI35: 11769 | CJ35: 10846 | CK35: 9382 | CL35: 8392 | CM35: 7107 | CN35: 27061 | CP35: 2012
A36: 2013 | B36: 27869 | C36: 28533 | D36: 29689 | E36: 28455 | F36: 29298 | G36: 29221 | H36: 27917 | I36: 27488 | J36: 26995 | K36: 26445 | L36: 25925 | M36: 25841 | N36: 27015 | O36: 27282 | P36: 28437 | Q36: 29118 | R36: 30032 | S36: 29698 | T36: 30463 | U36: 33510 | V36: 35760 | W36: 38347 | X36: 38391 | Y36: 36775 | Z36: 36568 | AA36: 36920 | AB36: 35849 | AC36: 35426 | AD36: 35554 | AE36: 34365 | AF36: 35135 | AG36: 35749 | AH36: 35210 | AI36: 34565 | AJ36: 33040 | AK36: 31216 | AL36: 30286 | AM36: 32306 | AN36: 32913 | AO36: 33147 | AP36: 35306 | AQ36: 38015 | AR36: 39754 | AS36: 39180 | AT36: 40677 | AU36: 41555 | AV36: 41409 | AW36: 41412 | AX36: 42752 | AY36: 42642 | AZ36: 42239 | BA36: 40890 | BB36: 40163 | BC36: 38630 | BD36: 38653 | BE36: 37652 | BF36: 36525 | BG36: 35367 | BH36: 34019 | BI36: 33494 | BJ36: 32949 | BK36: 31828 | BL36: 32267 | BM36: 32116 | BN36: 33142 | BO36: 34203 | BP36: 37221 | BQ36: 28092 | BR36: 26976 | BS36: 27290 | BT36: 26848 | BU36: 24811 | BV36: 23200 | BW36: 23624 | BX36: 23045 | BY36: 22409 | BZ36: 21688 | CA36: 20871 | CB36: 19857 | CC36: 18488 | CD36: 17317 | CE36: 17174 | CF36: 15812 | CG36: 14599 | CH36: 13167 | CI36: 11622 | CJ36: 10684 | CK36: 9680 | CL36: 8253 | CM36: 7326 | CN36: 27374 | CP36: 2013
A37: 2014 | B37: 27321 | C37: 28092 | D37: 28685 | E37: 29816 | F37: 28605 | G37: 29399 | H37: 29335 | I37: 27999 | J37: 27562 | K37: 27099 | L37: 26530 | M37: 26014 | N37: 25881 | O37: 27064 | P37: 27371 | Q37: 28522 | R37: 29155 | S37: 30087 | T37: 30047 | U37: 32400 | V37: 34790 | W37: 36286 | X37: 38810 | Y37: 38491 | Z37: 36687 | AA37: 36488 | AB37: 36947 | AC37: 35962 | AD37: 35496 | AE37: 35728 | AF37: 34596 | AG37: 35244 | AH37: 35894 | AI37: 35357 | AJ37: 34702 | AK37: 33173 | AL37: 31315 | AM37: 30322 | AN37: 32388 | AO37: 32986 | AP37: 33188 | AQ37: 35391 | AR37: 38049 | AS37: 39814 | AT37: 39166 | AU37: 40739 | AV37: 41548 | AW37: 41405 | AX37: 41412 | AY37: 42716 | AZ37: 42583 | BA37: 42209 | BB37: 40849 | BC37: 40042 | BD37: 38533 | BE37: 38638 | BF37: 37505 | BG37: 36353 | BH37: 35222 | BI37: 33890 | BJ37: 33337 | BK37: 32795 | BL37: 31620 | BM37: 32047 | BN37: 31898 | BO37: 32831 | BP37: 33880 | BQ37: 36829 | BR37: 27792 | BS37: 26607 | BT37: 26889 | BU37: 26353 | BV37: 24356 | BW37: 22731 | BX37: 23119 | BY37: 22464 | BZ37: 21773 | CA37: 21048 | CB37: 20140 | CC37: 19027 | CD37: 17698 | CE37: 16495 | CF37: 16232 | CG37: 14845 | CH37: 13551 | CI37: 12130 | CJ37: 10622 | CK37: 9633 | CL37: 8654 | CM37: 7211 | CN37: 28565 | CP37: 2014
A38: 2015 | B38: 27236 | C38: 27543 | D38: 28286 | E38: 28838 | F38: 29987 | G38: 28696 | H38: 29517 | I38: 29452 | J38: 28133 | K38: 27664 | L38: 27181 | M38: 26648 | N38: 26072 | O38: 25940 | P38: 27142 | Q38: 27457 | R38: 28597 | S38: 29278 | T38: 30535 | U38: 32349 | V38: 33917 | W38: 35729 | X38: 36999 | Y38: 39180 | Z38: 38684 | AA38: 37064 | AB38: 36851 | AC38: 37156 | AD38: 36203 | AE38: 35819 | AF38: 35985 | AG38: 34788 | AH38: 35445 | AI38: 36123 | AJ38: 35559 | AK38: 34827 | AL38: 33371 | AM38: 31469 | AN38: 30486 | AO38: 32519 | AP38: 33069 | AQ38: 33203 | AR38: 35427 | AS38: 38100 | AT38: 39866 | AU38: 39186 | AV38: 40757 | AW38: 41536 | AX38: 41359 | AY38: 41415 | AZ38: 42710 | BA38: 42507 | BB38: 42096 | BC38: 40748 | BD38: 40010 | BE38: 38491 | BF38: 38544 | BG38: 37401 | BH38: 36225 | BI38: 35088 | BJ38: 33757 | BK38: 33157 | BL38: 32625 | BM38: 31416 | BN38: 31796 | BO38: 31652 | BP38: 32522 | BQ38: 33509 | BR38: 36395 | BS38: 27390 | BT38: 26145 | BU38: 26437 | BV38: 25808 | BW38: 23817 | BX38: 22197 | BY38: 22467 | BZ38: 21828 | CA38: 21054 | CB38: 20223 | CC38: 19294 | CD38: 18099 | CE38: 16862 | CF38: 15520 | CG38: 15113 | CH38: 13727 | CI38: 12409 | CJ38: 10990 | CK38: 9497 | CL38: 8466 | CM38: 7524 | CN38: 28372 | CP38: 2015
A39: 2016 | B39: 26819 | C39: 27567 | D39: 27788 | E39: 28504 | F39: 29033 | G39: 30162 | H39: 28855 | I39: 29683 | J39: 29598 | K39: 28272 | L39: 27796 | M39: 27257 | N39: 26739 | O39: 26167 | P39: 26038 | Q39: 27243 | R39: 27563 | S39: 28702 | T39: 29789 | U39: 32749 | V39: 33871 | W39: 34923 | X39: 36314 | Y39: 37631 | Z39: 39540 | AA39: 38982 | AB39: 37498 | AC39: 37318 | AD39: 37556 | AE39: 36621 | AF39: 36099 | AG39: 36312 | AH39: 35089 | AI39: 35723 | AJ39: 36385 | AK39: 35753 | AL39: 34995 | AM39: 33471 | AN39: 31663 | AO39: 30603 | AP39: 32622 | AQ39: 33160 | AR39: 33272 | AS39: 35532 | AT39: 38123 | AU39: 39905 | AV39: 39222 | AW39: 40801 | AX39: 41543 | AY39: 41358 | AZ39: 41391 | BA39: 42646 | BB39: 42441 | BC39: 42060 | BD39: 40724 | BE39: 39939 | BF39: 38427 | BG39: 38397 | BH39: 37263 | BI39: 36058 | BJ39: 34941 | BK39: 33606 | BL39: 33002 | BM39: 32395 | BN39: 31202 | BO39: 31507 | BP39: 31414 | BQ39: 32127 | BR39: 33103 | BS39: 35906 | BT39: 26974 | BU39: 25687 | BV39: 25970 | BW39: 25265 | BX39: 23254 | BY39: 21636 | BZ39: 21833 | CA39: 21118 | CB39: 20348 | CC39: 19396 | CD39: 18453 | CE39: 17214 | CF39: 15965 | CG39: 14544 | CH39: 14041 | CI39: 12678 | CJ39: 11277 | CK39: 9897 | CL39: 8421 | CM39: 7418 | CN39: 29050 | CP39: 2016
A40: 2017 | B40: 25905 | C40: 26976 | D40: 27633 | E40: 27868 | F40: 28608 | G40: 29138 | H40: 30220 | I40: 28968 | J40: 29811 | K40: 29690 | L40: 28339 | M40: 27891 | N40: 27352 | O40: 26801 | P40: 26234 | Q40: 26116 | R40: 27297 | S40: 27603 | T40: 29074 | U40: 31676 | V40: 33923 | W40: 34375 | X40: 35124 | Y40: 36381 | Z40: 37669 | AA40: 39630 | AB40: 39184 | AC40: 37661 | AD40: 37574 | AE40: 37823 | AF40: 36822 | AG40: 36217 | AH40: 36435 | AI40: 35286 | AJ40: 35830 | AK40: 36488 | AL40: 35887 | AM40: 35085 | AN40: 33586 | AO40: 31781 | AP40: 30650 | AQ40: 32707 | AR40: 33267 | AS40: 33367 | AT40: 35569 | AU40: 38147 | AV40: 39921 | AW40: 39262 | AX40: 40781 | AY40: 41499 | AZ40: 41360 | BA40: 41330 | BB40: 42580 | BC40: 42376 | BD40: 42025 | BE40: 40671 | BF40: 39839 | BG40: 38357 | BH40: 38274 | BI40: 37138 | BJ40: 35949 | BK40: 34801 | BL40: 33426 | BM40: 32762 | BN40: 32135 | BO40: 30943 | BP40: 31228 | BQ40: 31100 | BR40: 31741 | BS40: 32681 | BT40: 35380 | BU40: 26479 | BV40: 25219 | BW40: 25443 | BX40: 24656 | BY40: 22672 | BZ40: 20988 | CA40: 21101 | CB40: 20359 | CC40: 19531 | CD40: 18623 | CE40: 17531 | CF40: 16255 | CG40: 14982 | CH40: 13468 | CI40: 12962 | CJ40: 11473 | CK40: 10113 | CL40: 8779 | CM40: 7302 | CN40: 29337 | CP40: 2017
A41: 2018 | B41: 25478 | C41: 26041 | D41: 27052 | E41: 27769 | F41: 27943 | G41: 28697 | H41: 29249 | I41: 30334 | J41: 29085 | K41: 29878 | L41: 29763 | M41: 28452 | N41: 27978 | O41: 27444 | P41: 26887 | Q41: 26316 | R41: 26180 | S41: 27395 | T41: 28010 | U41: 31258 | V41: 32817 | W41: 34397 | X41: 34625 | Y41: 35203 | Z41: 36295 | AA41: 37508 | AB41: 39612 | AC41: 39220 | AD41: 37773 | AE41: 37695 | AF41: 37934 | AG41: 36980 | AH41: 36365 | AI41: 36579 | AJ41: 35459 | AK41: 35961 | AL41: 36497 | AM41: 35913 | AN41: 35192 | AO41: 33685 | AP41: 31815 | AQ41: 30712 | AR41: 32769 | AS41: 33233 | AT41: 33418 | AU41: 35596 | AV41: 38172 | AW41: 39954 | AX41: 39228 | AY41: 40776 | AZ41: 41471 | BA41: 41295 | BB41: 41262 | BC41: 42493 | BD41: 42297 | BE41: 41967 | BF41: 40603 | BG41: 39689 | BH41: 38242 | BI41: 38107 | BJ41: 37003 | BK41: 35770 | BL41: 34621 | BM41: 33182 | BN41: 32487 | BO41: 31832 | BP41: 30645 | BQ41: 30850 | BR41: 30733 | BS41: 31339 | BT41: 32133 | BU41: 34834 | BV41: 26024 | BW41: 24750 | BX41: 24869 | BY41: 23982 | BZ41: 21992 | CA41: 20286 | CB41: 20280 | CC41: 19521 | CD41: 18649 | CE41: 17658 | CF41: 16493 | CG41: 15250 | CH41: 13884 | CI41: 12460 | CJ41: 11739 | CK41: 10286 | CL41: 8882 | CM41: 7590 | CN41: 29307 | CP41: 2018
A42: 2019 | B42: 24715 | C42: 25630 | D42: 26194 | E42: 27174 | F42: 27882 | G42: 28046 | H42: 28792 | I42: 29351 | J42: 30442 | K42: 29179 | L42: 29957 | M42: 29844 | N42: 28525 | O42: 28040 | P42: 27510 | Q42: 26957 | R42: 26379 | S42: 26248 | T42: 27659 | U42: 29120 | V42: 32711 | W42: 33678 | X42: 34857 | Y42: 34861 | Z42: 35266 | AA42: 36286 | AB42: 37558 | AC42: 39722 | AD42: 39352 | AE42: 37940 | AF42: 37859 | AG42: 38081 | AH42: 37125 | AI42: 36516 | AJ42: 36724 | AK42: 35577 | AL42: 36061 | AM42: 36575 | AN42: 35990 | AO42: 35272 | AP42: 33740 | AQ42: 31861 | AR42: 30757 | AS42: 32808 | AT42: 33259 | AU42: 33431 | AV42: 35606 | AW42: 38175 | AX42: 39949 | AY42: 39213 | AZ42: 40746 | BA42: 41423 | BB42: 41231 | BC42: 41192 | BD42: 42423 | BE42: 42229 | BF42: 41883 | BG42: 40489 | BH42: 39555 | BI42: 38100 | BJ42: 37951 | BK42: 36842 | BL42: 35595 | BM42: 34414 | BN42: 32942 | BO42: 32224 | BP42: 31553 | BQ42: 30340 | BR42: 30497 | BS42: 30344 | BT42: 30899 | BU42: 31628 | BV42: 34227 | BW42: 25522 | BX42: 24214 | BY42: 24258 | BZ42: 23328 | CA42: 21325 | CB42: 19598 | CC42: 19518 | CD42: 18709 | CE42: 17780 | CF42: 16735 | CG42: 15522 | CH42: 14233 | CI42: 12836 | CJ42: 11397 | CK42: 10602 | CL42: 9161 | CM42: 7790 | CN42: 29880 | CP42: 2019
A43: 2020 | B43: 24997 | C43: 24863 | D43: 25780 | E43: 26313 | F43: 27285 | G43: 27982 | H43: 28139 | I43: 28892 | J43: 29458 | K43: 30537 | L43: 29256 | M43: 30038 | N43: 29917 | O43: 28585 | P43: 28105 | Q43: 27579 | R43: 27019 | S43: 26445 | T43: 26508 | U43: 28729 | V43: 30531 | W43: 33562 | X43: 34126 | Y43: 35082 | Z43: 34916 | AA43: 35249 | AB43: 36327 | AC43: 37658 | AD43: 39844 | AE43: 39510 | AF43: 38095 | AG43: 37999 | AH43: 38221 | AI43: 37271 | AJ43: 36656 | AK43: 36837 | AL43: 35672 | AM43: 36133 | AN43: 36648 | AO43: 36066 | AP43: 35322 | AQ43: 33782 | AR43: 31900 | AS43: 30792 | AT43: 32830 | AU43: 33268 | AV43: 33438 | AW43: 35607 | AX43: 38168 | AY43: 39927 | AZ43: 39181 | BA43: 40697 | BB43: 41354 | BC43: 41156 | BD43: 41121 | BE43: 42350 | BF43: 42140 | BG43: 41758 | BH43: 40350 | BI43: 39403 | BJ43: 37939 | BK43: 37781 | BL43: 36656 | BM43: 35376 | BN43: 34158 | BO43: 32670 | BP43: 31935 | BQ43: 31231 | BR43: 29985 | BS43: 30101 | BT43: 29905 | BU43: 30401 | BV43: 31061 | BW43: 33548 | BX43: 24956 | BY43: 23603 | BZ43: 23578 | CA43: 22599 | CB43: 20579 | CC43: 18839 | CD43: 18681 | CE43: 17811 | CF43: 16826 | CG43: 15723 | CH43: 14459 | CI43: 13129 | CJ43: 11708 | CK43: 10258 | CL43: 9405 | CM43: 7997 | CN43: 30227 | CP43: 2020
A44: 2021 | B44: 24933 | C44: 25135 | D44: 25003 | E44: 25887 | F44: 26410 | G44: 27373 | H44: 28063 | I44: 28228 | J44: 28988 | K44: 29546 | L44: 30609 | M44: 29332 | N44: 30107 | O44: 29974 | P44: 28647 | Q44: 28172 | R44: 27640 | S44: 27083 | T44: 26699 | U44: 27564 | V44: 30114 | W44: 31360 | X44: 34006 | Y44: 34346 | Z44: 35132 | AA44: 34896 | AB44: 35286 | AC44: 36421 | AD44: 37775 | AE44: 39999 | AF44: 39661 | AG44: 38229 | AH44: 38133 | AI44: 38363 | AJ44: 37408 | AK44: 36767 | AL44: 36927 | AM44: 35740 | AN44: 36203 | AO44: 36723 | AP44: 36114 | AQ44: 35362 | AR44: 33819 | AS44: 31931 | AT44: 30814 | AU44: 32838 | AV44: 33273 | AW44: 33439 | AX44: 35600 | AY44: 38148 | AZ44: 39893 | BA44: 39134 | BB44: 40629 | BC44: 41278 | BD44: 41086 | BE44: 41053 | BF44: 42262 | BG44: 42016 | BH44: 41616 | BI44: 40198 | BJ44: 39240 | BK44: 37772 | BL44: 37594 | BM44: 36434 | BN44: 35119 | BO44: 33882 | BP44: 32383 | BQ44: 31615 | BR44: 30871 | BS44: 29601 | BT44: 29672 | BU44: 29427 | BV44: 29862 | BW44: 30454 | BX44: 32812 | BY44: 24334 | BZ44: 22947 | CA44: 22848 | CB44: 21815 | CC44: 19787 | CD44: 18035 | CE44: 17789 | CF44: 16860 | CG44: 15815 | CH44: 14654 | CI44: 13348 | CJ44: 11983 | CK44: 10544 | CL44: 9105 | CM44: 8213 | CN44: 30671 | CP44: 2021
A45: 2022 | B45: 24831 | C45: 25071 | D45: 25275 | E45: 25109 | F45: 25984 | G45: 26497 | H45: 27454 | I45: 28152 | J45: 28323 | K45: 29074 | L45: 29618 | M45: 30683 | N45: 29400 | O45: 30164 | P45: 30036 | Q45: 28716 | R45: 28233 | S45: 27705 | T45: 27338 | U45: 27735 | V45: 28927 | W45: 30938 | X45: 31802 | Y45: 34230 | Z45: 34400 | AA45: 35113 | AB45: 34936 | AC45: 35382 | AD45: 36538 | AE45: 37929 | AF45: 40152 | AG45: 39796 | AH45: 38363 | AI45: 38275 | AJ45: 38503 | AK45: 37518 | AL45: 36856 | AM45: 36994 | AN45: 35809 | AO45: 36277 | AP45: 36770 | AQ45: 36155 | AR45: 35400 | AS45: 33850 | AT45: 31951 | AU45: 30822 | AV45: 32843 | AW45: 33270 | AX45: 33434 | AY45: 35584 | AZ45: 38118 | BA45: 39845 | BB45: 39071 | BC45: 40556 | BD45: 41208 | BE45: 41019 | BF45: 40970 | BG45: 42142 | BH45: 41876 | BI45: 41462 | BJ45: 40035 | BK45: 39070 | BL45: 37590 | BM45: 37372 | BN45: 36173 | BO45: 34838 | BP45: 33588 | BQ45: 32064 | BR45: 31257 | BS45: 30482 | BT45: 29184 | BU45: 29204 | BV45: 28912 | BW45: 29285 | BX45: 29795 | BY45: 32004 | BZ45: 23664 | CA45: 22243 | CB45: 22061 | CC45: 20981 | CD45: 18949 | CE45: 17179 | CF45: 16843 | CG45: 15854 | CH45: 14747 | CI45: 13534 | CJ45: 12191 | CK45: 10800 | CL45: 9365 | CM45: 7956 | CN45: 31212 | CP45: 2022
A46: 2023 | B46: 24777 | C46: 24970 | D46: 25210 | E46: 25379 | F46: 25205 | G46: 26070 | H46: 26576 | I46: 27542 | J46: 28247 | K46: 28408 | L46: 29145 | M46: 29695 | N46: 30753 | O46: 29458 | P46: 30227 | Q46: 30105 | R46: 28777 | S46: 28297 | T46: 27962 | U46: 28380 | V46: 29093 | W46: 29743 | X46: 31383 | Y46: 32030 | Z46: 34289 | AA46: 34385 | AB46: 35153 | AC46: 35033 | AD46: 35499 | AE46: 36691 | AF46: 38081 | AG46: 40290 | AH46: 39933 | AI46: 38507 | AJ46: 38417 | AK46: 38615 | AL46: 37607 | AM46: 36925 | AN46: 37062 | AO46: 35883 | AP46: 36326 | AQ46: 36812 | AR46: 36193 | AS46: 35432 | AT46: 33869 | AU46: 31957 | AV46: 30829 | AW46: 32842 | AX46: 33262 | AY46: 33419 | AZ46: 35558 | BA46: 38073 | BB46: 39781 | BC46: 39002 | BD46: 40489 | BE46: 41143 | BF46: 40938 | BG46: 40857 | BH46: 42005 | BI46: 41726 | BJ46: 41298 | BK46: 39866 | BL46: 38885 | BM46: 37373 | BN46: 37109 | BO46: 35890 | BP46: 34542 | BQ46: 33262 | BR46: 31706 | BS46: 30870 | BT46: 30059 | BU46: 28730 | BV46: 28699 | BW46: 28360 | BX46: 28659 | BY46: 29068 | BZ46: 31131 | CA46: 22944 | CB46: 21482 | CC46: 21223 | CD46: 20097 | CE46: 18053 | CF46: 16271 | CG46: 15843 | CH46: 14790 | CI46: 13629 | CJ46: 12370 | CK46: 10996 | CL46: 9601 | CM46: 8188 | CN46: 31433 | CP46: 2023
A47: 2024 | B47: 24772 | C47: 24916 | D47: 25110 | E47: 25314 | F47: 25474 | G47: 25289 | H47: 26149 | I47: 26662 | J47: 27636 | K47: 28331 | L47: 28479 | M47: 29220 | N47: 29764 | O47: 30810 | P47: 29522 | Q47: 30297 | R47: 30168 | S47: 28843 | T47: 28558 | U47: 29018 | V47: 29750 | W47: 29908 | X47: 30187 | Y47: 31624 | Z47: 32101 | AA47: 34274 | AB47: 34425 | AC47: 35248 | AD47: 35150 | AE47: 35650 | AF47: 36841 | AG47: 38218 | AH47: 40429 | AI47: 40077 | AJ47: 38647 | AK47: 38530 | AL47: 38706 | AM47: 37676 | AN47: 36994 | AO47: 37135 | AP47: 35932 | AQ47: 36368 | AR47: 36851 | AS47: 36226 | AT47: 35452 | AU47: 33875 | AV47: 31961 | AW47: 30831 | AX47: 32836 | AY47: 33246 | AZ47: 33395 | BA47: 35518 | BB47: 38016 | BC47: 39712 | BD47: 38941 | BE47: 40428 | BF47: 41064 | BG47: 40826 | BH47: 40727 | BI47: 41858 | BJ47: 41565 | BK47: 41127 | BL47: 39682 | BM47: 38663 | BN47: 37115 | BO47: 36822 | BP47: 35589 | BQ47: 34212 | BR47: 32896 | BS47: 31318 | BT47: 30448 | BU47: 29598 | BV47: 28239 | BW47: 28158 | BX47: 27761 | BY47: 27968 | BZ47: 28286 | CA47: 30197 | CB47: 22167 | CC47: 20673 | CD47: 20335 | CE47: 19153 | CF47: 17106 | CG47: 15310 | CH47: 14785 | CI47: 13674 | CJ47: 12464 | CK47: 11165 | CL47: 9782 | CM47: 8402 | CN47: 31808 | CP47: 2024
A48: 2025 | B48: 24742 | C48: 24911 | D48: 25055 | E48: 25214 | F48: 25409 | G48: 25559 | H48: 25367 | I48: 26234 | J48: 26756 | K48: 27720 | L48: 28401 | M48: 28553 | N48: 29289 | O48: 29822 | P48: 30874 | Q48: 29592 | R48: 30360 | S48: 30235 | T48: 29107 | U48: 29627 | V48: 30403 | W48: 30570 | X48: 30355 | Y48: 30433 | Z48: 31706 | AA48: 32097 | AB48: 34315 | AC48: 34522 | AD48: 35364 | AE48: 35301 | AF48: 35798 | AG48: 36975 | AH48: 38356 | AI48: 40576 | AJ48: 40219 | AK48: 38759 | AL48: 38622 | AM48: 38775 | AN48: 37745 | AO48: 37069 | AP48: 37184 | AQ48: 35975 | AR48: 36408 | AS48: 36884 | AT48: 36247 | AU48: 35458 | AV48: 33879 | AW48: 31961 | AX48: 30829 | AY48: 32821 | AZ48: 33222 | BA48: 33359 | BB48: 35465 | BC48: 37954 | BD48: 39650 | BE48: 38885 | BF48: 40352 | BG48: 40953 | BH48: 40698 | BI48: 40588 | BJ48: 41700 | BK48: 41398 | BL48: 40940 | BM48: 39460 | BN48: 38400 | BO48: 36835 | BP48: 36519 | BQ48: 35253 | BR48: 33842 | BS48: 32501 | BT48: 30897 | BU48: 29989 | BV48: 29101 | BW48: 27714 | BX48: 27570 | BY48: 27100 | BZ48: 27224 | CA48: 27446 | CB48: 29189 | CC48: 21340 | CD48: 19814 | CE48: 19388 | CF48: 18154 | CG48: 16100 | CH48: 14293 | CI48: 13675 | CJ48: 12511 | CK48: 11257 | CL48: 9941 | CM48: 8568 | CN48: 32303 | CP48: 2025
A49: 2026 | B49: 24685 | C49: 24881 | D49: 25050 | E49: 25159 | F49: 25308 | G49: 25494 | H49: 25638 | I49: 25452 | J49: 26325 | K49: 26839 | L49: 27789 | M49: 28474 | N49: 28621 | O49: 29346 | P49: 29886 | Q49: 30945 | R49: 29654 | S49: 30428 | T49: 30502 | U49: 30191 | V49: 31030 | W49: 31229 | X49: 31017 | Y49: 30607 | Z49: 30525 | AA49: 31708 | AB49: 32143 | AC49: 34411 | AD49: 34639 | AE49: 35515 | AF49: 35448 | AG49: 35931 | AH49: 37110 | AI49: 38503 | AJ49: 40721 | AK49: 40333 | AL49: 38851 | AM49: 38692 | AN49: 38845 | AO49: 37820 | AP49: 37119 | AQ49: 37226 | AR49: 36014 | AS49: 36441 | AT49: 36906 | AU49: 36254 | AV49: 35462 | AW49: 33877 | AX49: 31956 | AY49: 30818 | AZ49: 32798 | BA49: 33186 | BB49: 33310 | BC49: 35408 | BD49: 37897 | BE49: 39593 | BF49: 38815 | BG49: 40245 | BH49: 40828 | BI49: 40561 | BJ49: 40439 | BK49: 41534 | BL49: 41214 | BM49: 40715 | BN49: 39196 | BO49: 38114 | BP49: 36536 | BQ49: 36180 | BR49: 34878 | BS49: 33443 | BT49: 32071 | BU49: 30438 | BV49: 29492 | BW49: 28568 | BX49: 27143 | BY49: 26921 | BZ49: 26387 | CA49: 26423 | CB49: 26538 | CC49: 28112 | CD49: 20461 | CE49: 18899 | CF49: 18384 | CG49: 17094 | CH49: 15036 | CI49: 13224 | CJ49: 12519 | CK49: 11306 | CL49: 10029 | CM49: 8714 | CN49: 32867 | CP49: 2026
A50: 2027 | B50: 24613 | C50: 24825 | D50: 25020 | E50: 25155 | F50: 25254 | G50: 25393 | H50: 25572 | I50: 25722 | J50: 25542 | K50: 26407 | L50: 26906 | M50: 27862 | N50: 28541 | O50: 28678 | P50: 29410 | Q50: 29958 | R50: 31008 | S50: 29723 | T50: 30700 | U50: 31603 | V50: 31609 | W50: 31862 | X50: 31675 | Y50: 31266 | Z50: 30703 | AA50: 30534 | AB50: 31757 | AC50: 32242 | AD50: 34528 | AE50: 34791 | AF50: 35663 | AG50: 35579 | AH50: 36065 | AI50: 37254 | AJ50: 38647 | AK50: 40837 | AL50: 40427 | AM50: 38921 | AN50: 38763 | AO50: 38920 | AP50: 37870 | AQ50: 37162 | AR50: 37264 | AS50: 36047 | AT50: 36465 | AU50: 36913 | AV50: 36258 | AW50: 35461 | AX50: 33871 | AY50: 31943 | AZ50: 30798 | BA50: 32762 | BB50: 33138 | BC50: 33258 | BD50: 35357 | BE50: 37846 | BF50: 39522 | BG50: 38716 | BH50: 40124 | BI50: 40693 | BJ50: 40414 | BK50: 40284 | BL50: 41353 | BM50: 40991 | BN50: 40448 | BO50: 38909 | BP50: 37811 | BQ50: 36204 | BR50: 35799 | BS50: 34473 | BT50: 33007 | BU50: 31602 | BV50: 29941 | BW50: 28959 | BX50: 27986 | BY50: 26511 | BZ50: 26221 | CA50: 25620 | CB50: 25558 | CC50: 25569 | CD50: 26967 | CE50: 19524 | CF50: 17928 | CG50: 17317 | CH50: 15971 | CI50: 13920 | CJ50: 12112 | CK50: 11319 | CL50: 10080 | CM50: 8798 | CN50: 33470 | CP50: 2027
A51: 2028 | B51: 24527 | C51: 24753 | D51: 24964 | E51: 25125 | F51: 25250 | G51: 25340 | H51: 25472 | I51: 25656 | J51: 25811 | K51: 25622 | L51: 26474 | M51: 26978 | N51: 27929 | O51: 28597 | P51: 28742 | Q51: 29480 | R51: 30021 | S51: 31076 | T51: 29995 | U51: 31829 | V51: 33054 | W51: 32446 | X51: 32309 | Y51: 31920 | Z51: 31358 | AA51: 30713 | AB51: 30586 | AC51: 31856 | AD51: 32360 | AE51: 34678 | AF51: 34938 | AG51: 35795 | AH51: 35711 | AI51: 36205 | AJ51: 37394 | AK51: 38763 | AL51: 40933 | AM51: 40497 | AN51: 38993 | AO51: 38839 | AP51: 38970 | AQ51: 37912 | AR51: 37200 | AS51: 37296 | AT51: 36070 | AU51: 36474 | AV51: 36917 | AW51: 36258 | AX51: 35455 | AY51: 33855 | AZ51: 31920 | BA51: 30767 | BB51: 32713 | BC51: 33084 | BD51: 33211 | BE51: 35310 | BF51: 37782 | BG51: 39422 | BH51: 38601 | BI51: 39994 | BJ51: 40549 | BK51: 40262 | BL51: 40113 | BM51: 41134 | BN51: 40726 | BO51: 40157 | BP51: 38603 | BQ51: 37471 | BR51: 35829 | BS51: 35389 | BT51: 34030 | BU51: 32531 | BV51: 31093 | BW51: 29408 | BX51: 28378 | BY51: 27346 | BZ51: 25831 | CA51: 25468 | CB51: 24791 | CC51: 24635 | CD51: 24539 | CE51: 25746 | CF51: 18530 | CG51: 16896 | CH51: 16188 | CI51: 14792 | CJ51: 12755 | CK51: 10957 | CL51: 10097 | CM51: 8849 | CN51: 34055 | CP51: 2028
A52: 2029 | B52: 24447 | C52: 24666 | D52: 24892 | E52: 25068 | F52: 25220 | G52: 25335 | H52: 25419 | I52: 25556 | J52: 25746 | K52: 25891 | L52: 25687 | M52: 26545 | N52: 27044 | O52: 27984 | P52: 28660 | Q52: 28812 | R52: 29542 | S52: 30090 | T52: 31347 | U52: 31126 | V52: 33296 | W52: 33904 | X52: 32893 | Y52: 32550 | Z52: 32005 | AA52: 31364 | AB52: 30765 | AC52: 30687 | AD52: 31973 | AE52: 32510 | AF52: 34824 | AG52: 35070 | AH52: 35927 | AI52: 35850 | AJ52: 36343 | AK52: 37507 | AL52: 38858 | AM52: 41004 | AN52: 40567 | AO52: 39069 | AP52: 38890 | AQ52: 39012 | AR52: 37949 | AS52: 37234 | AT52: 37318 | AU52: 36078 | AV52: 36480 | AW52: 36918 | AX52: 36255 | AY52: 35442 | AZ52: 33832 | BA52: 31887 | BB52: 30723 | BC52: 32661 | BD52: 33037 | BE52: 33168 | BF52: 35253 | BG52: 37689 | BH52: 39306 | BI52: 38479 | BJ52: 39856 | BK52: 40399 | BL52: 40095 | BM52: 39904 | BN52: 40872 | BO52: 40439 | BP52: 39847 | BQ52: 38262 | BR52: 37089 | BS52: 35423 | BT52: 34941 | BU52: 33546 | BV52: 32015 | BW52: 30547 | BX52: 28826 | BY52: 27737 | BZ52: 26654 | CA52: 25099 | CB52: 24653 | CC52: 23905 | CD52: 23653 | CE52: 23439 | CF52: 24449 | CG52: 17474 | CH52: 15804 | CI52: 15002 | CJ52: 13562 | CK52: 11545 | CL52: 9781 | CM52: 8870 | CN52: 34596 | CP52: 2029
A53: 2030 | B53: 24369 | C53: 24586 | D53: 24805 | E53: 24998 | F53: 25163 | G53: 25306 | H53: 25414 | I53: 25502 | J53: 25646 | K53: 25826 | L53: 25957 | M53: 25758 | N53: 26610 | O53: 27099 | P53: 28046 | Q53: 28729 | R53: 28874 | S53: 29610 | T53: 30365 | U53: 32469 | V53: 32581 | W53: 34151 | X53: 34353 | Y53: 33127 | Z53: 32627 | AA53: 32007 | AB53: 31414 | AC53: 30865 | AD53: 30806 | AE53: 32122 | AF53: 32655 | AG53: 34954 | AH53: 35201 | AI53: 36067 | AJ53: 35986 | AK53: 36454 | AL53: 37599 | AM53: 38929 | AN53: 41076 | AO53: 40644 | AP53: 39120 | AQ53: 38933 | AR53: 39051 | AS53: 37982 | AT53: 37258 | AU53: 37326 | AV53: 36085 | AW53: 36483 | AX53: 36915 | AY53: 36243 | AZ53: 35419 | BA53: 33797 | BB53: 31841 | BC53: 30677 | BD53: 32616 | BE53: 32996 | BF53: 33115 | BG53: 35168 | BH53: 37581 | BI53: 39181 | BJ53: 38349 | BK53: 39712 | BL53: 40234 | BM53: 39891 | BN53: 39655 | BO53: 40588 | BP53: 40132 | BQ53: 39500 | BR53: 37878 | BS53: 36675 | BT53: 34982 | BU53: 34451 | BV53: 33022 | BW53: 31460 | BX53: 29952 | BY53: 28183 | BZ53: 27045 | CA53: 25908 | CB53: 24307 | CC53: 23783 | CD53: 22963 | CE53: 22603 | CF53: 22270 | CG53: 23069 | CH53: 16353 | CI53: 14655 | CJ53: 13763 | CK53: 12284 | CL53: 10312 | CM53: 8598 | CN53: 35068 | CP53: 2030
A54: 2031 | B54: 24301 | C54: 24509 | D54: 24724 | E54: 24910 | F54: 25093 | G54: 25249 | H54: 25385 | I54: 25498 | J54: 25591 | K54: 25726 | L54: 25893 | M54: 26027 | N54: 25822 | O54: 26664 | P54: 27161 | Q54: 28115 | R54: 28791 | S54: 28942 | T54: 29883 | U54: 31508 | V54: 33943 | W54: 33430 | X54: 34598 | Y54: 34583 | Z54: 33197 | AA54: 32623 | AB54: 32055 | AC54: 31513 | AD54: 30983 | AE54: 30955 | AF54: 32265 | AG54: 32785 | AH54: 35085 | AI54: 35340 | AJ54: 36203 | AK54: 36095 | AL54: 36545 | AM54: 37669 | AN54: 39003 | AO54: 41155 | AP54: 40694 | AQ54: 39162 | AR54: 38972 | AS54: 39084 | AT54: 38006 | AU54: 37267 | AV54: 37332 | AW54: 36088 | AX54: 36482 | AY54: 36903 | AZ54: 36221 | BA54: 35382 | BB54: 33749 | BC54: 31791 | BD54: 30637 | BE54: 32576 | BF54: 32943 | BG54: 33037 | BH54: 35070 | BI54: 37465 | BJ54: 39048 | BK54: 38214 | BL54: 39553 | BM54: 40031 | BN54: 39644 | BO54: 39383 | BP54: 40285 | BQ54: 39789 | BR54: 39109 | BS54: 37460 | BT54: 36225 | BU54: 34499 | BV54: 33920 | BW54: 32459 | BX54: 30857 | BY54: 29294 | BZ54: 27489 | CA54: 26300 | CB54: 25101 | CC54: 23459 | CD54: 22856 | CE54: 21955 | CF54: 21488 | CG54: 21025 | CH54: 21603 | CI54: 15173 | CJ54: 13455 | CK54: 12475 | CL54: 10980 | CM54: 9072 | CN54: 35229 | CP54: 2031
A55: 2032 | B55: 24246 | C55: 24442 | D55: 24649 | E55: 24829 | F55: 25005 | G55: 25178 | H55: 25327 | I55: 25469 | J55: 25587 | K55: 25671 | L55: 25791 | M55: 25963 | N55: 26091 | O55: 25875 | P55: 26726 | Q55: 27229 | R55: 28178 | S55: 28859 | T55: 29213 | U55: 31008 | V55: 32976 | W55: 34802 | X55: 33875 | Y55: 34820 | Z55: 34643 | AA55: 33190 | AB55: 32670 | AC55: 32155 | AD55: 31631 | AE55: 31130 | AF55: 31097 | AG55: 32392 | AH55: 32914 | AI55: 35224 | AJ55: 35476 | AK55: 36312 | AL55: 36184 | AM55: 36614 | AN55: 37740 | AO55: 39082 | AP55: 41207 | AQ55: 40736 | AR55: 39201 | AS55: 39006 | AT55: 39107 | AU55: 38015 | AV55: 37274 | AW55: 37334 | AX55: 36087 | AY55: 36472 | AZ55: 36882 | BA55: 36187 | BB55: 35334 | BC55: 33698 | BD55: 31748 | BE55: 30602 | BF55: 32524 | BG55: 32865 | BH55: 32947 | BI55: 34964 | BJ55: 37343 | BK55: 38912 | BL55: 38064 | BM55: 39358 | BN55: 39787 | BO55: 39375 | BP55: 39094 | BQ55: 39945 | BR55: 39401 | BS55: 38685 | BT55: 37006 | BU55: 35733 | BV55: 33975 | BW55: 33349 | BX55: 31845 | BY55: 30188 | BZ55: 28583 | CA55: 26742 | CB55: 25492 | CC55: 24238 | CD55: 22557 | CE55: 21865 | CF55: 20884 | CG55: 20298 | CH55: 19702 | CI55: 20060 | CJ55: 13940 | CK55: 12206 | CL55: 11160 | CM55: 9669 | CN55: 35773 | CP55: 2032
A56: 2033 | B56: 24206 | C56: 24386 | D56: 24581 | E56: 24754 | F56: 24925 | G56: 25091 | H56: 25255 | I56: 25411 | J56: 25558 | K56: 25667 | L56: 25737 | M56: 25861 | N56: 26028 | O56: 26145 | P56: 25936 | Q56: 26793 | R56: 27291 | S56: 28245 | T56: 29127 | U56: 30325 | V56: 32459 | W56: 33829 | X56: 35249 | Y56: 34097 | Z56: 34872 | AA56: 34629 | AB56: 33235 | AC56: 32770 | AD56: 32272 | AE56: 31780 | AF56: 31272 | AG56: 31225 | AH56: 32520 | AI56: 33050 | AJ56: 35359 | AK56: 35586 | AL56: 36401 | AM56: 36251 | AN56: 36684 | AO56: 37817 | AP56: 39135 | AQ56: 41251 | AR56: 40775 | AS56: 39236 | AT56: 39030 | AU56: 39116 | AV56: 38023 | AW56: 37279 | AX56: 37333 | AY56: 36079 | AZ56: 36453 | BA56: 36848 | BB56: 36140 | BC56: 35283 | BD56: 33653 | BE56: 31709 | BF56: 30557 | BG56: 32448 | BH56: 32774 | BI56: 32849 | BJ56: 34853 | BK56: 37216 | BL56: 38761 | BM56: 37879 | BN56: 39123 | BO56: 39522 | BP56: 39091 | BQ56: 38769 | BR56: 39561 | BS56: 38981 | BT56: 38222 | BU56: 36510 | BV56: 35197 | BW56: 33412 | BX56: 32728 | BY56: 31164 | BZ56: 29465 | CA56: 27816 | CB56: 25931 | CC56: 24626 | CD56: 23317 | CE56: 21591 | CF56: 20811 | CG56: 19740 | CH56: 19034 | CI56: 18310 | CJ56: 18444 | CK56: 12656 | CL56: 10928 | CM56: 9836 | CN56: 36755 | CP56: 2033
A57: 2034 | B57: 24178 | C57: 24346 | D57: 24524 | E57: 24685 | F57: 24850 | G57: 25010 | H57: 25169 | I57: 25339 | J57: 25500 | K57: 25638 | L57: 25733 | M57: 25806 | N57: 25925 | O57: 26081 | P57: 26205 | Q57: 26004 | R57: 26854 | S57: 27359 | T57: 28512 | U57: 30227 | V57: 31761 | W57: 33308 | X57: 34274 | Y57: 35472 | Z57: 34152 | AA57: 34854 | AB57: 34671 | AC57: 33333 | AD57: 32886 | AE57: 32420 | AF57: 31921 | AG57: 31397 | AH57: 31351 | AI57: 32655 | AJ57: 33183 | AK57: 35468 | AL57: 35676 | AM57: 36469 | AN57: 36320 | AO57: 36760 | AP57: 37869 | AQ57: 39181 | AR57: 41293 | AS57: 40809 | AT57: 39260 | AU57: 39041 | AV57: 39124 | AW57: 38026 | AX57: 37280 | AY57: 37324 | AZ57: 36061 | BA57: 36421 | BB57: 36801 | BC57: 36089 | BD57: 35238 | BE57: 33613 | BF57: 31660 | BG57: 30489 | BH57: 32360 | BI57: 32678 | BJ57: 32746 | BK57: 34737 | BL57: 37076 | BM57: 38575 | BN57: 37654 | BO57: 38866 | BP57: 39241 | BQ57: 38771 | BR57: 38401 | BS57: 39144 | BT57: 38523 | BU57: 37716 | BV57: 35969 | BW57: 34621 | BX57: 32798 | BY57: 32037 | BZ57: 30427 | CA57: 28686 | CB57: 26984 | CC57: 25063 | CD57: 23703 | CE57: 22331 | CF57: 20562 | CG57: 19684 | CH57: 18524 | CI57: 17702 | CJ57: 16850 | CK57: 16762 | CL57: 11341 | CM57: 9641 | CN57: 37743 | CP57: 2034
A58: 2035 | B58: 24171 | C58: 24317 | D58: 24484 | E58: 24628 | F58: 24781 | G58: 24936 | H58: 25088 | I58: 25253 | J58: 25429 | K58: 25580 | L58: 25704 | M58: 25802 | N58: 25871 | O58: 25979 | P58: 26142 | Q58: 26272 | R58: 26065 | S58: 26921 | T58: 27623 | U58: 29610 | V58: 31655 | W58: 32604 | X58: 33753 | Y58: 34490 | Z58: 35522 | AA58: 34137 | AB58: 34895 | AC58: 34769 | AD58: 33451 | AE58: 33036 | AF58: 32563 | AG58: 32048 | AH58: 31522 | AI58: 31485 | AJ58: 32786 | AK58: 33291 | AL58: 35558 | AM58: 35745 | AN58: 36538 | AO58: 36395 | AP58: 36810 | AQ58: 37914 | AR58: 39224 | AS58: 41330 | AT58: 40832 | AU58: 39270 | AV58: 39051 | AW58: 39128 | AX58: 38027 | AY58: 37271 | AZ58: 37304 | BA58: 36031 | BB58: 36376 | BC58: 36750 | BD58: 36045 | BE58: 35198 | BF58: 33563 | BG58: 31588 | BH58: 30408 | BI58: 32266 | BJ58: 32576 | BK58: 32639 | BL58: 34610 | BM58: 36902 | BN58: 38351 | BO58: 37410 | BP58: 38593 | BQ58: 38924 | BR58: 38407 | BS58: 38001 | BT58: 38689 | BU58: 38019 | BV58: 37165 | BW58: 35388 | BX58: 33993 | BY58: 32116 | BZ58: 31291 | CA58: 29634 | CB58: 27839 | CC58: 26092 | CD58: 24136 | CE58: 22713 | CF58: 21280 | CG58: 19462 | CH58: 18486 | CI58: 17242 | CJ58: 16305 | CK58: 15327 | CL58: 15037 | CM58: 10016 | CN58: 38419 | CP58: 2035
A59: 2036 | B59: 24197 | C59: 24310 | D59: 24456 | E59: 24588 | F59: 24724 | G59: 24867 | H59: 25013 | I59: 25172 | J59: 25343 | K59: 25509 | L59: 25645 | M59: 25774 | N59: 25868 | O59: 25925 | P59: 26039 | Q59: 26209 | R59: 26333 | S59: 26131 | T59: 27182 | U59: 28706 | V59: 31027 | W59: 32496 | X59: 33048 | Y59: 33975 | Z59: 34538 | AA59: 35502 | AB59: 34179 | AC59: 34993 | AD59: 34887 | AE59: 33601 | AF59: 33181 | AG59: 32690 | AH59: 32174 | AI59: 31655 | AJ59: 31614 | AK59: 32889 | AL59: 33380 | AM59: 35628 | AN59: 35816 | AO59: 36614 | AP59: 36446 | AQ59: 36855 | AR59: 37955 | AS59: 39261 | AT59: 41355 | AU59: 40843 | AV59: 39281 | AW59: 39056 | AX59: 39129 | AY59: 38018 | AZ59: 37252 | BA59: 37273 | BB59: 35990 | BC59: 36328 | BD59: 36706 | BE59: 36007 | BF59: 35148 | BG59: 33489 | BH59: 31503 | BI59: 30322 | BJ59: 32167 | BK59: 32470 | BL59: 32521 | BM59: 34450 | BN59: 36690 | BO59: 38105 | BP59: 37150 | BQ59: 38286 | BR59: 38563 | BS59: 38013 | BT59: 37566 | BU59: 38190 | BV59: 37472 | BW59: 36574 | BX59: 34754 | BY59: 33294 | BZ59: 31377 | CA59: 30485 | CB59: 28770 | CC59: 26931 | CD59: 25140 | CE59: 23142 | CF59: 21658 | CG59: 20157 | CH59: 18291 | CI59: 17221 | CJ59: 15896 | CK59: 14845 | CL59: 13766 | CM59: 13297 | CN59: 39320 | CP59: 2036
A60: 2037 | B60: 24251 | C60: 24337 | D60: 24449 | E60: 24560 | F60: 24684 | G60: 24809 | H60: 24944 | I60: 25097 | J60: 25261 | K60: 25422 | L60: 25574 | M60: 25715 | N60: 25840 | O60: 25922 | P60: 25985 | Q60: 26106 | R60: 26270 | S60: 26399 | T60: 26390 | U60: 28246 | V60: 30101 | W60: 31864 | X60: 32943 | Y60: 33273 | Z60: 34031 | AA60: 34519 | AB60: 35541 | AC60: 34277 | AD60: 35111 | AE60: 35039 | AF60: 33746 | AG60: 33310 | AH60: 32818 | AI60: 32307 | AJ60: 31783 | AK60: 31718 | AL60: 32975 | AM60: 33450 | AN60: 35698 | AO60: 35892 | AP60: 36665 | AQ60: 36491 | AR60: 36897 | AS60: 37993 | AT60: 39290 | AU60: 41367 | AV60: 40852 | AW60: 39287 | AX60: 39058 | AY60: 39121 | AZ60: 38000 | BA60: 37223 | BB60: 37229 | BC60: 35942 | BD60: 36287 | BE60: 36667 | BF60: 35958 | BG60: 35073 | BH60: 33402 | BI60: 31413 | BJ60: 30230 | BK60: 32065 | BL60: 32353 | BM60: 32372 | BN60: 34255 | BO60: 36458 | BP60: 37844 | BQ60: 36857 | BR60: 37936 | BS60: 38172 | BT60: 37583 | BU60: 37088 | BV60: 37648 | BW60: 36884 | BX60: 35927 | BY60: 34049 | BZ60: 32538 | CA60: 30578 | CB60: 29608 | CC60: 27843 | CD60: 25961 | CE60: 24118 | CF60: 22081 | CG60: 20529 | CH60: 18959 | CI60: 17054 | CJ60: 15891 | CK60: 14488 | CL60: 13346 | CM60: 12187 | CN60: 42949 | CP60: 2037
A61: 2038 | B61: 24328 | C61: 24392 | D61: 24476 | E61: 24553 | F61: 24656 | G61: 24769 | H61: 24887 | I61: 25027 | J61: 25185 | K61: 25340 | L61: 25487 | M61: 25644 | N61: 25780 | O61: 25894 | P61: 25982 | Q61: 26052 | R61: 26166 | S61: 26336 | T61: 26656 | U61: 27444 | V61: 29627 | W61: 30930 | X61: 32309 | Y61: 33172 | Z61: 33334 | AA61: 34017 | AB61: 34561 | AC61: 35637 | AD61: 34395 | AE61: 35264 | AF61: 35186 | AG61: 33876 | AH61: 33440 | AI61: 32952 | AJ61: 32437 | AK61: 31885 | AL61: 31804 | AM61: 33043 | AN61: 33521 | AO61: 35772 | AP61: 35942 | AQ61: 36710 | AR61: 36532 | AS61: 36934 | AT61: 38020 | AU61: 39305 | AV61: 41378 | AW61: 40857 | AX61: 39291 | AY61: 39052 | AZ61: 39104 | BA61: 37970 | BB61: 37181 | BC61: 37180 | BD61: 35903 | BE61: 36252 | BF61: 36619 | BG61: 35882 | BH61: 34985 | BI61: 33309 | BJ61: 31319 | BK61: 30136 | BL61: 31952 | BM61: 32205 | BN61: 32189 | BO61: 34042 | BP61: 36215 | BQ61: 37551 | BR61: 36524 | BS61: 37555 | BT61: 37745 | BU61: 37110 | BV61: 36567 | BW61: 37063 | BX61: 36240 | BY61: 35208 | BZ61: 33285 | CA61: 31720 | CB61: 29709 | CC61: 28666 | CD61: 26853 | CE61: 24920 | CF61: 23026 | CG61: 20944 | CH61: 19325 | CI61: 17692 | CJ61: 15753 | CK61: 14499 | CL61: 13040 | CM61: 11830 | CN61: 45093 | CP61: 2038
A62: 2039 | B62: 24412 | C62: 24469 | D62: 24531 | E62: 24580 | F62: 24649 | G62: 24741 | H62: 24846 | I62: 24970 | J62: 25116 | K62: 25263 | L62: 25405 | M62: 25556 | N62: 25708 | O62: 25834 | P62: 25954 | Q62: 26049 | R62: 26113 | S62: 26232 | T62: 26593 | U62: 27695 | V62: 28807 | W62: 30450 | X62: 31375 | Y62: 32541 | Z62: 33238 | AA62: 33323 | AB62: 34059 | AC62: 34659 | AD62: 35755 | AE62: 34547 | AF62: 35413 | AG62: 35319 | AH62: 34007 | AI62: 33576 | AJ62: 33082 | AK62: 32539 | AL62: 31969 | AM62: 31871 | AN62: 33112 | AO62: 33596 | AP62: 35823 | AQ62: 35987 | AR62: 36751 | AS62: 36568 | AT62: 36961 | AU62: 38034 | AV62: 39318 | AW62: 41384 | AX62: 40861 | AY62: 39287 | AZ62: 39037 | BA62: 39075 | BB62: 37927 | BC62: 37135 | BD62: 37139 | BE62: 35870 | BF62: 36206 | BG62: 36543 | BH62: 35793 | BI62: 34890 | BJ62: 33211 | BK62: 31221 | BL62: 30033 | BM62: 31810 | BN62: 32026 | BO62: 31990 | BP62: 33817 | BQ62: 35938 | BR62: 37216 | BS62: 36163 | BT62: 37141 | BU62: 37276 | BV62: 36595 | BW62: 36006 | BX62: 36423 | BY62: 35522 | BZ62: 34427 | CA62: 32459 | CB62: 30830 | CC62: 28776 | CD62: 27659 | CE62: 25789 | CF62: 23806 | CG62: 21855 | CH62: 19730 | CI62: 18050 | CJ62: 16358 | CK62: 14389 | CL62: 13065 | CM62: 11573 | CN62: 46589 | CP62: 2039
A63: 2040 | B63: 24473 | C63: 24554 | D63: 24609 | E63: 24636 | F63: 24676 | G63: 24734 | H63: 24818 | I63: 24930 | J63: 25059 | K63: 25194 | L63: 25329 | M63: 25475 | N63: 25620 | O63: 25763 | P63: 25894 | Q63: 26021 | R63: 26110 | S63: 26179 | T63: 26490 | U63: 27636 | V63: 29056 | W63: 29623 | X63: 30895 | Y63: 31613 | Z63: 32610 | AA63: 33230 | AB63: 33366 | AC63: 34158 | AD63: 34778 | AE63: 35907 | AF63: 34695 | AG63: 35547 | AH63: 35450 | AI63: 34145 | AJ63: 33707 | AK63: 33186 | AL63: 32624 | AM63: 32036 | AN63: 31940 | AO63: 33184 | AP63: 33648 | AQ63: 35868 | AR63: 36029 | AS63: 36788 | AT63: 36594 | AU63: 36974 | AV63: 38047 | AW63: 39329 | AX63: 41389 | AY63: 40854 | AZ63: 39272 | BA63: 39010 | BB63: 39032 | BC63: 37881 | BD63: 37096 | BE63: 37105 | BF63: 35826 | BG63: 36134 | BH63: 36455 | BI63: 35699 | BJ63: 34789 | BK63: 33109 | BL63: 31113 | BM63: 29901 | BN63: 31636 | BO63: 31831 | BP63: 31780 | BQ63: 33560 | BR63: 35622 | BS63: 36853 | BT63: 35769 | BU63: 36685 | BV63: 36765 | BW63: 36042 | BX63: 35394 | BY63: 35712 | BZ63: 34745 | CA63: 33582 | CB63: 31559 | CC63: 29873 | CD63: 27778 | CE63: 26577 | CF63: 24650 | CG63: 22611 | CH63: 20604 | CI63: 18445 | CJ63: 16705 | CK63: 14959 | CL63: 12983 | CM63: 11611 | CN63: 47605 | CP63: 2040
A64: 2041 | B64: 24508 | C64: 24615 | D64: 24693 | E64: 24714 | F64: 24732 | G64: 24761 | H64: 24812 | I64: 24902 | J64: 25018 | K64: 25137 | L64: 25260 | M64: 25399 | N64: 25540 | O64: 25675 | P64: 25823 | Q64: 25961 | R64: 26082 | S64: 26176 | T64: 26435 | U64: 27530 | V64: 28997 | W64: 29873 | X64: 30068 | Y64: 31137 | Z64: 31692 | AA64: 32604 | AB64: 33275 | AC64: 33465 | AD64: 34277 | AE64: 34932 | AF64: 36056 | AG64: 34827 | AH64: 35680 | AI64: 35589 | AJ64: 34278 | AK64: 33814 | AL64: 33272 | AM64: 32691 | AN64: 32103 | AO64: 32012 | AP64: 33234 | AQ64: 33694 | AR64: 35911 | AS64: 36067 | AT64: 36815 | AU64: 36609 | AV64: 36988 | AW64: 38057 | AX64: 39337 | AY64: 41384 | AZ64: 40838 | BA64: 39245 | BB64: 38969 | BC64: 38985 | BD64: 37843 | BE64: 37064 | BF64: 37061 | BG64: 35756 | BH64: 36051 | BI64: 36361 | BJ64: 35599 | BK64: 34686 | BL64: 32996 | BM64: 30978 | BN64: 29740 | BO64: 31445 | BP64: 31623 | BQ64: 31540 | BR64: 33267 | BS64: 35278 | BT64: 36456 | BU64: 35334 | BV64: 36189 | BW64: 36216 | BX64: 35435 | BY64: 34710 | BZ64: 34940 | CA64: 33905 | CB64: 32663 | CC64: 30592 | CD64: 28850 | CE64: 26704 | CF64: 25418 | CG64: 23428 | CH64: 21331 | CI64: 19275 | CJ64: 17087 | CK64: 15292 | CL64: 13513 | CM64: 11555 | CN64: 48475 | CP64: 2041
A65: 2042 | B65: 24524 | C65: 24650 | D65: 24754 | E65: 24798 | F65: 24810 | G65: 24817 | H65: 24839 | I65: 24896 | J65: 24990 | K65: 25097 | L65: 25202 | M65: 25330 | N65: 25463 | O65: 25594 | P65: 25735 | Q65: 25889 | R65: 26022 | S65: 26148 | T65: 26432 | U65: 27473 | V65: 28888 | W65: 29815 | X65: 30320 | Y65: 30315 | Z65: 31223 | AA65: 31691 | AB65: 32651 | AC65: 33374 | AD65: 33583 | AE65: 34429 | AF65: 35083 | AG65: 36190 | AH65: 34961 | AI65: 35820 | AJ65: 35725 | AK65: 34386 | AL65: 33903 | AM65: 33341 | AN65: 32759 | AO65: 32175 | AP65: 32063 | AQ65: 33278 | AR65: 33737 | AS65: 35949 | AT65: 36096 | AU65: 36830 | AV65: 36623 | AW65: 36999 | AX65: 38064 | AY65: 39335 | AZ65: 41369 | BA65: 40810 | BB65: 39205 | BC65: 38926 | BD65: 38947 | BE65: 37810 | BF65: 37021 | BG65: 36989 | BH65: 35674 | BI65: 35960 | BJ65: 36261 | BK65: 35496 | BL65: 34571 | BM65: 32856 | BN65: 30812 | BO65: 29564 | BP65: 31242 | BQ65: 31388 | BR65: 31268 | BS65: 32949 | BT65: 34903 | BU65: 36018 | BV65: 34862 | BW65: 35655 | BX65: 35614 | BY65: 34759 | BZ65: 33970 | CA65: 34105 | CB65: 32988 | CC65: 31674 | CD65: 29557 | CE65: 27749 | CF65: 25554 | CG65: 24173 | CH65: 22118 | CI65: 19972 | CJ65: 17873 | CK65: 15659 | CL65: 13831 | CM65: 12043 | CN65: 49152
A66: 2043 | B66: 24513 | C66: 24666 | D66: 24791 | E66: 24860 | F66: 24894 | G66: 24896 | H66: 24895 | I66: 24923 | J66: 24984 | K66: 25068 | L66: 25162 | M66: 25272 | N66: 25394 | O66: 25517 | P66: 25654 | Q66: 25802 | R66: 25949 | S66: 26088 | T66: 26403 | U66: 27468 | V66: 28829 | W66: 29704 | X66: 30261 | Y66: 30571 | Z66: 30408 | AA66: 31228 | AB66: 31739 | AC66: 32751 | AD66: 33493 | AE66: 33736 | AF66: 34579 | AG66: 35218 | AH66: 36325 | AI66: 35103 | AJ66: 35958 | AK66: 35835 | AL66: 34476 | AM66: 33973 | AN66: 33410 | AO66: 32831 | AP66: 32225 | AQ66: 32109 | AR66: 33320 | AS66: 33777 | AT66: 35977 | AU66: 36113 | AV66: 36845 | AW66: 36634 | AX66: 37008 | AY66: 38062 | AZ66: 39325 | BA66: 41343 | BB66: 40769 | BC66: 39162 | BD66: 38889 | BE66: 38914 | BF66: 37767 | BG66: 36951 | BH66: 36905 | BI66: 35586 | BJ66: 35864 | BK66: 36157 | BL66: 35381 | BM66: 34426 | BN66: 32681 | BO66: 30631 | BP66: 29377 | BQ66: 31013 | BR66: 31120 | BS66: 30973 | BT66: 32602 | BU66: 34488 | BV66: 35541 | BW66: 34354 | BX66: 35071 | BY66: 34943 | BZ66: 34025 | CA66: 33168 | CB66: 33193 | CC66: 32001 | CD66: 30615 | CE66: 28441 | CF66: 26566 | CG66: 24317 | CH66: 22837 | CI66: 20726 | CJ66: 18535 | CK66: 16396 | CL66: 14181 | CM66: 12344 | CN66: 50152
A68: © Crown Copyright 2019
